Body Name,Body,Service Area Catergorisation,Service Division Catergorisation,Responsible Unit,Expenses Type,Detailed Expenses Type,Expenses Code,Date,Transaction Number,Amount,Capital / Revenue,Supplier Name,Supplier ID
North East Lincolnshire Council,http://statistics.data.gov.uk/id/local-authority/00FC),Cap Dep Chief Exec,Ad Adult Serv-Hlth Improvement,Hps-Disabled Fac. Grants,Cap Grants To O/Side Sources,Cap Grants To O/Side Sources,YJ101,02/11/2017,489060,442,CAPITAL,MARK BENNETT,101838
North East Lincolnshire Council,http://statistics.data.gov.uk/id/local-authority/00FC),Cap Dep Chief Exec,Ad Adult Serv-Hlth Improvement,Hps-Disabled Fac. Grants,Cap Grants To O/Side Sources,Cap Grants To O/Side Sources,YJ101,23/11/2017,492164,5656.85,CAPITAL,P G INGOLDBY & SONS LTD,100591
North East Lincolnshire Council,http://statistics.data.gov.uk/id/local-authority/00FC),Cap Dep Chief Exec,Ad Adult Serv-Hlth Improvement,Hps-Disabled Fac. Grants,Cap Grants To O/Side Sources,Cap Grants To O/Side Sources,YJ101,20/11/2017,491532,16405,CAPITAL,WESSEX LIFT CO LTD,126902
North East Lincolnshire Council,http://statistics.data.gov.uk/id/local-authority/00FC),Cap Dep Chief Exec,Ad Adult Serv-Hlth Improvement,Hps-Disabled Fac. Grants,Cap Grants To O/Side Sources,Cap Grants To O/Side Sources,YJ101,30/11/2017,492941,8919.52,CAPITAL,TOPCON CONSTRUCTION LTD,108462
North East Lincolnshire Council,http://statistics.data.gov.uk/id/local-authority/00FC),Cap Dep Chief Exec,Ad Adult Serv-Hlth Improvement,Hps-Disabled Fac. Grants,Cap Grants To O/Side Sources,Cap Grants To O/Side Sources,YJ101,30/11/2017,492938,6885.5,CAPITAL,VIC HANSEN BUILDING & JOINERY LTD,103981
North East Lincolnshire Council,http://statistics.data.gov.uk/id/local-authority/00FC),Cap Dep Chief Exec,Ad Adult Serv-Hlth Improvement,Hps-Disabled Fac. Grants,Cap Grants To O/Side Sources,Cap Grants To O/Side Sources,YJ101,30/11/2017,492939,6121,CAPITAL,VIC HANSEN BUILDING & JOINERY LTD,103981
North East Lincolnshire Council,http://statistics.data.gov.uk/id/local-authority/00FC),Cap Dep Chief Exec,Ad Adult Serv-Hlth Improvement,Hps-Disabled Fac. Grants,Cap Grants To O/Side Sources,Cap Grants To O/Side Sources,YJ101,30/11/2017,493617,5070.11,CAPITAL,KES BUILDING MAINTENANCE LIMITED,100786
North East Lincolnshire Council,http://statistics.data.gov.uk/id/local-authority/00FC),Cap Dep Chief Exec,Ad Adult Serv-Hlth Improvement,Hps-Disabled Fac. Grants,Cap Grants To O/Side Sources,Cap Grants To O/Side Sources,YJ101,20/11/2017,491271,5492.31,CAPITAL,F R TOWNSEND & CO LTD,104217
North East Lincolnshire Council,http://statistics.data.gov.uk/id/local-authority/00FC),Cap Dep Chief Exec,Ad Adult Serv-Hlth Improvement,Hps-Disabled Fac. Grants,Cap Grants To O/Side Sources,Cap Grants To O/Side Sources,YJ101,06/11/2017,488572,8848.83,CAPITAL,KES BUILDING MAINTENANCE LIMITED,100786
North East Lincolnshire Council,http://statistics.data.gov.uk/id/local-authority/00FC),Cap Dep Chief Exec,Ad Adult Serv-Hlth Improvement,Hps-Disabled Fac. Grants,Cap Grants To O/Side Sources,Cap Grants To O/Side Sources,YJ101,06/11/2017,489146,670,CAPITAL,VIC HANSEN BUILDING & JOINERY LTD,103981
North East Lincolnshire Council,http://statistics.data.gov.uk/id/local-authority/00FC),Cap Dep Chief Exec,Ad Adult Serv-Hlth Improvement,Hps-Disabled Fac. Grants,Cap Grants To O/Side Sources,Cap Grants To O/Side Sources,YJ101,06/11/2017,489120,6720,CAPITAL,WESSEX LIFT CO LTD,126902
North East Lincolnshire Council,http://statistics.data.gov.uk/id/local-authority/00FC),Cap Dep Chief Exec,Ad Adult Serv-Hlth Improvement,Hps-Disabled Fac. Grants,Cap Grants To O/Side Sources,Cap Grants To O/Side Sources,YJ101,30/11/2017,492947,1540,CAPITAL,DOLPHIN MOBILITY EAST MIDLANDS LTD,101317
North East Lincolnshire Council,http://statistics.data.gov.uk/id/local-authority/00FC),Cap Dep Chief Exec,Ad Adult Serv-Hlth Improvement,Hps-Disabled Fac. Grants,Cap Grants To O/Side Sources,Cap Grants To O/Side Sources,YJ101,06/11/2017,488578,335,CAPITAL,OBAM LIFT SERVICES LTD,112666
North East Lincolnshire Council,http://statistics.data.gov.uk/id/local-authority/00FC),Cap Dep Chief Exec,Ad Adult Serv-Hlth Improvement,Hps-Disabled Fac. Grants,Cap Grants To O/Side Sources,Cap Grants To O/Side Sources,YJ101,06/11/2017,488577,295,CAPITAL,OBAM LIFT SERVICES LTD,112666
North East Lincolnshire Council,http://statistics.data.gov.uk/id/local-authority/00FC),Cap Dep Chief Exec,Ad Adult Serv-Hlth Improvement,Hps-Disabled Fac. Grants,Cap Grants To O/Side Sources,Cap Grants To O/Side Sources,YJ101,20/11/2017,490574,5133,CAPITAL,VIC HANSEN BUILDING & JOINERY LTD,103981
North East Lincolnshire Council,http://statistics.data.gov.uk/id/local-authority/00FC),Cap Dep Chief Exec,Ad Adult Serv-Hlth Improvement,Hps-Disabled Fac. Grants,Cap Grants To O/Side Sources,Cap Grants To O/Side Sources,YJ101,06/11/2017,488573,2494.92,CAPITAL,KES BUILDING MAINTENANCE LIMITED,100786
North East Lincolnshire Council,http://statistics.data.gov.uk/id/local-authority/00FC),Cap Dep Chief Exec,Ad Adult Serv-Hlth Improvement,Hps-Disabled Fac. Grants,Cap Grants To O/Side Sources,Cap Grants To O/Side Sources,YJ101,06/11/2017,488560,6179,CAPITAL,MARK BENNETT,101838
North East Lincolnshire Council,http://statistics.data.gov.uk/id/local-authority/00FC),Cap Dep Chief Exec,Ad Adult Serv-Hlth Improvement,Hps-Disabled Fac. Grants,Cap Grants To O/Side Sources,Cap Grants To O/Side Sources,YJ101,30/11/2017,493591,4400,CAPITAL,ABLE 4 ENTERPRISE LTD,120159
North East Lincolnshire Council,http://statistics.data.gov.uk/id/local-authority/00FC),Cap Dep Chief Exec,Ad Adult Serv-Hlth Improvement,Hps-Disabled Fac. Grants,Cap Grants To O/Side Sources,Cap Grants To O/Side Sources,YJ101,06/11/2017,488765,18274.59,CAPITAL,ENGIE SERVICES LTD,133267
North East Lincolnshire Council,http://statistics.data.gov.uk/id/local-authority/00FC),Cap Dep Chief Exec,Ad Adult Serv-Hlth Improvement,Hps-Disabled Fac. Grants,Cap Grants To O/Side Sources,Cap Grants To O/Side Sources,YJ101,13/11/2017,489961,3687.4,CAPITAL,ENGIE SERVICES LTD,133267
North East Lincolnshire Council,http://statistics.data.gov.uk/id/local-authority/00FC),Cap Dep Chief Exec,Ad Adult Serv-Hlth Improvement,Hps-Disabled Fac. Grants,Cap Grants To O/Side Sources,Cap Grants To O/Side Sources,YJ101,30/11/2017,493589,5250,CAPITAL,ABLE 4 ENTERPRISE LTD,120159
North East Lincolnshire Council,http://statistics.data.gov.uk/id/local-authority/00FC),Cap Dep Chief Exec,Ad Adult Serv-Hlth Improvement,Hps-Disabled Fac. Grants,Cap Grants To O/Side Sources,Cap Grants To O/Side Sources,YJ101,13/11/2017,489610,9141.08,CAPITAL,ABLE 4 ENTERPRISE LTD,120159
North East Lincolnshire Council,http://statistics.data.gov.uk/id/local-authority/00FC),Cap Dep Chief Exec,Ad Adult Serv-Hlth Improvement,Hps-Disabled Fac. Grants,Cap Grants To O/Side Sources,Cap Grants To O/Side Sources,YJ101,30/11/2017,493586,4000,CAPITAL,ABLE 4 ENTERPRISE LTD,120159
North East Lincolnshire Council,http://statistics.data.gov.uk/id/local-authority/00FC),Cap Dep Chief Exec,Ad Adult Serv-Hlth Improvement,Hps-Disabled Fac. Grants,Cap Grants To O/Side Sources,Cap Grants To O/Side Sources,YJ101,28/11/2017,492857,10156.5,CAPITAL,VIC HANSEN BUILDING & JOINERY LTD,103981
North East Lincolnshire Council,http://statistics.data.gov.uk/id/local-authority/00FC),Cap Dep Chief Exec,Ad Adult Serv-Hlth Improvement,Hps-Disabled Fac. Grants,Cap Grants To O/Side Sources,Cap Grants To O/Side Sources,YJ101,27/11/2017,492851,4423,CAPITAL,TOTAL HYGIENE LTD,100849
North East Lincolnshire Council,http://statistics.data.gov.uk/id/local-authority/00FC),Cap Dep Chief Exec,Ad Adult Serv-Hlth Improvement,Hps-Disabled Fac. Grants,Cap Grants To O/Side Sources,Cap Grants To O/Side Sources,YJ101,23/11/2017,491994,9286,CAPITAL,ABLE 4 ENTERPRISE LTD,120159
North East Lincolnshire Council,http://statistics.data.gov.uk/id/local-authority/00FC),Cap Dep Chief Exec,Ad Adult Serv-Hlth Improvement,Hps-Disabled Fac. Grants,Cap Grants To O/Side Sources,Cap Grants To O/Side Sources,YJ101,27/11/2017,492744,606,CAPITAL,HANDICARE ACCESSIIBILITY LTD,102647
North East Lincolnshire Council,http://statistics.data.gov.uk/id/local-authority/00FC),Cap Dep Chief Exec,Ad Adult Serv-Hlth Improvement,Hps-Disabled Fac. Grants,Cap Grants To O/Side Sources,Cap Grants To O/Side Sources,YJ101,06/11/2017,488576,1425,CAPITAL,OBAM LIFT SERVICES LTD,112666
North East Lincolnshire Council,http://statistics.data.gov.uk/id/local-authority/00FC),Cap Dep Chief Exec,Ad Adult Serv-Hlth Improvement,Hps-Disabled Fac. Grants,Cap Grants To O/Side Sources,Cap Grants To O/Side Sources,YJ101,14/11/2017,490541,1425,CAPITAL,OBAM LIFT SERVICES LTD,112666
North East Lincolnshire Council,http://statistics.data.gov.uk/id/local-authority/00FC),Cap Dep Chief Exec,Ad Adult Serv-Hlth Improvement,Hps-Disabled Fac. Grants,Cap Grants To O/Side Sources,Cap Grants To O/Side Sources,YJ101,06/11/2017,488575,1875,CAPITAL,DOLPHIN MOBILITY EAST MIDLANDS LTD,101317
North East Lincolnshire Council,http://statistics.data.gov.uk/id/local-authority/00FC),Cap Dep Chief Exec,Ad Adult Serv-Hlth Improvement,Hps-Disabled Fac. Grants,Cap Grants To O/Side Sources,Cap Grants To O/Side Sources,YJ101,02/11/2017,488562,4524,CAPITAL,HANDICARE ACCESSIIBILITY LTD,102647
North East Lincolnshire Council,http://statistics.data.gov.uk/id/local-authority/00FC),Cap Dep Chief Exec,Ad Adult Serv-Hlth Improvement,Hps-Disabled Fac. Grants,Cap Grants To O/Side Sources,Cap Grants To O/Side Sources,YJ101,23/11/2017,492166,5655,CAPITAL,MARK BENNETT,101838
North East Lincolnshire Council,http://statistics.data.gov.uk/id/local-authority/00FC),Cap Dep Chief Exec,Ad Adult Serv-Hlth Improvement,Hps-Disabled Fac. Grants,Cap Grants To O/Side Sources,Cap Grants To O/Side Sources,YJ101,20/11/2017,490579,1569,CAPITAL,OBAM LIFT SERVICES LTD,112666
North East Lincolnshire Council,http://statistics.data.gov.uk/id/local-authority/00FC),Cap Dep Chief Exec,Ad Adult Serv-Hlth Improvement,Hps-Disabled Fac. Grants,Cap Grants To O/Side Sources,Cap Grants To O/Side Sources,YJ101,06/11/2017,489116,3905,CAPITAL,TOTAL HYGIENE LTD,100849
North East Lincolnshire Council,http://statistics.data.gov.uk/id/local-authority/00FC),Cap Dep Chief Exec,Ad Adult Serv-Hlth Improvement,Hps-Disabled Fac. Grants,Cap Grants To O/Side Sources,Cap Grants To O/Side Sources,YJ101,30/11/2017,493618,2913,CAPITAL,OBAM LIFT SERVICES LTD,112666
North East Lincolnshire Council,http://statistics.data.gov.uk/id/local-authority/00FC),Cap Dep Chief Exec,Ad Adult Serv-Hlth Improvement,Hps-Disabled Fac. Grants,Cap Grants To O/Side Sources,Cap Grants To O/Side Sources,YJ101,27/11/2017,492877,1750,CAPITAL,HANDICARE ACCESSIIBILITY LTD,102647
North East Lincolnshire Council,http://statistics.data.gov.uk/id/local-authority/00FC),Cap Dep Chief Exec,Ad Adult Serv-Hlth Improvement,Hps-Disabled Fac. Grants,Cap Grants To O/Side Sources,Cap Grants To O/Side Sources,YJ101,20/11/2017,490577,950,CAPITAL,VIC HANSEN BUILDING & JOINERY LTD,103981
North East Lincolnshire Council,http://statistics.data.gov.uk/id/local-authority/00FC),Cap Dep Chief Exec,Ad Adult Serv-Hlth Improvement,Hps-Disabled Fac. Grants,Cap Grants To O/Side Sources,Cap Grants To O/Side Sources,YJ101,16/11/2017,490753,1795,CAPITAL,HANDICARE ACCESSIIBILITY LTD,102647
North East Lincolnshire Council,http://statistics.data.gov.uk/id/local-authority/00FC),Cap Dep Chief Exec,Ad Adult Serv-Hlth Improvement,Hps-Disabled Fac. Grants,Cap Grants To O/Side Sources,Cap Grants To O/Side Sources,YJ101,20/11/2017,490814,2660,CAPITAL,CHURCH VIEW RESIDENTIAL HOME,100358
North East Lincolnshire Council,http://statistics.data.gov.uk/id/local-authority/00FC),Cap Dep Chief Exec,Ad Adult Serv-Hlth Improvement,Housing Assist Grants And Loan,Cap Grants To O/Side Sources,Cap Grants To O/Side Sources,YJ101,06/11/2017,488765,2007.87,CAPITAL,ENGIE SERVICES LTD,133267
North East Lincolnshire Council,http://statistics.data.gov.uk/id/local-authority/00FC),Cap Dep Chief Exec,Ad Adult Serv-Hlth Improvement,Housing Assist Grants And Loan,Cap Grants To O/Side Sources,Cap Grants To O/Side Sources,YJ101,06/11/2017,489133,5420.89,CAPITAL,DEAN WILLETT & SONS,101982
North East Lincolnshire Council,http://statistics.data.gov.uk/id/local-authority/00FC),Cap Dep Chief Exec,Ad Adult Serv-Hlth Improvement,Housing Assist Grants And Loan,Cap Grants To O/Side Sources,Cap Grants To O/Side Sources,YJ101,23/11/2017,491702,5576.97,CAPITAL,DEAN WILLETT & SONS,101982
North East Lincolnshire Council,http://statistics.data.gov.uk/id/local-authority/00FC),Cap Dep Chief Exec,Ad Adult Serv-Hlth Improvement,Housing Assist Grants And Loan,Cap Grants To O/Side Sources,Cap Grants To O/Side Sources,YJ101,30/11/2017,493480,1850,CAPITAL,ARDENT MANAGEMENT LIMITED,138372
North East Lincolnshire Council,http://statistics.data.gov.uk/id/local-authority/00FC),Cap Dep Chief Exec,Director Of Public Health,New Leisure Centre At Grimsby,Cap Land/Build-Build Enh Wrk,Cap Land/Build-Build Enh Wrk,YA102,06/11/2017,489119,854,CAPITAL,THE PLASTIC SURGEON LTD,138274
North East Lincolnshire Council,http://statistics.data.gov.uk/id/local-authority/00FC),Chief Executive,Director Of Finance,Backlog Maintenance,Cap Land/Build-Build Enh Wrk,Cap Land/Build-Build Enh Wrk,YA102,09/11/2017,490219,2877.81,CAPITAL,KES BUILDING MAINTENANCE LIMITED,100786
North East Lincolnshire Council,http://statistics.data.gov.uk/id/local-authority/00FC),Chief Executive,Director Of Finance,Backlog Maintenance,Cap Land/Build-Build Enh Wrk,Cap Land/Build-Build Enh Wrk,YA102,30/11/2017,493533,487,CAPITAL,LINCS ELECTRICAL SERVICES LTD,102044
North East Lincolnshire Council,http://statistics.data.gov.uk/id/local-authority/00FC),Chief Executive,Director Of Finance,Backlog Maintenance,Cap Land/Build-Build Enh Wrk,Cap Land/Build-Build Enh Wrk,YA102,30/11/2017,493199,645,CAPITAL,ETON-LINCS LIMITED,101510
North East Lincolnshire Council,http://statistics.data.gov.uk/id/local-authority/00FC),Chief Executive,Director Of Finance,Backlog Maintenance,Cap Land/Build-Build Enh Wrk,Cap Land/Build-Build Enh Wrk,YA102,09/11/2017,490218,8020,CAPITAL,LINCS ELECTRICAL SERVICES LTD,102044
North East Lincolnshire Council,http://statistics.data.gov.uk/id/local-authority/00FC),Chief Executive,Director Of Finance,Property Rationalisation Prog,Cap Land/Build-Prof Fees,Cap Land/Build-Prof Fees,YA103,02/11/2017,488099,450,CAPITAL,ENGIE SERVICES LTD,133267
North East Lincolnshire Council,http://statistics.data.gov.uk/id/local-authority/00FC),Chief Executive,Director Of Finance,Cctv East Marsh,Cap Land/Build-Build Enh Wrk,Cap Land/Build-Build Enh Wrk,YA102,09/11/2017,490265,1990,CAPITAL,MEYERTECH LTD,138564
North East Lincolnshire Council,http://statistics.data.gov.uk/id/local-authority/00FC),Chief Executive,Director Of Finance,Cctv East Marsh,Cap Land/Build-Build Enh Wrk,Cap Land/Build-Build Enh Wrk,YA102,16/11/2017,490730,520,CAPITAL,N-FORCE SECURITY SOLUTIONS LTD,105280
North East Lincolnshire Council,http://statistics.data.gov.uk/id/local-authority/00FC),Chief Executive,Director Of Finance,Dig Strat Del/Imp Civica/Edrms,Cap Veh Plt Eqp-Purchase,Cap Veh Plt Eqp-Purchase,YB101,30/11/2017,492701,11497.5,CAPITAL,CAPITA BUSINESS SERVICES LTD,102314
North East Lincolnshire Council,http://statistics.data.gov.uk/id/local-authority/00FC),Chief Executive,Director Of Finance,Dig Strat Del/Imp Civica/Edrms,Cap Veh Plt Eqp-Prof Fees,Cap Veh Plt Eqp-Prof Fees,YB103,30/11/2017,492727,4995,CAPITAL,CAPITA BUSINESS SERVICES LTD,102314
North East Lincolnshire Council,http://statistics.data.gov.uk/id/local-authority/00FC),Chief Executive,Director Of Finance,Dig Strat Del/Imp Civica/Edrms,Cap Veh Plt Eqp-Prof Fees,Cap Veh Plt Eqp-Prof Fees,YB103,13/11/2017,489966,295,CAPITAL,PUBLIC POLICY EXCHANGE LIMITED,112643
North East Lincolnshire Council,http://statistics.data.gov.uk/id/local-authority/00FC),Chief Executive,Shared Services,Ict Refresh 16-17,Cap Land/Build-Build Enh Wrk,Cap Land/Build-Build Enh Wrk,YA102,09/11/2017,489113,14568.9,CAPITAL,INSIGHT DIRECT (UK) LTD,101011
North East Lincolnshire Council,http://statistics.data.gov.uk/id/local-authority/00FC),Chief Executive,Shared Services,Ict Refresh 16-17,Cap Land/Build-Build Enh Wrk,Cap Land/Build-Build Enh Wrk,YA102,23/11/2017,491661,22057,CAPITAL,XMA LIMITED,100699
North East Lincolnshire Council,http://statistics.data.gov.uk/id/local-authority/00FC),Chief Executive,Shared Services,Ict Refresh 16-17,Cap Land/Build-Build Enh Wrk,Cap Land/Build-Build Enh Wrk,YA102,06/11/2017,488540,5790.28,CAPITAL,INSIGHT DIRECT (UK) LTD,101011
North East Lincolnshire Council,http://statistics.data.gov.uk/id/local-authority/00FC),Chief Executive,Shared Services,Ict Refresh 16-17,Cap Land/Build-Build Enh Wrk,Cap Land/Build-Build Enh Wrk,YA102,09/11/2017,489635,5790.28,CAPITAL,INSIGHT DIRECT (UK) LTD,101011
North East Lincolnshire Council,http://statistics.data.gov.uk/id/local-authority/00FC),Chief Executive,Shared Services,Ict Refresh 16-17,Cap Land/Build-Build Enh Wrk,Cap Land/Build-Build Enh Wrk,YA102,20/11/2017,491218,265.43,CAPITAL,INSIGHT DIRECT (UK) LTD,101011
North East Lincolnshire Council,http://statistics.data.gov.uk/id/local-authority/00FC),Chief Executive,Shared Services,Ict Refresh 16-17,Cap Land/Build-Build Enh Wrk,Cap Land/Build-Build Enh Wrk,YA102,27/11/2017,491571,13975.2,CAPITAL,XMA LIMITED,100699
North East Lincolnshire Council,http://statistics.data.gov.uk/id/local-authority/00FC),Chief Executive,Ad Environment,Fleet Replacement Programme,Cap Veh Plt Eqp-Purchase,Cap Veh Plt Eqp-Purchase,YB101,06/11/2017,488801,1348.23,CAPITAL,ENGIE SERVICES LTD,133267
North East Lincolnshire Council,http://statistics.data.gov.uk/id/local-authority/00FC),Chief Executive,Ad Environment,Fleet Replacement Programme,Cap Veh Plt Eqp-Purchase,Cap Veh Plt Eqp-Purchase,YB101,16/11/2017,489622,4185,CAPITAL,SIGN OF THE TIMES,100575
North East Lincolnshire Council,http://statistics.data.gov.uk/id/local-authority/00FC),Chief Executive,Director Of Economy & Growth,Local Transport Plan Schemes,Cap Infrastr-Build Enh Wrk,Cap Infrastr-Build Enh Wrk,YC102,13/11/2017,489564,2535,CAPITAL,CLUGSTON SURVEY SERVICES,105668
North East Lincolnshire Council,http://statistics.data.gov.uk/id/local-authority/00FC),Chief Executive,Director Of Economy & Growth,Local Transport Plan Schemes,Cap Infrastr-Build Enh Wrk,Cap Infrastr-Build Enh Wrk,YC102,02/11/2017,488451,1150,CAPITAL,LOCAL TRANSPORT PROJECTS LTD,121248
North East Lincolnshire Council,http://statistics.data.gov.uk/id/local-authority/00FC),Chief Executive,Director Of Economy & Growth,Local Transport Plan Schemes,Cap Land/Build-Build Enh Wrk,Cap Land/Build-Build Enh Wrk,YA102,13/11/2017,490472,447.92,CAPITAL,NORTHERN POWERGRID (YORKSHIRE) PLC,108328
North East Lincolnshire Council,http://statistics.data.gov.uk/id/local-authority/00FC),Chief Executive,Director Of Economy & Growth,Local Transport Plan Schemes,Cap Land/Build-Build Enh Wrk,Cap Land/Build-Build Enh Wrk,YA102,13/11/2017,490473,477.92,CAPITAL,NORTHERN POWERGRID (YORKSHIRE) PLC,108328
North East Lincolnshire Council,http://statistics.data.gov.uk/id/local-authority/00FC),Chief Executive,Director Of Economy & Growth,Local Transport Plan Schemes,Cap Land/Build-Build Enh Wrk,Cap Land/Build-Build Enh Wrk,YA102,09/11/2017,490287,3090,CAPITAL,J MCCANN & CO LTD,100841
North East Lincolnshire Council,http://statistics.data.gov.uk/id/local-authority/00FC),Chief Executive,Director Of Economy & Growth,Local Transport Plan Schemes,Cap Infrastr-Build Enh Wrk,Cap Infrastr-Build Enh Wrk,YC102,20/11/2017,491266,5227.33,CAPITAL,LOVE TO RIDE LTD,119407
North East Lincolnshire Council,http://statistics.data.gov.uk/id/local-authority/00FC),Chief Executive,Director Of Economy & Growth,Local Transport Plan Schemes,Cap Infrastr-Purchase,Cap Infrastr-Purchase,YC101,16/11/2017,487949,470,CAPITAL,NATIONWIDE DATA COLLECTION,127290
North East Lincolnshire Council,http://statistics.data.gov.uk/id/local-authority/00FC),Chief Executive,Director Of Economy & Growth,Local Transport Plan Schemes,Cap Infrastr-Prof Fees,Cap Infrastr-Prof Fees,YC103,02/11/2017,484904,2795,CAPITAL,TRACSIS TRAFFIC DATA LTD,136884
North East Lincolnshire Council,http://statistics.data.gov.uk/id/local-authority/00FC),Chief Executive,Director Of Economy & Growth,Local Transport Plan Schemes,Cap Infrastr-Prof Fees,Cap Infrastr-Prof Fees,YC103,02/11/2017,487062,780,CAPITAL,NATIONWIDE DATA COLLECTION,127290
North East Lincolnshire Council,http://statistics.data.gov.uk/id/local-authority/00FC),Chief Executive,Director Of Economy & Growth,Local Transport Plan Schemes,Cap Infrastr-Prof Fees,Cap Infrastr-Prof Fees,YC103,02/11/2017,487521,9790,CAPITAL,INTELLIGENT DATA COLLECTION LTD,137877
North East Lincolnshire Council,http://statistics.data.gov.uk/id/local-authority/00FC),Chief Executive,Director Of Economy & Growth,Local Transport Plan Schemes,Cap Infrastr-Purchase,Cap Infrastr-Purchase,YC101,23/11/2017,491562,250.65,CAPITAL,NIMBUS JOURNEY INFORMATION LTD,124772
North East Lincolnshire Council,http://statistics.data.gov.uk/id/local-authority/00FC),Chief Executive,Director Of Economy & Growth,Local Transport Plan Schemes,Cap Infrastr-Build Enh Wrk,Cap Infrastr-Build Enh Wrk,YC102,09/11/2017,489605,71558.93,CAPITAL,EC SURFACING LTD,125951
North East Lincolnshire Council,http://statistics.data.gov.uk/id/local-authority/00FC),Chief Executive,Director Of Economy & Growth,Local Transport Plan Schemes,Cap Infrastr-Build Enh Wrk,Cap Infrastr-Build Enh Wrk,YC102,06/11/2017,488538,11340.29,CAPITAL,ENGIE SERVICES LTD,133267
North East Lincolnshire Council,http://statistics.data.gov.uk/id/local-authority/00FC),Chief Executive,Director Of Economy & Growth,Local Transport Plan Schemes,Cap Infrastr-Build Enh Wrk,Cap Infrastr-Build Enh Wrk,YC102,30/11/2017,492933,18511.55,CAPITAL,KIELY BROS LTD,106644
North East Lincolnshire Council,http://statistics.data.gov.uk/id/local-authority/00FC),Chief Executive,Director Of Economy & Growth,Local Transport Plan Schemes,Cap Infrastr-Build Enh Wrk,Cap Infrastr-Build Enh Wrk,YC102,06/11/2017,488535,10000,CAPITAL,ENGIE SERVICES LTD,133267
North East Lincolnshire Council,http://statistics.data.gov.uk/id/local-authority/00FC),Chief Executive,Director Of Economy & Growth,Local Transport Plan Schemes,Cap Infrastr-Purchase,Cap Infrastr-Purchase,YC101,06/11/2017,488536,1200,CAPITAL,ENGIE SERVICES LTD,133267
North East Lincolnshire Council,http://statistics.data.gov.uk/id/local-authority/00FC),Chief Executive,Director Of Economy & Growth,Local Transport Plan Schemes,Cap Infrastr-Purchase,Cap Infrastr-Purchase,YC101,27/11/2017,492229,835,CAPITAL,NATIONWIDE DATA COLLECTION,127290
North East Lincolnshire Council,http://statistics.data.gov.uk/id/local-authority/00FC),Chief Executive,Director Of Economy & Growth,Local Transport Plan Schemes,Cap Infrastr-Build Enh Wrk,Cap Infrastr-Build Enh Wrk,YC102,06/11/2017,488534,7057.15,CAPITAL,ENGIE SERVICES LTD,133267
North East Lincolnshire Council,http://statistics.data.gov.uk/id/local-authority/00FC),Chief Executive,Director Of Economy & Growth,Gllep Junction Improvement,Cap Land/Build-Build Enh Wrk,Cap Land/Build-Build Enh Wrk,YA102,09/11/2017,489951,71806.5,CAPITAL,CADENT GAS LIMITED,138392
North East Lincolnshire Council,http://statistics.data.gov.uk/id/local-authority/00FC),Chief Executive,Director Of Economy & Growth,Gllep Junction Improvement,Cap Land/Build-Build Enh Wrk,Cap Land/Build-Build Enh Wrk,YA102,09/11/2017,489951,14361.3,CAPITAL,CADENT GAS LIMITED,138392
North East Lincolnshire Council,http://statistics.data.gov.uk/id/local-authority/00FC),Chief Executive,Director Of Economy & Growth,Victoria Mills (Capital),Cap Land/Build-Prof Fees,Cap Land/Build-Prof Fees,YA103,20/11/2017,491494,4381.68,CAPITAL,ENGIE SERVICES LTD,133267
North East Lincolnshire Council,http://statistics.data.gov.uk/id/local-authority/00FC),Chief Executive,Director Of Economy & Growth,Cartergate Office Development,Cap Infrastr-Build Enh Wrk,Cap Infrastr-Build Enh Wrk,YC102,06/11/2017,488006,739,CAPITAL,ARH TUCKER & SONS (CLEETHORPES) LTD,119918
North East Lincolnshire Council,http://statistics.data.gov.uk/id/local-authority/00FC),Chief Executive,Director Of Economy & Growth,Shiip Scheme,Cap Infrastr-Prof Fees,Cap Infrastr-Prof Fees,YC103,02/11/2017,488885,1886.72,CAPITAL,EKOSGEN,138393
North East Lincolnshire Council,http://statistics.data.gov.uk/id/local-authority/00FC),Chief Executive,Director Of Economy & Growth,Shiip Scheme,Cap Infrastr-Prof Fees,Cap Infrastr-Prof Fees,YC103,02/11/2017,488537,4543.5,CAPITAL,ENGIE SERVICES LTD,133267
North East Lincolnshire Council,http://statistics.data.gov.uk/id/local-authority/00FC),Chief Executive,Director Of Economy & Growth,Shiip Scheme,Cap Infrastr-Prof Fees,Cap Infrastr-Prof Fees,YC103,27/11/2017,492192,1526.4,CAPITAL,NATURAL ENGLAND,133104
North East Lincolnshire Council,http://statistics.data.gov.uk/id/local-authority/00FC),Chief Executive,Director Of Economy & Growth,Catch Offshore,Cap Infrastr-Prof Fees,Cap Infrastr-Prof Fees,YC103,09/11/2017,489952,23898,CAPITAL,INTEGRATED UTILITY SERVICES,136462
North East Lincolnshire Council,http://statistics.data.gov.uk/id/local-authority/00FC),Chief Executive,Director Of Economy & Growth,Unlocking The Potential,Cap Infrastr-Prof Fees,Cap Infrastr-Prof Fees,YC103,02/11/2017,488885,1886.72,CAPITAL,EKOSGEN,138393
North East Lincolnshire Council,http://statistics.data.gov.uk/id/local-authority/00FC),Chief Executive,Director Of Economy & Growth,Scartho Road Hosp Junc Imp,Cap Infrastr-Build Enh Wrk,Cap Infrastr-Build Enh Wrk,YC102,16/11/2017,489002,441.4,CAPITAL,VIRGIN MEDIA LTD,101831
North East Lincolnshire Council,http://statistics.data.gov.uk/id/local-authority/00FC),Chief Executive,Director Of Economy & Growth,Scartho Road Hosp Junc Imp,Cap Infrastr-Build Enh Wrk,Cap Infrastr-Build Enh Wrk,YC102,06/11/2017,489125,33008.51,CAPITAL,BRITISH TELECOMMUNICATIONS PLC,100974
North East Lincolnshire Council,http://statistics.data.gov.uk/id/local-authority/00FC),Chief Executive,Director Of Economy & Growth,Coastal Communities Fund,Cap Infrastr-Build Enh Wrk,Cap Infrastr-Build Enh Wrk,YC102,06/11/2017,488539,45000,CAPITAL,ENGIE SERVICES LTD,133267
North East Lincolnshire Council,http://statistics.data.gov.uk/id/local-authority/00FC),Chief Executive,Ad Environment,Grounds & Bereavement Services,Grounds Maintenance Costs,Grounds Maintenance,GJ101,20/11/2017,491534,403.28,REVENUE,BENNETTS TIMBER,101869
North East Lincolnshire Council,http://statistics.data.gov.uk/id/local-authority/00FC),Chief Executive,Ad Environment,Grounds & Bereavement Services,Grounds Maintenance Costs,Grounds Maintenance,GJ101,02/11/2017,488837,325,REVENUE,JAMES COLES & SONS LTD,100758
North East Lincolnshire Council,http://statistics.data.gov.uk/id/local-authority/00FC),Chief Executive,Ad Environment,Grounds & Bereavement Services,Equip / Furniture / Materials,Equipment - Maintenance,LA104,06/11/2017,489147,267.71,REVENUE,ANKEF CLEANING SYSTEMS,101192
North East Lincolnshire Council,http://statistics.data.gov.uk/id/local-authority/00FC),Chief Executive,Ad Environment,Grounds & Bereavement Services,Equip / Furniture / Materials,Equipment - Purchase,LA101,20/11/2017,491302,675.5,REVENUE,THE COLUMBARIA COMPANY,100621
North East Lincolnshire Council,http://statistics.data.gov.uk/id/local-authority/00FC),Chief Executive,Ad Environment,Grounds & Bereavement Services,Equip / Furniture / Materials,Equipment - Purchase,LA101,20/11/2017,491569,696.93,REVENUE,F G MARSHALL LTD,100549
North East Lincolnshire Council,http://statistics.data.gov.uk/id/local-authority/00FC),Chief Executive,Ad Environment,Grounds & Bereavement Services,Equip / Furniture / Materials,Equipment - Purchase,LA101,07/11/2017,488608,435,REVENUE,THE COLUMBARIA COMPANY,100621
North East Lincolnshire Council,http://statistics.data.gov.uk/id/local-authority/00FC),Chief Executive,Ad Environment,Grounds & Bereavement Services,Equip / Furniture / Materials,Equipment - Purchase,LA101,20/11/2017,490596,524.5,REVENUE,THE COLUMBARIA COMPANY,100621
North East Lincolnshire Council,http://statistics.data.gov.uk/id/local-authority/00FC),Chief Executive,Ad Environment,Grounds & Bereavement Services,Equip / Furniture / Materials,Equipment - Purchase,LA101,27/11/2017,492233,423.02,REVENUE,BRIDGE INSURANCE BROKERS LTD,128411
North East Lincolnshire Council,http://statistics.data.gov.uk/id/local-authority/00FC),Chief Executive,Ad Environment,Grounds & Bereavement Services,Rep Alterations Maint Building,Buildings - Repairs And Maint,GA102,30/11/2017,493438,600,REVENUE,BSB SERVICES,102305
North East Lincolnshire Council,http://statistics.data.gov.uk/id/local-authority/00FC),Chief Executive,Ad Environment,Grounds & Bereavement Services,Rep Alterations Maint Building,Buildings - Repairs And Maint,GA102,30/11/2017,493398,350,REVENUE,BSB SERVICES,102305
North East Lincolnshire Council,http://statistics.data.gov.uk/id/local-authority/00FC),Chief Executive,Ad Environment,Grounds & Bereavement Services,Rep Alterations Maint Building,Buildings - Repairs And Maint,GA102,30/11/2017,493396,380,REVENUE,BSB SERVICES,102305
North East Lincolnshire Council,http://statistics.data.gov.uk/id/local-authority/00FC),Chief Executive,Ad Environment,Grounds & Bereavement Services,Rep Alterations Maint Building,Buildings - Repairs And Maint,GA102,30/11/2017,493395,690,REVENUE,BSB SERVICES,102305
North East Lincolnshire Council,http://statistics.data.gov.uk/id/local-authority/00FC),Chief Executive,Ad Environment,Grounds & Bereavement Services,Grounds Maintenance Costs,Grounds Maintenance,GJ101,27/11/2017,490597,2550,REVENUE,J MELTON TREE SERVICES LTD,101809
North East Lincolnshire Council,http://statistics.data.gov.uk/id/local-authority/00FC),Chief Executive,Ad Environment,Grounds & Bereavement Services,Grounds Maintenance Costs,Grounds Maintenance,GJ101,16/11/2017,489985,800,REVENUE,J MELTON TREE SERVICES LTD,101809
North East Lincolnshire Council,http://statistics.data.gov.uk/id/local-authority/00FC),Chief Executive,Ad Environment,Grounds & Bereavement Services,Grounds Maintenance Costs,Grounds Maintenance,GJ101,21/11/2017,490595,850,REVENUE,J MELTON TREE SERVICES LTD,101809
North East Lincolnshire Council,http://statistics.data.gov.uk/id/local-authority/00FC),Chief Executive,Ad Environment,Grounds & Bereavement Services,Direct Transport Costs,Vehicles - Running Costs,JA104,13/11/2017,490266,806.13,REVENUE,ALLSTAR BUSINESS SOLUTIONS LTD,108278
North East Lincolnshire Council,http://statistics.data.gov.uk/id/local-authority/00FC),Chief Executive,Ad Environment,Grounds & Bereavement Services,Equip / Furniture / Materials,Equipment - Purchase,LA101,16/11/2017,490130,9680,REVENUE,KRN HOUSE PLANTS,100540
North East Lincolnshire Council,http://statistics.data.gov.uk/id/local-authority/00FC),Chief Executive,Ad Environment,Grounds & Bereavement Services,Equip / Furniture / Materials,Equipment - Purchase,LA101,02/11/2017,488839,1000,REVENUE,TILLERS TURF LTD,112229
North East Lincolnshire Council,http://statistics.data.gov.uk/id/local-authority/00FC),Chief Executive,Ad Environment,Grounds & Bereavement Services,Equip / Furniture / Materials,Equipment - Purchase,LA101,07/11/2017,487937,703.85,REVENUE,BRIANPLANT (HUMBERSIDE) LTD,100583
North East Lincolnshire Council,http://statistics.data.gov.uk/id/local-authority/00FC),Chief Executive,Ad Environment,Grounds & Bereavement Services,Equip / Furniture / Materials,Equipment - Purchase,LA101,30/11/2017,492736,1320,REVENUE,FLEET LINE MARKERS LIMITED,100595
North East Lincolnshire Council,http://statistics.data.gov.uk/id/local-authority/00FC),Chief Executive,Ad Environment,Grounds & Bereavement Services,Equip / Furniture / Materials,Equipment - Purchase,LA101,20/11/2017,487224,369,REVENUE,RAINER SECURITY PRODUCTS LTD,100623
North East Lincolnshire Council,http://statistics.data.gov.uk/id/local-authority/00FC),Chief Executive,Ad Environment,Grounds & Bereavement Services,Equip / Furniture / Materials,Equipment - Purchase,LA101,30/11/2017,493582,1744,REVENUE,SHERRIFF AMENITY,101298
North East Lincolnshire Council,http://statistics.data.gov.uk/id/local-authority/00FC),Chief Executive,Ad Environment,Grounds & Bereavement Services,Clothes Uniforms And Laundry,Protective Clothing,LC101,27/11/2017,492050,605.58,REVENUE,SMI,134794
North East Lincolnshire Council,http://statistics.data.gov.uk/id/local-authority/00FC),Chief Executive,Ad Environment,Grounds & Bereavement Services,Communications And Computing,Telephones,LF112,16/11/2017,490755,324,REVENUE,RADPHONE LTD,101671
North East Lincolnshire Council,http://statistics.data.gov.uk/id/local-authority/00FC),Chief Executive,Ad Environment,Grounds & Bereavement Services,Private Contractors,Contract Payments,PH105,27/11/2017,492310,12500,REVENUE,IMMINGHAM TOWN COUNCIL,101597
North East Lincolnshire Council,http://statistics.data.gov.uk/id/local-authority/00FC),Chief Executive,Ad Environment,Grounds & Bereavement Services,Private Contractors,Third Party Prov - Private,PH101,16/11/2017,489052,1270,REVENUE,HARROQUIP PUMP SYSTEMS,103412
North East Lincolnshire Council,http://statistics.data.gov.uk/id/local-authority/00FC),Chief Executive,Ad Environment,Grounds & Bereavement Services,Private Contractors,Third Party Prov - Private,PH101,20/11/2017,491315,1706.25,REVENUE,GRIMSBY OPERATIONS LTD,101116
North East Lincolnshire Council,http://statistics.data.gov.uk/id/local-authority/00FC),Chief Executive,Ad Environment,Grounds & Bereavement Services,Consultancy,Consultancy - Curriculum,PL102,02/11/2017,489109,1000,REVENUE,CHARLOTTE'S FOREST SCHOOL,129562
North East Lincolnshire Council,http://statistics.data.gov.uk/id/local-authority/00FC),Chief Executive,Ad Environment,Grounds & Bereavement Services,Consultancy,Consultancy - Curriculum,PL102,02/11/2017,489115,1140,REVENUE,MICHELLE BAYNHAM,125024
North East Lincolnshire Council,http://statistics.data.gov.uk/id/local-authority/00FC),Chief Executive,Ad Environment,Grounds & Bereavement Services,Rep Alterations Maint Building,Buildings - Repairs And Maint,GA102,20/11/2017,490601,1170.26,REVENUE,BCJ CONSTRUCTION LTD,112224
North East Lincolnshire Council,http://statistics.data.gov.uk/id/local-authority/00FC),Chief Executive,Ad Environment,Grounds & Bereavement Services,Rep Alterations Maint Building,Buildings - Repairs And Maint,GA102,16/11/2017,490490,600,REVENUE,BCJ CONSTRUCTION LTD,112224
North East Lincolnshire Council,http://statistics.data.gov.uk/id/local-authority/00FC),Chief Executive,Ad Environment,Grounds & Bereavement Services,Rep Alterations Maint Building,Buildings - Repairs And Maint,GA102,20/11/2017,491501,1037.28,REVENUE,MARINER GROUNDWORK,132919
North East Lincolnshire Council,http://statistics.data.gov.uk/id/local-authority/00FC),Chief Executive,Ad Environment,Garage & Fleet Strategy,Direct Transport Costs,Vehicles - Repairs And Maint,JA105,06/11/2017,488095,523.77,REVENUE,B A BUSH & SON LTD,101828
North East Lincolnshire Council,http://statistics.data.gov.uk/id/local-authority/00FC),Chief Executive,Ad Environment,Garage & Fleet Strategy,Direct Transport Costs,Vehicles - Repairs And Maint,JA105,06/11/2017,488092,7832.26,REVENUE,FLEET FACTORS LTD,100886
North East Lincolnshire Council,http://statistics.data.gov.uk/id/local-authority/00FC),Chief Executive,Ad Environment,Garage & Fleet Strategy,Direct Transport Costs,Vehicles - Repairs And Maint,JA105,02/11/2017,488851,335,REVENUE,FLEET PARTS LIMITED,106529
North East Lincolnshire Council,http://statistics.data.gov.uk/id/local-authority/00FC),Chief Executive,Ad Environment,Garage & Fleet Strategy,Direct Transport Costs,Vehicles - Repairs And Maint,JA105,13/11/2017,489623,1925,REVENUE,SIGN OF THE TIMES,100575
North East Lincolnshire Council,http://statistics.data.gov.uk/id/local-authority/00FC),Chief Executive,Ad Environment,Garage & Fleet Strategy,Direct Transport Costs,Vehicles - Repairs And Maint,JA105,06/11/2017,489135,559.35,REVENUE,WR MATERIAL HANDLING LTD,101388
North East Lincolnshire Council,http://statistics.data.gov.uk/id/local-authority/00FC),Chief Executive,Ad Environment,Garage & Fleet Strategy,Direct Transport Costs,Vehicles - Repairs And Maint,JA105,06/11/2017,489138,432.32,REVENUE,WR MATERIAL HANDLING LTD,101388
North East Lincolnshire Council,http://statistics.data.gov.uk/id/local-authority/00FC),Chief Executive,Ad Environment,Garage & Fleet Strategy,Direct Transport Costs,Vehicles - Repairs And Maint,JA105,06/11/2017,489097,579.14,REVENUE,B A BUSH & SON LTD,101828
North East Lincolnshire Council,http://statistics.data.gov.uk/id/local-authority/00FC),Chief Executive,Ad Environment,Garage & Fleet Strategy,Direct Transport Costs,Vehicles - Repairs And Maint,JA105,06/11/2017,489098,289.57,REVENUE,B A BUSH & SON LTD,101828
North East Lincolnshire Council,http://statistics.data.gov.uk/id/local-authority/00FC),Chief Executive,Ad Environment,Garage & Fleet Strategy,Direct Transport Costs,Vehicles - Repairs And Maint,JA105,06/11/2017,489099,430,REVENUE,B A BUSH & SON LTD,101828
North East Lincolnshire Council,http://statistics.data.gov.uk/id/local-authority/00FC),Chief Executive,Ad Environment,Garage & Fleet Strategy,Direct Transport Costs,Vehicles - Repairs And Maint,JA105,09/11/2017,489614,1566.58,REVENUE,FLEET FACTORS LTD,100886
North East Lincolnshire Council,http://statistics.data.gov.uk/id/local-authority/00FC),Chief Executive,Ad Environment,Garage & Fleet Strategy,Direct Transport Costs,Vehicles - Repairs And Maint,JA105,13/11/2017,489616,3805.83,REVENUE,FLEET FACTORS LTD,100886
North East Lincolnshire Council,http://statistics.data.gov.uk/id/local-authority/00FC),Chief Executive,Ad Environment,Garage & Fleet Strategy,Direct Transport Costs,Vehicles - Repairs And Maint,JA105,13/11/2017,489618,323.78,REVENUE,FLEET FACTORS LTD,100886
North East Lincolnshire Council,http://statistics.data.gov.uk/id/local-authority/00FC),Chief Executive,Ad Environment,Garage & Fleet Strategy,Direct Transport Costs,Vehicles - Repairs And Maint,JA105,09/11/2017,489619,318.48,REVENUE,B A BUSH & SON LTD,101828
North East Lincolnshire Council,http://statistics.data.gov.uk/id/local-authority/00FC),Chief Executive,Ad Environment,Garage & Fleet Strategy,Direct Transport Costs,Vehicles - Repairs And Maint,JA105,09/11/2017,490161,430,REVENUE,B A BUSH & SON LTD,101828
North East Lincolnshire Council,http://statistics.data.gov.uk/id/local-authority/00FC),Chief Executive,Ad Environment,Garage & Fleet Strategy,Direct Transport Costs,Vehicles - Repairs And Maint,JA105,09/11/2017,490145,666.2,REVENUE,B A BUSH & SON LTD,101828
North East Lincolnshire Council,http://statistics.data.gov.uk/id/local-authority/00FC),Chief Executive,Ad Environment,Garage & Fleet Strategy,Direct Transport Costs,Vehicles - Repairs And Maint,JA105,09/11/2017,490146,431,REVENUE,B A BUSH & SON LTD,101828
North East Lincolnshire Council,http://statistics.data.gov.uk/id/local-authority/00FC),Chief Executive,Ad Environment,Garage & Fleet Strategy,Direct Transport Costs,Vehicles - Repairs And Maint,JA105,09/11/2017,490135,1048.43,REVENUE,FLEET FACTORS LTD,100886
North East Lincolnshire Council,http://statistics.data.gov.uk/id/local-authority/00FC),Chief Executive,Ad Environment,Garage & Fleet Strategy,Direct Transport Costs,Vehicles - Repairs And Maint,JA105,09/11/2017,490136,871.07,REVENUE,FLEET FACTORS LTD,100886
North East Lincolnshire Council,http://statistics.data.gov.uk/id/local-authority/00FC),Chief Executive,Ad Environment,Garage & Fleet Strategy,Direct Transport Costs,Vehicles - Repairs And Maint,JA105,09/11/2017,490137,312.08,REVENUE,FLEET FACTORS LTD,100886
North East Lincolnshire Council,http://statistics.data.gov.uk/id/local-authority/00FC),Chief Executive,Ad Environment,Garage & Fleet Strategy,Direct Transport Costs,Vehicles - Repairs And Maint,JA105,09/11/2017,490138,2465.25,REVENUE,FLEET FACTORS LTD,100886
North East Lincolnshire Council,http://statistics.data.gov.uk/id/local-authority/00FC),Chief Executive,Ad Environment,Garage & Fleet Strategy,Direct Transport Costs,Vehicles - Repairs And Maint,JA105,27/11/2017,491633,430,REVENUE,B A BUSH & SON LTD,101828
North East Lincolnshire Council,http://statistics.data.gov.uk/id/local-authority/00FC),Chief Executive,Ad Environment,Garage & Fleet Strategy,Direct Transport Costs,Vehicles - Repairs And Maint,JA105,27/11/2017,491635,430,REVENUE,B A BUSH & SON LTD,101828
North East Lincolnshire Council,http://statistics.data.gov.uk/id/local-authority/00FC),Chief Executive,Ad Environment,Garage & Fleet Strategy,Direct Transport Costs,Vehicles - Repairs And Maint,JA105,27/11/2017,491636,430,REVENUE,B A BUSH & SON LTD,101828
North East Lincolnshire Council,http://statistics.data.gov.uk/id/local-authority/00FC),Chief Executive,Ad Environment,Garage & Fleet Strategy,Direct Transport Costs,Vehicles - Repairs And Maint,JA105,23/11/2017,492269,2073.34,REVENUE,FLEET FACTORS LTD,100886
North East Lincolnshire Council,http://statistics.data.gov.uk/id/local-authority/00FC),Chief Executive,Ad Environment,Garage & Fleet Strategy,Direct Transport Costs,Vehicles - Repairs And Maint,JA105,23/11/2017,492238,2535.44,REVENUE,FLEET FACTORS LTD,100886
North East Lincolnshire Council,http://statistics.data.gov.uk/id/local-authority/00FC),Chief Executive,Ad Environment,Garage & Fleet Strategy,Direct Transport Costs,Vehicles - Repairs And Maint,JA105,30/11/2017,492921,341.59,REVENUE,FLEET FACTORS LTD,100886
North East Lincolnshire Council,http://statistics.data.gov.uk/id/local-authority/00FC),Chief Executive,Ad Environment,Garage & Fleet Strategy,Direct Transport Costs,Vehicles - Repairs And Maint,JA105,30/11/2017,492922,1116.97,REVENUE,FLEET FACTORS LTD,100886
North East Lincolnshire Council,http://statistics.data.gov.uk/id/local-authority/00FC),Chief Executive,Ad Environment,Garage & Fleet Strategy,Direct Transport Costs,Vehicles - Repairs And Maint,JA105,30/11/2017,492962,3778.23,REVENUE,FLEET FACTORS LTD,100886
North East Lincolnshire Council,http://statistics.data.gov.uk/id/local-authority/00FC),Chief Executive,Ad Environment,Garage & Fleet Strategy,Direct Transport Costs,Vehicles - Repairs And Maint,JA105,30/11/2017,492915,430,REVENUE,B A BUSH & SON LTD,101828
North East Lincolnshire Council,http://statistics.data.gov.uk/id/local-authority/00FC),Chief Executive,Ad Environment,Garage & Fleet Strategy,Direct Transport Costs,Vehicles - Repairs And Maint,JA105,30/11/2017,492917,430,REVENUE,B A BUSH & SON LTD,101828
North East Lincolnshire Council,http://statistics.data.gov.uk/id/local-authority/00FC),Chief Executive,Ad Environment,Garage & Fleet Strategy,Equip / Furniture / Materials,Equipment - Maintenance,LA104,09/11/2017,489611,273.42,REVENUE,ENERGAS LIMITED,129000
North East Lincolnshire Council,http://statistics.data.gov.uk/id/local-authority/00FC),Chief Executive,Ad Environment,Garage & Fleet Strategy,Clothes Uniforms And Laundry,Laundry,LC103,06/11/2017,489131,347.84,REVENUE,JOHNSONS APPARELMASTER,100810
North East Lincolnshire Council,http://statistics.data.gov.uk/id/local-authority/00FC),Chief Executive,Ad Environment,Garage & Fleet Strategy,Grants And Subscriptions,Subscriptions,LJ101,09/11/2017,489613,982,REVENUE,FREIGHT TRANSPORT ASSOCIATION,101027
North East Lincolnshire Council,http://statistics.data.gov.uk/id/local-authority/00FC),Chief Executive,Ad Environment,Street Cleansing,Equip / Furniture / Materials,Equipment - Purchase,LA101,20/11/2017,491611,1958.4,REVENUE,DANIELS HEALTHCARE LTD,105859
North East Lincolnshire Council,http://statistics.data.gov.uk/id/local-authority/00FC),Chief Executive,Ad Environment,Street Cleansing,Equip / Furniture / Materials,Equipment - Purchase,LA101,16/11/2017,489632,1611,REVENUE,CROMWELL POLYTHENE LTD,101183
North East Lincolnshire Council,http://statistics.data.gov.uk/id/local-authority/00FC),Chief Executive,Ad Environment,Street Cleansing,Private Contractors,Contract Payments,PH105,27/11/2017,492310,7000,REVENUE,IMMINGHAM TOWN COUNCIL,101597
North East Lincolnshire Council,http://statistics.data.gov.uk/id/local-authority/00FC),Chief Executive,Ad Environment,Street Cleansing,Private Contractors,Third Party Prov - Private,PH101,23/11/2017,491316,595.51,REVENUE,HEALTHCARE ENVIRONMENTAL SERVICES LTD,137118
North East Lincolnshire Council,http://statistics.data.gov.uk/id/local-authority/00FC),Chief Executive,Ad Environment,Waste Services,Communications And Computing,Computer S/Ware - Maintenance,LF102,23/11/2017,490780,1900,REVENUE,MAYRISE LIMITED (T/A YOTTA),101670
North East Lincolnshire Council,http://statistics.data.gov.uk/id/local-authority/00FC),Chief Executive,Ad Environment,Waste Services,Private Contractors,Third Party Prov - Private,PH101,16/11/2017,483224,8930.5,REVENUE,MGB,101544
North East Lincolnshire Council,http://statistics.data.gov.uk/id/local-authority/00FC),Chief Executive,Ad Environment,Waste Services,Private Contractors,Third Party Prov - Private,PH101,16/11/2017,489136,18936,REVENUE,MGB,101544
North East Lincolnshire Council,http://statistics.data.gov.uk/id/local-authority/00FC),Chief Executive,Ad Environment,Waste Services,Private Contractors,Third Party Prov - Private,PH101,09/11/2017,488571,18936,REVENUE,MGB,101544
North East Lincolnshire Council,http://statistics.data.gov.uk/id/local-authority/00FC),Chief Executive,Ad Environment,Waste Services,Private Contractors,Third Party Prov - Private,PH101,07/11/2017,488103,13998.6,REVENUE,STRAIGHT MANUFACTURING LTD,134185
North East Lincolnshire Council,http://statistics.data.gov.uk/id/local-authority/00FC),Chief Executive,Ad Environment,Waste Services,Private Contractors,Third Party Prov - Private,PH101,07/11/2017,488078,1500,REVENUE,FOREFRONT TRAINING LTD,105501
North East Lincolnshire Council,http://statistics.data.gov.uk/id/local-authority/00FC),Chief Executive,Ad Environment,Waste Services,Private Contractors,Third Party Prov - Private,PH101,27/11/2017,491709,407,REVENUE,ESE LTD,106583
North East Lincolnshire Council,http://statistics.data.gov.uk/id/local-authority/00FC),Chief Executive,Ad Environment,Waste Services,Private Contractors,Third Party Prov - Private,PH101,27/11/2017,491709,586,REVENUE,ESE LTD,106583
North East Lincolnshire Council,http://statistics.data.gov.uk/id/local-authority/00FC),Chief Executive,Ad Environment,Waste Services,Private Contractors,Third Party Prov - Private,PH101,21/11/2017,491310,2237.2,REVENUE,CORAL PRODUCTS PLC,138563
North East Lincolnshire Council,http://statistics.data.gov.uk/id/local-authority/00FC),Chief Executive,Ad Environment,Waste Disposal And Strategy,Private Contractors,Contract Payments,PH105,21/11/2017,491765,REDACTED COMMERCIALLY SENSITIVE,REVENUE,NEWLINCS DEVELOPMENT LTD,101125
North East Lincolnshire Council,http://statistics.data.gov.uk/id/local-authority/00FC),Chief Executive,Ad Environment,Waste Disposal And Strategy,Private Contractors,Contract Payments Landfill Tax,PH106,21/11/2017,491765,REDACTED COMMERCIALLY SENSITIVE,REVENUE,NEWLINCS DEVELOPMENT LTD,101125
North East Lincolnshire Council,http://statistics.data.gov.uk/id/local-authority/00FC),Chief Executive,Ad Environment,Community Protection,Private Contractors,Third Party Prov - Private,PH101,09/11/2017,490288,3550.74,REVENUE,SANGREAT KENNELS,103270
North East Lincolnshire Council,http://statistics.data.gov.uk/id/local-authority/00FC),Chief Executive,Ad Environment,Community Protection,Private Contractors,Third Party Prov - Private,PH101,27/11/2017,492047,1565.6,REVENUE,VERITAS PROPERTY MANAGEMENT,138462
North East Lincolnshire Council,http://statistics.data.gov.uk/id/local-authority/00FC),Chief Executive,Ad Environment,Community Protection,Equip / Furniture / Materials,Equipment - Purchase,LA101,02/11/2017,488842,435.5,REVENUE,ENGIE SERVICES LTD,133267
North East Lincolnshire Council,http://statistics.data.gov.uk/id/local-authority/00FC),Chief Executive,Ad Environment,Community Protection,Miscellaneous Expenses,Environmental/Health Analysis,LL120,02/11/2017,488796,294.31,REVENUE,EUROFINS UK 2016 LTD,134666
North East Lincolnshire Council,http://statistics.data.gov.uk/id/local-authority/00FC),Chief Executive,Ad Environment,Community Protection,Miscellaneous Expenses,Environmental/Health Analysis,LL120,28/11/2017,492872,295.34,REVENUE,EUROFINS UK 2016 LTD,134666
North East Lincolnshire Council,http://statistics.data.gov.uk/id/local-authority/00FC),Chief Executive,Ad Environment,Community Protection,Miscellaneous Expenses,Environmental/Health Analysis,LL120,30/11/2017,493551,258.29,REVENUE,EUROFINS UK 2016 LTD,134666
North East Lincolnshire Council,http://statistics.data.gov.uk/id/local-authority/00FC),Chief Executive,Ad Environment,Community Protection,Miscellaneous Expenses,Environmental/Health Analysis,LL120,06/11/2017,487243,810,REVENUE,FERA SCIENCE LTD,131671
North East Lincolnshire Council,http://statistics.data.gov.uk/id/local-authority/00FC),Chief Executive,Ad Environment,Community Protection,Miscellaneous Expenses,Environmental/Health Analysis,LL120,07/11/2017,487838,810,REVENUE,FERA SCIENCE LTD,131671
North East Lincolnshire Council,http://statistics.data.gov.uk/id/local-authority/00FC),Chief Executive,Ad Environment,Community Protection,Miscellaneous Expenses,Environmental/Health Analysis,LL120,28/11/2017,491716,995,REVENUE,TUV SUD PRODUCT SERVICE,138420
North East Lincolnshire Council,http://statistics.data.gov.uk/id/local-authority/00FC),Chief Executive,Ad Environment,Community Protection,Equip / Furniture / Materials,Equipment - Purchase,LA101,02/11/2017,489057,-24.8,REVENUE,AIR LIQUIDE UK LTD,101526
North East Lincolnshire Council,http://statistics.data.gov.uk/id/local-authority/00FC),Chief Executive,Ad Environment,Community Protection,Equip / Furniture / Materials,Equipment - Purchase,LA101,02/11/2017,489058,-24.8,REVENUE,AIR LIQUIDE UK LTD,101526
North East Lincolnshire Council,http://statistics.data.gov.uk/id/local-authority/00FC),Chief Executive,Ad Environment,Community Protection,Equip / Furniture / Materials,Equipment - Purchase,LA101,02/11/2017,489059,-24.8,REVENUE,AIR LIQUIDE UK LTD,101526
North East Lincolnshire Council,http://statistics.data.gov.uk/id/local-authority/00FC),Chief Executive,Ad Environment,Community Protection,Miscellaneous Expenses,Environmental/Health Analysis,LL120,02/11/2017,487994,513.26,REVENUE,ALS ENVIRONMENTAL LTD,138114
North East Lincolnshire Council,http://statistics.data.gov.uk/id/local-authority/00FC),Chief Executive,Ad Environment,Community Protection,Miscellaneous Expenses,Environmental/Health Analysis,LL120,30/11/2017,493576,357.26,REVENUE,ALS ENVIRONMENTAL LTD,138114
North East Lincolnshire Council,http://statistics.data.gov.uk/id/local-authority/00FC),Chief Executive,Director Of Finance,Chief Finance Officer,Print Stationery / Gen Off Exp,Printing And Stationery,LD103,06/11/2017,488601,530.32,REVENUE,CAPITA BUSINESS SERVICES LTD,102314
North East Lincolnshire Council,http://statistics.data.gov.uk/id/local-authority/00FC),Chief Executive,Director Of Finance,Chief Finance Officer,Consultancy,Consultancy,PL101,09/11/2017,490285,1725,REVENUE,SARAH BRATTAN,134910
North East Lincolnshire Council,http://statistics.data.gov.uk/id/local-authority/00FC),Chief Executive,Director Of Finance,Chief Finance Officer,Consultancy,Consultancy,PL101,09/11/2017,489990,1725,REVENUE,SARAH BRATTAN,134910
North East Lincolnshire Council,http://statistics.data.gov.uk/id/local-authority/00FC),Chief Executive,Director Of Finance,Chief Finance Officer,Consultancy,Consultancy,PL101,13/11/2017,489991,1025,REVENUE,ANTHONY P WINN ACIB,134636
North East Lincolnshire Council,http://statistics.data.gov.uk/id/local-authority/00FC),Chief Executive,Director Of Finance,Chief Finance Officer,Consultancy,Consultancy,PL101,13/11/2017,489992,1370,REVENUE,IAN GIRDLEY,137191
North East Lincolnshire Council,http://statistics.data.gov.uk/id/local-authority/00FC),Chief Executive,Director Of Finance,Chief Finance Officer,Consultancy,Consultancy,PL101,13/11/2017,489993,280,REVENUE,JANE CUSSE,135673
North East Lincolnshire Council,http://statistics.data.gov.uk/id/local-authority/00FC),Chief Executive,Director Of Finance,Chief Finance Officer,Consultancy,Consultancy,PL101,13/11/2017,490013,960.05,REVENUE,HEIDI DODSON,134908
North East Lincolnshire Council,http://statistics.data.gov.uk/id/local-authority/00FC),Chief Executive,Director Of Finance,Chief Exec & Support,Grants And Subscriptions,Subscriptions,LJ101,13/11/2017,490301,595,REVENUE,HEMMING GROUP LIMITED,104412
North East Lincolnshire Council,http://statistics.data.gov.uk/id/local-authority/00FC),Chief Executive,Director Of Finance,Chief Exec & Support,Contributions To Provisions,Contributions - Third Sector,LK102,30/11/2017,493598,10000,REVENUE,CAT ZERO LIMITED,114975
North East Lincolnshire Council,http://statistics.data.gov.uk/id/local-authority/00FC),Chief Executive,Director Of Finance,Chief Exec & Support,Miscellaneous Expenses,Hospitality,LL112,02/11/2017,488890,450,REVENUE,DELI-LICIOUS,101903
North East Lincolnshire Council,http://statistics.data.gov.uk/id/local-authority/00FC),Chief Executive,Director Of Finance,Chief Exec & Support,Miscellaneous Expenses,Other Expenses General,LL119,28/11/2017,493265,396,REVENUE,SOLACE,101967
North East Lincolnshire Council,http://statistics.data.gov.uk/id/local-authority/00FC),Chief Executive,Director Of Finance,Cfs Assets & Pc Programme,Rep Alterations Maint Building,Buildings - Repairs And Maint,GA102,02/11/2017,487952,350,REVENUE,ENGIE SERVICES LTD,133267
North East Lincolnshire Council,http://statistics.data.gov.uk/id/local-authority/00FC),Chief Executive,Director Of Finance,Facilities Management,Rep Alterations Maint Building,Buildings - Repairs And Maint,GA102,30/11/2017,493379,260.53,REVENUE,ENGIE SERVICES LTD,133267
North East Lincolnshire Council,http://statistics.data.gov.uk/id/local-authority/00FC),Chief Executive,Director Of Finance,Facilities Management,Rep Alterations Maint Building,Buildings - Repairs And Maint,GA102,30/11/2017,493379,611.1,REVENUE,ENGIE SERVICES LTD,133267
North East Lincolnshire Council,http://statistics.data.gov.uk/id/local-authority/00FC),Chief Executive,Director Of Finance,Facilities Management,Rep Alterations Maint Building,Buildings - Repairs And Maint,GA102,30/11/2017,493379,767.5,REVENUE,ENGIE SERVICES LTD,133267
North East Lincolnshire Council,http://statistics.data.gov.uk/id/local-authority/00FC),Chief Executive,Director Of Finance,Facilities Management,Rep Alterations Maint Building,Buildings - Repairs And Maint,GA102,30/11/2017,493379,400,REVENUE,ENGIE SERVICES LTD,133267
North East Lincolnshire Council,http://statistics.data.gov.uk/id/local-authority/00FC),Chief Executive,Director Of Finance,Facilities Management,Rep Alterations Maint Building,Buildings - Repairs And Maint,GA102,30/11/2017,493379,320,REVENUE,ENGIE SERVICES LTD,133267
North East Lincolnshire Council,http://statistics.data.gov.uk/id/local-authority/00FC),Chief Executive,Director Of Finance,Facilities Management,Rep Alterations Maint Building,Buildings - Repairs And Maint,GA102,30/11/2017,493379,260,REVENUE,ENGIE SERVICES LTD,133267
North East Lincolnshire Council,http://statistics.data.gov.uk/id/local-authority/00FC),Chief Executive,Director Of Finance,Facilities Management,Cleaning And Domestic Supplies,Cleaning - Services,GH102,02/11/2017,489078,262,REVENUE,A NICOLL & SON LTD,100694
North East Lincolnshire Council,http://statistics.data.gov.uk/id/local-authority/00FC),Chief Executive,Director Of Finance,Facilities Management,Cleaning And Domestic Supplies,Cleaning - Services,GH102,28/11/2017,492054,628.65,REVENUE,FUTURE CLEANING SERVICES LTD,102557
North East Lincolnshire Council,http://statistics.data.gov.uk/id/local-authority/00FC),Chief Executive,Director Of Finance,Facilities Management,Rep Alterations Maint Building,Buildings - Repairs And Maint,GA102,30/11/2017,493374,260,REVENUE,ENGIE SERVICES LTD,133267
North East Lincolnshire Council,http://statistics.data.gov.uk/id/local-authority/00FC),Chief Executive,Director Of Finance,Facilities Management,Rep Alterations Maint Building,Buildings - Repairs And Maint,GA102,30/11/2017,493392,360,REVENUE,ENGIE SERVICES LTD,133267
North East Lincolnshire Council,http://statistics.data.gov.uk/id/local-authority/00FC),Chief Executive,Director Of Finance,Facilities Management,Rep Alterations Maint Building,Buildings - Repairs And Maint,GA102,30/11/2017,493392,395,REVENUE,ENGIE SERVICES LTD,133267
North East Lincolnshire Council,http://statistics.data.gov.uk/id/local-authority/00FC),Chief Executive,Director Of Finance,Facilities Management,Rep Alterations Maint Building,Buildings - Repairs And Maint,GA102,30/11/2017,493392,260,REVENUE,ENGIE SERVICES LTD,133267
North East Lincolnshire Council,http://statistics.data.gov.uk/id/local-authority/00FC),Chief Executive,Director Of Finance,Facilities Management,Rep Alterations Maint Building,Buildings - Repairs And Maint,GA102,30/11/2017,493393,448,REVENUE,ENGIE SERVICES LTD,133267
North East Lincolnshire Council,http://statistics.data.gov.uk/id/local-authority/00FC),Chief Executive,Director Of Finance,Facilities Management,Rep Alterations Maint Building,Buildings - Repairs And Maint,GA102,30/11/2017,493393,568.91,REVENUE,ENGIE SERVICES LTD,133267
North East Lincolnshire Council,http://statistics.data.gov.uk/id/local-authority/00FC),Chief Executive,Director Of Finance,Facilities Management,Rep Alterations Maint Building,Buildings - Repairs And Maint,GA102,30/11/2017,493393,260,REVENUE,ENGIE SERVICES LTD,133267
North East Lincolnshire Council,http://statistics.data.gov.uk/id/local-authority/00FC),Chief Executive,Director Of Finance,Facilities Management,Energy Costs,Electricity,GB102,30/11/2017,493532,-265.81,REVENUE,NPOWER LIMITED,101414
North East Lincolnshire Council,http://statistics.data.gov.uk/id/local-authority/00FC),Chief Executive,Director Of Finance,Facilities Management,Cleaning And Domestic Supplies,Cleaning - Services,GH102,30/11/2017,493462,636.3,REVENUE,FOR UNDER FIVES LTD,100647
North East Lincolnshire Council,http://statistics.data.gov.uk/id/local-authority/00FC),Chief Executive,Director Of Finance,Facilities Management,Cleaning And Domestic Supplies,Cleaning - Services,GH102,23/11/2017,492055,634.28,REVENUE,FOR UNDER FIVES LTD,100647
North East Lincolnshire Council,http://statistics.data.gov.uk/id/local-authority/00FC),Chief Executive,Director Of Finance,Facilities Management,Rep Alterations Maint Building,Buildings - Repairs And Maint,GA102,30/11/2017,493372,747.6,REVENUE,ENGIE SERVICES LTD,133267
North East Lincolnshire Council,http://statistics.data.gov.uk/id/local-authority/00FC),Chief Executive,Director Of Finance,Facilities Management,Rep Alterations Maint Building,Buildings - Repairs And Maint,GA102,30/11/2017,493372,260,REVENUE,ENGIE SERVICES LTD,133267
North East Lincolnshire Council,http://statistics.data.gov.uk/id/local-authority/00FC),Chief Executive,Director Of Finance,Facilities Management,Rep Alterations Maint Building,Buildings - Repairs And Maint,GA102,30/11/2017,493384,509.28,REVENUE,ENGIE SERVICES LTD,133267
North East Lincolnshire Council,http://statistics.data.gov.uk/id/local-authority/00FC),Chief Executive,Director Of Finance,Facilities Management,Rep Alterations Maint Building,Buildings - Repairs And Maint,GA102,30/11/2017,493384,260,REVENUE,ENGIE SERVICES LTD,133267
North East Lincolnshire Council,http://statistics.data.gov.uk/id/local-authority/00FC),Chief Executive,Director Of Finance,Facilities Management,Rep Alterations Maint Building,Buildings - Repairs And Maint,GA102,30/11/2017,493378,360,REVENUE,ENGIE SERVICES LTD,133267
North East Lincolnshire Council,http://statistics.data.gov.uk/id/local-authority/00FC),Chief Executive,Director Of Finance,Facilities Management,Rep Alterations Maint Building,Buildings - Repairs And Maint,GA102,30/11/2017,493378,316,REVENUE,ENGIE SERVICES LTD,133267
North East Lincolnshire Council,http://statistics.data.gov.uk/id/local-authority/00FC),Chief Executive,Director Of Finance,Facilities Management,Rep Alterations Maint Building,Buildings - Repairs And Maint,GA102,30/11/2017,493378,260,REVENUE,ENGIE SERVICES LTD,133267
North East Lincolnshire Council,http://statistics.data.gov.uk/id/local-authority/00FC),Chief Executive,Director Of Finance,Facilities Management,Energy Costs,Electricity,GB102,23/11/2017,492053,371.46,REVENUE,EASTFIELD PRIMARY ACADEMY,121907
North East Lincolnshire Council,http://statistics.data.gov.uk/id/local-authority/00FC),Chief Executive,Director Of Finance,Facilities Management,Energy Costs,Heating Fuel,GB103,30/11/2017,493371,924.7,REVENUE,EASTFIELD PRIMARY ACADEMY,121907
North East Lincolnshire Council,http://statistics.data.gov.uk/id/local-authority/00FC),Chief Executive,Director Of Finance,Facilities Management,Rep Alterations Maint Building,Buildings - Repairs And Maint,GA102,30/11/2017,493377,260,REVENUE,ENGIE SERVICES LTD,133267
North East Lincolnshire Council,http://statistics.data.gov.uk/id/local-authority/00FC),Chief Executive,Director Of Finance,Facilities Management,Cleaning And Domestic Supplies,Refuse Collection,GH104,02/11/2017,489062,1538.28,REVENUE,THRUNSCOE PRIMARY AND NURSERY ACADEMY,118749
North East Lincolnshire Council,http://statistics.data.gov.uk/id/local-authority/00FC),Chief Executive,Director Of Finance,Facilities Management,Rep Alterations Maint Building,Buildings - Repairs And Maint,GA102,30/11/2017,493381,260,REVENUE,ENGIE SERVICES LTD,133267
North East Lincolnshire Council,http://statistics.data.gov.uk/id/local-authority/00FC),Chief Executive,Director Of Finance,Facilities Management,Energy Costs,Electricity,GB102,28/11/2017,492056,580.01,REVENUE,WILLOWS PRIMARY ACADEMY,120478
North East Lincolnshire Council,http://statistics.data.gov.uk/id/local-authority/00FC),Chief Executive,Director Of Finance,Facilities Management,Cleaning And Domestic Supplies,Cleaning - Services,GH102,28/11/2017,492058,820.06,REVENUE,FUTURE CLEANING SERVICES LTD,102557
North East Lincolnshire Council,http://statistics.data.gov.uk/id/local-authority/00FC),Chief Executive,Director Of Finance,Facilities Management,Rep Alterations Maint Building,Buildings - Repairs And Maint,GA102,30/11/2017,493386,250,REVENUE,ENGIE SERVICES LTD,133267
North East Lincolnshire Council,http://statistics.data.gov.uk/id/local-authority/00FC),Chief Executive,Director Of Finance,Facilities Management,Rep Alterations Maint Building,Buildings - Repairs And Maint,GA102,30/11/2017,493386,260,REVENUE,ENGIE SERVICES LTD,133267
North East Lincolnshire Council,http://statistics.data.gov.uk/id/local-authority/00FC),Chief Executive,Director Of Finance,Facilities Management,Rep Alterations Maint Building,Buildings - Repairs And Maint,GA102,30/11/2017,493386,495,REVENUE,ENGIE SERVICES LTD,133267
North East Lincolnshire Council,http://statistics.data.gov.uk/id/local-authority/00FC),Chief Executive,Director Of Finance,Facilities Management,Energy Costs,Electricity,GB102,30/11/2017,493461,383.46,REVENUE,YARBOROUGH ACADEMY,112852
North East Lincolnshire Council,http://statistics.data.gov.uk/id/local-authority/00FC),Chief Executive,Director Of Finance,Facilities Management,Rep Alterations Maint Building,Buildings - Repairs And Maint,GA102,30/11/2017,493387,260,REVENUE,ENGIE SERVICES LTD,133267
North East Lincolnshire Council,http://statistics.data.gov.uk/id/local-authority/00FC),Chief Executive,Director Of Finance,Facilities Management,Cleaning And Domestic Supplies,Cleaning - Services,GH102,28/11/2017,492057,582.75,REVENUE,FUTURE CLEANING SERVICES LTD,102557
North East Lincolnshire Council,http://statistics.data.gov.uk/id/local-authority/00FC),Chief Executive,Director Of Finance,Facilities Management,Rep Alterations Maint Building,Buildings - Repairs And Maint,GA102,27/11/2017,492822,1000,REVENUE,COMMUNITIES ADVICE CENTRE,135962
North East Lincolnshire Council,http://statistics.data.gov.uk/id/local-authority/00FC),Chief Executive,Director Of Finance,Facilities Management,Energy Costs,Electricity,GB102,23/11/2017,492342,-10.84,REVENUE,BRITISH GAS TRADING LTD,101507
North East Lincolnshire Council,http://statistics.data.gov.uk/id/local-authority/00FC),Chief Executive,Director Of Finance,Facilities Management,Energy Costs,Electricity,GB102,23/11/2017,492357,-10.73,REVENUE,BRITISH GAS TRADING LTD,101507
North East Lincolnshire Council,http://statistics.data.gov.uk/id/local-authority/00FC),Chief Executive,Director Of Finance,Facilities Management,Energy Costs,Electricity,GB102,23/11/2017,492366,-24.64,REVENUE,BRITISH GAS TRADING LTD,101507
North East Lincolnshire Council,http://statistics.data.gov.uk/id/local-authority/00FC),Chief Executive,Director Of Finance,Facilities Management,Energy Costs,Electricity,GB102,23/11/2017,492354,-9.69,REVENUE,BRITISH GAS TRADING LTD,101507
North East Lincolnshire Council,http://statistics.data.gov.uk/id/local-authority/00FC),Chief Executive,Director Of Finance,Facilities Management,Energy Costs,Electricity,GB102,23/11/2017,492358,-10.73,REVENUE,BRITISH GAS TRADING LTD,101507
North East Lincolnshire Council,http://statistics.data.gov.uk/id/local-authority/00FC),Chief Executive,Director Of Finance,Facilities Management,Energy Costs,Electricity,GB102,23/11/2017,492359,-10.73,REVENUE,BRITISH GAS TRADING LTD,101507
North East Lincolnshire Council,http://statistics.data.gov.uk/id/local-authority/00FC),Chief Executive,Director Of Finance,Facilities Management,Energy Costs,Electricity,GB102,23/11/2017,492361,-61.54,REVENUE,BRITISH GAS TRADING LTD,101507
North East Lincolnshire Council,http://statistics.data.gov.uk/id/local-authority/00FC),Chief Executive,Director Of Finance,Facilities Management,Energy Costs,Electricity,GB102,23/11/2017,492367,-440.05,REVENUE,BRITISH GAS TRADING LTD,101507
North East Lincolnshire Council,http://statistics.data.gov.uk/id/local-authority/00FC),Chief Executive,Director Of Finance,Facilities Management,Energy Costs,Electricity,GB102,30/11/2017,493204,-43.64,REVENUE,BRITISH GAS TRADING LTD,101507
North East Lincolnshire Council,http://statistics.data.gov.uk/id/local-authority/00FC),Chief Executive,Director Of Finance,Facilities Management,Energy Costs,Electricity,GB102,23/11/2017,492360,-10.38,REVENUE,BRITISH GAS TRADING LTD,101507
North East Lincolnshire Council,http://statistics.data.gov.uk/id/local-authority/00FC),Chief Executive,Director Of Finance,Facilities Management,Energy Costs,Electricity,GB102,23/11/2017,492364,-45.63,REVENUE,BRITISH GAS TRADING LTD,101507
North East Lincolnshire Council,http://statistics.data.gov.uk/id/local-authority/00FC),Chief Executive,Director Of Finance,Facilities Management,Energy Costs,Electricity,GB102,23/11/2017,492365,-12.47,REVENUE,BRITISH GAS TRADING LTD,101507
North East Lincolnshire Council,http://statistics.data.gov.uk/id/local-authority/00FC),Chief Executive,Director Of Finance,Facilities Management,Energy Costs,Electricity,GB102,23/11/2017,492362,-10.73,REVENUE,BRITISH GAS TRADING LTD,101507
North East Lincolnshire Council,http://statistics.data.gov.uk/id/local-authority/00FC),Chief Executive,Director Of Finance,Facilities Management,Energy Costs,Electricity,GB102,23/11/2017,492368,-11.29,REVENUE,BRITISH GAS TRADING LTD,101507
North East Lincolnshire Council,http://statistics.data.gov.uk/id/local-authority/00FC),Chief Executive,Director Of Finance,Facilities Management,Energy Costs,Electricity,GB102,23/11/2017,492369,-10.86,REVENUE,BRITISH GAS TRADING LTD,101507
North East Lincolnshire Council,http://statistics.data.gov.uk/id/local-authority/00FC),Chief Executive,Director Of Finance,Facilities Management,Energy Costs,Electricity,GB102,23/11/2017,492363,-10.38,REVENUE,BRITISH GAS TRADING LTD,101507
North East Lincolnshire Council,http://statistics.data.gov.uk/id/local-authority/00FC),Chief Executive,Director Of Finance,Facilities Management,Energy Costs,Electricity,GB102,09/11/2017,489957,-129.92,REVENUE,CORONA ENERGY,133493
North East Lincolnshire Council,http://statistics.data.gov.uk/id/local-authority/00FC),Chief Executive,Director Of Finance,Facilities Management,Energy Costs,Electricity,GB102,02/11/2017,488804,313.62,REVENUE,NPOWER LIMITED,101414
North East Lincolnshire Council,http://statistics.data.gov.uk/id/local-authority/00FC),Chief Executive,Director Of Finance,Facilities Management,Energy Costs,Electricity,GB102,23/11/2017,488807,317.93,REVENUE,NPOWER LIMITED,101414
North East Lincolnshire Council,http://statistics.data.gov.uk/id/local-authority/00FC),Chief Executive,Director Of Finance,Facilities Management,Energy Costs,Electricity,GB102,02/11/2017,488805,318.98,REVENUE,NPOWER LIMITED,101414
North East Lincolnshire Council,http://statistics.data.gov.uk/id/local-authority/00FC),Chief Executive,Director Of Finance,Facilities Management,Rep Alterations Maint Building,Buildings - Repairs And Maint,GA102,27/11/2017,492869,16700,REVENUE,ENGIE SERVICES LTD,133267
North East Lincolnshire Council,http://statistics.data.gov.uk/id/local-authority/00FC),Chief Executive,Director Of Finance,Facilities Management,Cleaning And Domestic Supplies,Cleaning - Services,GH102,09/11/2017,490235,1953.89,REVENUE,OCS LIMITED,101291
North East Lincolnshire Council,http://statistics.data.gov.uk/id/local-authority/00FC),Chief Executive,Director Of Finance,Facilities Management,Cleaning And Domestic Supplies,Cleaning - Services,GH102,13/11/2017,490261,47054.07,REVENUE,KINGDOM SERVICES GROUP LTD,138536
North East Lincolnshire Council,http://statistics.data.gov.uk/id/local-authority/00FC),Chief Executive,Director Of Finance,Facilities Management,Cleaning And Domestic Supplies,Cleaning - Services,GH102,14/11/2017,490260,47054.07,REVENUE,KINGDOM SERVICES GROUP LTD,138536
North East Lincolnshire Council,http://statistics.data.gov.uk/id/local-authority/00FC),Chief Executive,Director Of Finance,Facilities Management,Cleaning And Domestic Supplies,Cleaning - Services,GH102,02/11/2017,488097,1610,REVENUE,OCS LIMITED,101291
North East Lincolnshire Council,http://statistics.data.gov.uk/id/local-authority/00FC),Chief Executive,Director Of Finance,Facilities Management,Communications And Computing,Computer S/Ware - Licences,LF103,09/11/2017,490249,1500,REVENUE,TEAM (EAA LTD),105082
North East Lincolnshire Council,http://statistics.data.gov.uk/id/local-authority/00FC),Chief Executive,Director Of Finance,Facilities Management,Rents,Rent,GC101,09/11/2017,490233,7412.5,REVENUE,CAPAX (C I ) LIMITED,101112
North East Lincolnshire Council,http://statistics.data.gov.uk/id/local-authority/00FC),Chief Executive,Director Of Finance,Facilities Management,Energy Costs,Heating Fuel,GB103,06/11/2017,488080,965.4,REVENUE,OIL NRG,138198
North East Lincolnshire Council,http://statistics.data.gov.uk/id/local-authority/00FC),Chief Executive,Director Of Finance,Facilities Management,Energy Costs,Heating Fuel,GB103,27/11/2017,491575,747.9,REVENUE,OIL NRG,138198
North East Lincolnshire Council,http://statistics.data.gov.uk/id/local-authority/00FC),Chief Executive,Director Of Finance,Facilities Management,Energy Costs,Heating Fuel,GB103,30/11/2017,493607,1013.8,REVENUE,OIL NRG,138198
North East Lincolnshire Council,http://statistics.data.gov.uk/id/local-authority/00FC),Chief Executive,Director Of Finance,Facilities Management,Energy Costs,Heating Fuel,GB103,30/11/2017,493602,1013.29,REVENUE,OIL NRG,138198
North East Lincolnshire Council,http://statistics.data.gov.uk/id/local-authority/00FC),Chief Executive,Director Of Finance,Facilities Management,Energy Costs,Electricity,GB102,02/11/2017,488803,330,REVENUE,NPOWER YORKSHIRE LTD,101525
North East Lincolnshire Council,http://statistics.data.gov.uk/id/local-authority/00FC),Chief Executive,Director Of Finance,Facilities Management,Energy Costs,Electricity,GB102,09/11/2017,490107,330,REVENUE,NPOWER YORKSHIRE LTD,101525
North East Lincolnshire Council,http://statistics.data.gov.uk/id/local-authority/00FC),Chief Executive,Director Of Finance,Facilities Management,Rents,Rent,GC101,09/11/2017,490250,1250,REVENUE,THE GRIMSBY INSTITUTE OF FURTHER,102742
North East Lincolnshire Council,http://statistics.data.gov.uk/id/local-authority/00FC),Chief Executive,Director Of Finance,Facilities Management,Rents,Service Charge,GC102,09/11/2017,490250,1100,REVENUE,THE GRIMSBY INSTITUTE OF FURTHER,102742
North East Lincolnshire Council,http://statistics.data.gov.uk/id/local-authority/00FC),Chief Executive,Director Of Finance,Commercial Estate,Cleaning And Domestic Supplies,Cleaning - Services,GH102,28/11/2017,493192,-106,REVENUE,KINGDOM SERVICES GROUP LTD,138536
North East Lincolnshire Council,http://statistics.data.gov.uk/id/local-authority/00FC),Chief Executive,Director Of Finance,Commercial Estate,Cleaning And Domestic Supplies,Refuse Collection,GH104,09/11/2017,490214,314.72,REVENUE,ELLGIA LIMITED,101433
North East Lincolnshire Council,http://statistics.data.gov.uk/id/local-authority/00FC),Chief Executive,Director Of Finance,Commercial Estate,Cleaning And Domestic Supplies,Refuse Collection,GH104,09/11/2017,490212,487.2,REVENUE,ELLGIA LIMITED,101433
North East Lincolnshire Council,http://statistics.data.gov.uk/id/local-authority/00FC),Chief Executive,Director Of Finance,Commercial Estate,Cleaning And Domestic Supplies,Refuse Collection,GH104,09/11/2017,490213,392,REVENUE,ELLGIA LIMITED,101433
North East Lincolnshire Council,http://statistics.data.gov.uk/id/local-authority/00FC),Chief Executive,Director Of Finance,Commercial Estate,Cleaning And Domestic Supplies,Refuse Collection,GH104,09/11/2017,490212,363.18,REVENUE,ELLGIA LIMITED,101433
North East Lincolnshire Council,http://statistics.data.gov.uk/id/local-authority/00FC),Chief Executive,Director Of Finance,Commercial Estate,Cleaning And Domestic Supplies,Cleaning - Consumables,GH103,30/11/2017,493201,572.53,REVENUE,SIEMENS FINANCIAL SERVICES LTD,101161
North East Lincolnshire Council,http://statistics.data.gov.uk/id/local-authority/00FC),Chief Executive,Director Of Finance,Commercial Estate,Cleaning And Domestic Supplies,Cleaning - Consumables,GH103,14/11/2017,490248,511.75,REVENUE,PETER HOGARTH & SONS LTD,100815
North East Lincolnshire Council,http://statistics.data.gov.uk/id/local-authority/00FC),Chief Executive,Director Of Finance,Bus Support & Customer Serv,Equip / Furniture / Materials,Goods For Resale,LA123,07/11/2017,489295,1464.7,REVENUE,NORTHGATE PUBLIC SERVICES (UK) LTD,101841
North East Lincolnshire Council,http://statistics.data.gov.uk/id/local-authority/00FC),Chief Executive,Director Of Finance,Bus Support & Customer Serv,Private Contractors,External Security Services,PH103,23/11/2017,491962,471.46,REVENUE,G4S CASH SERVICES (UK) LIMITED,100952
North East Lincolnshire Council,http://statistics.data.gov.uk/id/local-authority/00FC),Chief Executive,Director Of Finance,Bus Support & Customer Serv,Communications And Computing,Postage,LF111,30/11/2017,492965,305.83,REVENUE,ROYAL MAIL GROUP PLC,101082
North East Lincolnshire Council,http://statistics.data.gov.uk/id/local-authority/00FC),Chief Executive,Director Of Finance,Bus Support & Customer Serv,Communications And Computing,Postage,LF111,02/11/2017,489051,1039.8,REVENUE,WHISTL UK LTD,135925
North East Lincolnshire Council,http://statistics.data.gov.uk/id/local-authority/00FC),Chief Executive,Director Of Finance,Bus Support & Customer Serv,Communications And Computing,Postage,LF111,02/11/2017,489026,2694.14,REVENUE,WHISTL UK LTD,135925
North East Lincolnshire Council,http://statistics.data.gov.uk/id/local-authority/00FC),Chief Executive,Director Of Finance,Bus Support & Customer Serv,Communications And Computing,Postage,LF111,06/11/2017,489033,829.58,REVENUE,WHISTL UK LTD,135925
North East Lincolnshire Council,http://statistics.data.gov.uk/id/local-authority/00FC),Chief Executive,Director Of Finance,Bus Support & Customer Serv,Communications And Computing,Postage,LF111,13/11/2017,490294,865.65,REVENUE,WHISTL UK LTD,135925
North East Lincolnshire Council,http://statistics.data.gov.uk/id/local-authority/00FC),Chief Executive,Director Of Finance,Bus Support & Customer Serv,Communications And Computing,Postage,LF111,13/11/2017,490281,370.46,REVENUE,WHISTL UK LTD,135925
North East Lincolnshire Council,http://statistics.data.gov.uk/id/local-authority/00FC),Chief Executive,Director Of Finance,Bus Support & Customer Serv,Communications And Computing,Postage,LF111,20/11/2017,491547,1055.23,REVENUE,WHISTL UK LTD,135925
North East Lincolnshire Council,http://statistics.data.gov.uk/id/local-authority/00FC),Chief Executive,Director Of Finance,Bus Support & Customer Serv,Communications And Computing,Postage,LF111,23/11/2017,492280,1161.09,REVENUE,WHISTL UK LTD,135925
North East Lincolnshire Council,http://statistics.data.gov.uk/id/local-authority/00FC),Chief Executive,Director Of Finance,Bus Support & Customer Serv,Communications And Computing,Postage,LF111,27/11/2017,492344,475.83,REVENUE,WHISTL UK LTD,135925
North East Lincolnshire Council,http://statistics.data.gov.uk/id/local-authority/00FC),Chief Executive,Director Of Finance,Bus Support & Customer Serv,Communications And Computing,Postage,LF111,30/11/2017,493433,1478.58,REVENUE,WHISTL UK LTD,135925
North East Lincolnshire Council,http://statistics.data.gov.uk/id/local-authority/00FC),Chief Executive,Director Of Finance,Bus Support & Customer Serv,Communications And Computing,Postage,LF111,23/11/2017,491704,266.53,REVENUE,ROYAL MAIL GROUP PLC,101082
North East Lincolnshire Council,http://statistics.data.gov.uk/id/local-authority/00FC),Chief Executive,Director Of Finance,Bus Support & Customer Serv,Communications And Computing,Postage,LF111,13/11/2017,490513,408,REVENUE,NEOPOST LTD,100822
North East Lincolnshire Council,http://statistics.data.gov.uk/id/local-authority/00FC),Chief Executive,Director Of Finance,Bus Support & Customer Serv,Indirect Employee Expenses,Medical Expenses - Employees,EB112,10/11/2017,544711,-89,REVENUE,REDACTED PERSONAL INFORMATION,REDACTED PERSONAL INFORMATION
North East Lincolnshire Council,http://statistics.data.gov.uk/id/local-authority/00FC),Chief Executive,Director Of Economy & Growth,Beach Safety,Rep Alterations Maint Building,Buildings - Repairs And Maint,GA102,02/11/2017,488845,335,REVENUE,ENGIE SERVICES LTD,133267
North East Lincolnshire Council,http://statistics.data.gov.uk/id/local-authority/00FC),Chief Executive,Director Of Economy & Growth,Beach Safety,Rep Alterations Maint Building,Buildings - Repairs And Maint,GA102,20/11/2017,491263,2036,REVENUE,KEEP BRITAIN TIDY,102368
North East Lincolnshire Council,http://statistics.data.gov.uk/id/local-authority/00FC),Chief Executive,Director Of Economy & Growth,Beach Safety,Equip / Furniture / Materials,Equipment - Purchase,LA101,06/11/2017,488836,346.43,REVENUE,SRP TOILET HIRE LTD,104341
North East Lincolnshire Council,http://statistics.data.gov.uk/id/local-authority/00FC),Chief Executive,Director Of Economy & Growth,Beach Safety,Rep Alterations Maint Building,Buildings - Repairs And Maint,GA102,02/11/2017,488843,543.8,REVENUE,ENGIE SERVICES LTD,133267
North East Lincolnshire Council,http://statistics.data.gov.uk/id/local-authority/00FC),Chief Executive,Director Of Economy & Growth,Beach Safety,Rep Alterations Maint Building,Buildings - Repairs And Maint,GA102,02/11/2017,488841,662.11,REVENUE,ENGIE SERVICES LTD,133267
North East Lincolnshire Council,http://statistics.data.gov.uk/id/local-authority/00FC),Chief Executive,Director Of Economy & Growth,Discovery Centre,Equip / Furniture / Materials,Equipment - Purchase,LA101,16/11/2017,488816,315,REVENUE,LINCS RADIO LTD,124410
North East Lincolnshire Council,http://statistics.data.gov.uk/id/local-authority/00FC),Chief Executive,Director Of Economy & Growth,Discovery Centre,Rep Alterations Maint Building,Buildings - Repairs And Maint,GA102,20/11/2017,491255,295,REVENUE,SIGN OF THE TIMES,100575
North East Lincolnshire Council,http://statistics.data.gov.uk/id/local-authority/00FC),Chief Executive,Director Of Economy & Growth,Discovery Centre,Equip / Furniture / Materials,Equipment - Purchase,LA101,14/11/2017,490291,-81.94,REVENUE,SYLVESTER-KEAL LTD,100593
North East Lincolnshire Council,http://statistics.data.gov.uk/id/local-authority/00FC),Chief Executive,Director Of Economy & Growth,Discovery Centre,Equip / Furniture / Materials,Equipment - Purchase,LA101,09/11/2017,489334,430,REVENUE,WPTR LTD,137528
North East Lincolnshire Council,http://statistics.data.gov.uk/id/local-authority/00FC),Chief Executive,Director Of Economy & Growth,Discovery Centre,Equip / Furniture / Materials,Goods For Resale,LA123,27/11/2017,492750,647.46,REVENUE,JOHN TURNER,100921
North East Lincolnshire Council,http://statistics.data.gov.uk/id/local-authority/00FC),Chief Executive,Director Of Economy & Growth,Discovery Centre,Equip / Furniture / Materials,Goods For Resale,LA123,13/11/2017,490477,-4.23,REVENUE,HOLDSWORTH LTD,121021
North East Lincolnshire Council,http://statistics.data.gov.uk/id/local-authority/00FC),Chief Executive,Director Of Economy & Growth,Discovery Centre,Equip / Furniture / Materials,Goods For Resale,LA123,14/11/2017,490518,-5.95,REVENUE,HOLDSWORTH LTD,121021
North East Lincolnshire Council,http://statistics.data.gov.uk/id/local-authority/00FC),Chief Executive,Director Of Economy & Growth,Discovery Centre,Equip / Furniture / Materials,Goods For Resale,LA123,16/11/2017,490572,-18.25,REVENUE,HOLDSWORTH LTD,121021
North East Lincolnshire Council,http://statistics.data.gov.uk/id/local-authority/00FC),Chief Executive,Director Of Economy & Growth,Discovery Centre,Equip / Furniture / Materials,Goods For Resale,LA123,20/11/2017,490573,-7.55,REVENUE,HOLDSWORTH LTD,121021
North East Lincolnshire Council,http://statistics.data.gov.uk/id/local-authority/00FC),Chief Executive,Director Of Economy & Growth,Discovery Centre,Equip / Furniture / Materials,Goods For Resale,LA123,27/11/2017,492756,269.2,REVENUE,R W STOKES & SONS LTD,123706
North East Lincolnshire Council,http://statistics.data.gov.uk/id/local-authority/00FC),Chief Executive,Director Of Economy & Growth,Discovery Centre,Equip / Furniture / Materials,Goods For Resale,LA123,21/11/2017,491553,301.75,REVENUE,TURNER BROS LTD,112906
North East Lincolnshire Council,http://statistics.data.gov.uk/id/local-authority/00FC),Chief Executive,Director Of Economy & Growth,Events,Rep Alterations Maint Building,Buildings - Repairs And Maint,GA102,02/11/2017,488098,500,REVENUE,ENGIE SERVICES LTD,133267
North East Lincolnshire Council,http://statistics.data.gov.uk/id/local-authority/00FC),Chief Executive,Director Of Economy & Growth,Events,Rep Alterations Maint Building,Buildings - Repairs And Maint,GA102,06/11/2017,488849,696.8,REVENUE,ENGIE SERVICES LTD,133267
North East Lincolnshire Council,http://statistics.data.gov.uk/id/local-authority/00FC),Chief Executive,Director Of Economy & Growth,Marketing And Promotion,Equip / Furniture / Materials,Promotions,LA124,02/11/2017,488848,7500,REVENUE,LINCS INSPIRE LIMITED,129063
North East Lincolnshire Council,http://statistics.data.gov.uk/id/local-authority/00FC),Chief Executive,Director Of Economy & Growth,Marketing And Promotion,Equip / Furniture / Materials,Promotions,LA124,30/11/2017,493557,995,REVENUE,KINGFISHER MEDIA LTD,134142
North East Lincolnshire Council,http://statistics.data.gov.uk/id/local-authority/00FC),Chief Executive,Director Of Economy & Growth,Museums & N F Heritage Centre,Equip / Furniture / Materials,Equipment - Purchase,LA101,16/11/2017,488816,455,REVENUE,LINCS RADIO LTD,124410
North East Lincolnshire Council,http://statistics.data.gov.uk/id/local-authority/00FC),Chief Executive,Director Of Economy & Growth,Museums & N F Heritage Centre,Print Stationery / Gen Off Exp,Photocopier - Acquistion,LD101,13/11/2017,490252,900,REVENUE,LINCS ELECTRICAL SERVICES LTD,102044
North East Lincolnshire Council,http://statistics.data.gov.uk/id/local-authority/00FC),Chief Executive,Director Of Economy & Growth,Museums & N F Heritage Centre,Contributions To Provisions,Contributions - Third Sector,LK102,02/11/2017,487878,4350,REVENUE,NORTH LINCOLNSHIRE COUNCIL,101186
North East Lincolnshire Council,http://statistics.data.gov.uk/id/local-authority/00FC),Chief Executive,Director Of Economy & Growth,Museums & N F Heritage Centre,Equip / Furniture / Materials,Goods For Resale,LA123,13/11/2017,490476,-5,REVENUE,HOLDSWORTH LTD,121021
North East Lincolnshire Council,http://statistics.data.gov.uk/id/local-authority/00FC),Chief Executive,Director Of Economy & Growth,Museums & N F Heritage Centre,Equip / Furniture / Materials,Goods For Resale,LA123,02/11/2017,488790,-4.92,REVENUE,KEYCRAFT,106556
North East Lincolnshire Council,http://statistics.data.gov.uk/id/local-authority/00FC),Chief Executive,Director Of Economy & Growth,Museums & N F Heritage Centre,Equip / Furniture / Materials,Equipment - Purchase,LA101,27/11/2017,492159,400,REVENUE,W R CULLUM,100811
North East Lincolnshire Council,http://statistics.data.gov.uk/id/local-authority/00FC),Chief Executive,Director Of Economy & Growth,Tourist Information Centre,Private Contractors,Third Party Prov - Private,PH101,20/11/2017,491497,283.5,REVENUE,GRIMSBY AUDITORIUM,128160
North East Lincolnshire Council,http://statistics.data.gov.uk/id/local-authority/00FC),Chief Executive,Director Of Economy & Growth,Tourist Information Centre,Private Contractors,Third Party Prov - Private,PH101,07/11/2017,489947,1030,REVENUE,THE CAXTON PLAYERS,129590
North East Lincolnshire Council,http://statistics.data.gov.uk/id/local-authority/00FC),Chief Executive,Director Of Economy & Growth,Tourist Information Centre,Private Contractors,Third Party Prov - Private,PH101,09/11/2017,490274,377.5,REVENUE,THE CAXTON PLAYERS,129590
North East Lincolnshire Council,http://statistics.data.gov.uk/id/local-authority/00FC),Chief Executive,Director Of Economy & Growth,Tourist Information Centre,Private Contractors,Third Party Prov - Private,PH101,09/11/2017,490110,1218.61,REVENUE,NATIONAL EXPRESS LTD,100835
North East Lincolnshire Council,http://statistics.data.gov.uk/id/local-authority/00FC),Chief Executive,Director Of Economy & Growth,Tourist Information Centre,Private Contractors,Third Party Prov - Private,PH101,09/11/2017,490286,692,REVENUE,NATIONAL EXPRESS LTD,100835
North East Lincolnshire Council,http://statistics.data.gov.uk/id/local-authority/00FC),Chief Executive,Director Of Economy & Growth,Tourist Information Centre,Private Contractors,Third Party Prov - Private,PH101,06/11/2017,489375,10882.5,REVENUE,VMS WREXHAM LTD,137619
North East Lincolnshire Council,http://statistics.data.gov.uk/id/local-authority/00FC),Chief Executive,Director Of Economy & Growth,Community Investment Team,Private Contractors,Third Party Prov - Private,PH101,23/11/2017,491769,450,REVENUE,SCANIA (GREAT BRITAIN) LTD,101361
North East Lincolnshire Council,http://statistics.data.gov.uk/id/local-authority/00FC),Chief Executive,Director Of Economy & Growth,Community Investment Team,Other Agencies,Grants Pd Over To Third Party,PJ138,20/11/2017,491303,1000,REVENUE,EPS PIPEWORKS LTD,134914
North East Lincolnshire Council,http://statistics.data.gov.uk/id/local-authority/00FC),Chief Executive,Director Of Economy & Growth,Community Investment Team,Other Agencies,Grants Pd Over To Third Party,PJ138,20/11/2017,491307,14727.09,REVENUE,EPS PIPEWORKS LTD,134914
North East Lincolnshire Council,http://statistics.data.gov.uk/id/local-authority/00FC),Chief Executive,Director Of Economy & Growth,Community Investment Team,Other Agencies,Grants Pd Over To Third Party,PJ138,30/11/2017,493547,3688.69,REVENUE,WELDTITE PRODUCTS LTD,136951
North East Lincolnshire Council,http://statistics.data.gov.uk/id/local-authority/00FC),Chief Executive,Director Of Economy & Growth,Community Investment Team,Other Agencies,Grants Pd Over To Third Party,PJ138,16/11/2017,490871,11777.36,REVENUE,TRUCK LINKS LTD,113402
North East Lincolnshire Council,http://statistics.data.gov.uk/id/local-authority/00FC),Chief Executive,Director Of Economy & Growth,Community Investment Team,Other Agencies,Grants Pd Over To Third Party,PJ138,23/11/2017,492131,1074,REVENUE,INTEGRA BUILDINGS LTD,137168
North East Lincolnshire Council,http://statistics.data.gov.uk/id/local-authority/00FC),Chief Executive,Director Of Economy & Growth,Community Investment Team,Other Agencies,Grants Pd Over To Third Party,PJ138,09/11/2017,489699,44100,REVENUE,ENVIRO GY LTD,125195
North East Lincolnshire Council,http://statistics.data.gov.uk/id/local-authority/00FC),Chief Executive,Director Of Economy & Growth,Community Investment Team,Other Agencies,Grants Pd Over To Third Party,PJ138,20/11/2017,491304,7267.5,REVENUE,DEARING PLASTICS LIMITED,134375
North East Lincolnshire Council,http://statistics.data.gov.uk/id/local-authority/00FC),Chief Executive,Director Of Economy & Growth,Retained Function,Public Transport,Public Transport - Employees,JD101,06/11/2017,489505,396.58,REVENUE,CLICK TRAVEL,127476
North East Lincolnshire Council,http://statistics.data.gov.uk/id/local-authority/00FC),Chief Executive,Director Of Economy & Growth,Retained Function,Print Stationery / Gen Off Exp,Publicity,LD105,20/11/2017,490894,300,REVENUE,PURPLE SWIRL,135176
North East Lincolnshire Council,http://statistics.data.gov.uk/id/local-authority/00FC),Chief Executive,Director Of Economy & Growth,Retained Function,Print Stationery / Gen Off Exp,Publicity,LD105,20/11/2017,491223,300,REVENUE,PURPLE SWIRL,135176
North East Lincolnshire Council,http://statistics.data.gov.uk/id/local-authority/00FC),Chief Executive,Director Of Economy & Growth,Retained Function,Print Stationery / Gen Off Exp,Publicity,LD105,06/11/2017,489008,500,REVENUE,LOCAL WORLD LIMITED,118774
North East Lincolnshire Council,http://statistics.data.gov.uk/id/local-authority/00FC),Chief Executive,Director Of Economy & Growth,Retained Function,Print Stationery / Gen Off Exp,Publicity,LD105,23/11/2017,491909,90000,REVENUE,KINGSTON UPON HULL CITY COUNCIL,100541
North East Lincolnshire Council,http://statistics.data.gov.uk/id/local-authority/00FC),Chief Executive,Director Of Economy & Growth,Retained Function,Grants And Subscriptions,Subscriptions,LJ101,23/11/2017,491711,7000,REVENUE,HUMBER NATURE PARTNERSHIP,126732
North East Lincolnshire Council,http://statistics.data.gov.uk/id/local-authority/00FC),Chief Executive,Director Of Economy & Growth,Retained Function,Grants And Subscriptions,Subscriptions,LJ101,23/11/2017,491666,530,REVENUE,HULL & HUMBER CHAMBER OF COMMERCE,102808
North East Lincolnshire Council,http://statistics.data.gov.uk/id/local-authority/00FC),Chief Executive,Director Of Economy & Growth,Retained Function,Contributions To Provisions,Contributions - Other,LK103,13/11/2017,489958,2995,REVENUE,HULL & HUMBER CHAMBER OF COMMERCE,102808
North East Lincolnshire Council,http://statistics.data.gov.uk/id/local-authority/00FC),Chief Executive,Director Of Economy & Growth,Retained Function,Miscellaneous Expenses,Other Expenses General,LL119,27/11/2017,492220,20605.12,REVENUE,NETWORK RAIL,103407
North East Lincolnshire Council,http://statistics.data.gov.uk/id/local-authority/00FC),Chief Executive,Director Of Economy & Growth,Retained Function,Consultancy,Consultancy,PL101,30/11/2017,492714,916.8,REVENUE,HENRY CLEARY,124266
North East Lincolnshire Council,http://statistics.data.gov.uk/id/local-authority/00FC),Chief Executive,Director Of Economy & Growth,Retained Function,Private Contractors,Third Party Prov - Private,PH101,13/11/2017,489967,7530,REVENUE,TOM FLEMING (CREATIVE CONSULTANCY),135423
North East Lincolnshire Council,http://statistics.data.gov.uk/id/local-authority/00FC),Chief Executive,Director Of Economy & Growth,Retained Function,Private Contractors,Third Party Prov - Private,PH101,06/11/2017,488081,340,REVENUE,OUR BIG PICTURE LTD,134087
North East Lincolnshire Council,http://statistics.data.gov.uk/id/local-authority/00FC),Chief Executive,Director Of Economy & Growth,Retained Function,Private Contractors,Third Party Prov - Private,PH101,30/11/2017,493243,582.87,REVENUE,XCEPTIONAL DESIGNS,111932
North East Lincolnshire Council,http://statistics.data.gov.uk/id/local-authority/00FC),Chief Executive,Director Of Economy & Growth,Retained Function,Miscellaneous Expenses,Other Expenses General,LL119,13/11/2017,489169,675,REVENUE,CLUGSTON SURVEY SERVICES,105668
North East Lincolnshire Council,http://statistics.data.gov.uk/id/local-authority/00FC),Chief Executive,Director Of Economy & Growth,In Scope Contract,Private Contractors,Contract Payments,PH105,16/11/2017,490752,89717.44,REVENUE,ENGIE SERVICES LTD,133267
North East Lincolnshire Council,http://statistics.data.gov.uk/id/local-authority/00FC),Chief Executive,Director Of Economy & Growth,In Scope Contract,Private Contractors,Contract Payments,PH105,16/11/2017,490752,297711.24,REVENUE,ENGIE SERVICES LTD,133267
North East Lincolnshire Council,http://statistics.data.gov.uk/id/local-authority/00FC),Chief Executive,Director Of Economy & Growth,In Scope Contract,Private Contractors,Contract Payments,PH105,16/11/2017,490752,14061.43,REVENUE,ENGIE SERVICES LTD,133267
North East Lincolnshire Council,http://statistics.data.gov.uk/id/local-authority/00FC),Chief Executive,Director Of Economy & Growth,In Scope Contract,Private Contractors,Contract Payments,PH105,16/11/2017,490752,474051.55,REVENUE,ENGIE SERVICES LTD,133267
North East Lincolnshire Council,http://statistics.data.gov.uk/id/local-authority/00FC),Chief Executive,Director Of Economy & Growth,In Scope Contract,Private Contractors,Contract Payments,PH105,16/11/2017,490752,5495.91,REVENUE,ENGIE SERVICES LTD,133267
North East Lincolnshire Council,http://statistics.data.gov.uk/id/local-authority/00FC),Chief Executive,Director Of Economy & Growth,In Scope Contract,Private Contractors,Contract Payments,PH105,16/11/2017,490752,72139.57,REVENUE,ENGIE SERVICES LTD,133267
North East Lincolnshire Council,http://statistics.data.gov.uk/id/local-authority/00FC),Chief Executive,Director Of Economy & Growth,In Scope Contract,Private Contractors,Contract Payments,PH105,16/11/2017,490752,35511.81,REVENUE,ENGIE SERVICES LTD,133267
North East Lincolnshire Council,http://statistics.data.gov.uk/id/local-authority/00FC),Chief Executive,Director Of Economy & Growth,Car Parks,Customer And Client Receipts,Penalty Charge Income - Vat 4,VC138,16/11/2017,546522,422,REVENUE,REDACTED PERSONAL INFORMATION,REDACTED PERSONAL INFORMATION
North East Lincolnshire Council,http://statistics.data.gov.uk/id/local-authority/00FC),Chief Executive,Director Of Economy & Growth,Car Parks,Customer And Client Receipts,Penalty Charge Income - Vat 4,VC138,16/11/2017,546577,423,REVENUE,REDACTED PERSONAL INFORMATION,REDACTED PERSONAL INFORMATION
North East Lincolnshire Council,http://statistics.data.gov.uk/id/local-authority/00FC),Chief Executive,Director Of Economy & Growth,Car Parks,Customer And Client Receipts,Penalty Charge Income - Vat 4,VC138,16/11/2017,546579,423,REVENUE,REDACTED PERSONAL INFORMATION,REDACTED PERSONAL INFORMATION
North East Lincolnshire Council,http://statistics.data.gov.uk/id/local-authority/00FC),Chief Executive,Director Of Economy & Growth,Car Parks,Customer And Client Receipts,Penalty Charge Income - Vat 4,VC138,22/11/2017,548752,423,REVENUE,REDACTED PERSONAL INFORMATION,REDACTED PERSONAL INFORMATION
North East Lincolnshire Council,http://statistics.data.gov.uk/id/local-authority/00FC),Chief Executive,Director Of Economy & Growth,Drainage & Coastal Defence,Private Contractors,Third Party Prov - Private,PH101,09/11/2017,489946,300,REVENUE,VEOLIA ES CLEANAWAY (UK) LTD,101783
North East Lincolnshire Council,http://statistics.data.gov.uk/id/local-authority/00FC),Chief Executive,Director Of Economy & Growth,Drainage & Coastal Defence,Private Contractors,Third Party Prov - Private,PH101,13/11/2017,490196,1950,REVENUE,ZENITH SURVEY EQUIPMENT LTD,104079
North East Lincolnshire Council,http://statistics.data.gov.uk/id/local-authority/00FC),Chief Executive,Director Of Economy & Growth,Drainage & Coastal Defence,Private Contractors,Third Party Prov - Private,PH101,07/11/2017,489637,28731.8,REVENUE,C E SMITH & SONS,104444
North East Lincolnshire Council,http://statistics.data.gov.uk/id/local-authority/00FC),Chief Executive,Director Of Economy & Growth,Highways Dso,Dlo Holding,Depot Fuel Holding Account,LM101,13/11/2017,490479,17143.2,REVENUE,OIL NRG,138198
North East Lincolnshire Council,http://statistics.data.gov.uk/id/local-authority/00FC),Chief Executive,Director Of Economy & Growth,Highways Dso,Dlo Holding,Depot Fuel Holding Account,LM101,23/11/2017,491664,1246.5,REVENUE,OIL NRG,138198
North East Lincolnshire Council,http://statistics.data.gov.uk/id/local-authority/00FC),Chief Executive,Director Of Economy & Growth,Highways Dso,Dlo Holding,Depot Fuel Holding Account,LM101,23/11/2017,492191,17535.58,REVENUE,OIL NRG,138198
North East Lincolnshire Council,http://statistics.data.gov.uk/id/local-authority/00FC),Chief Executive,Director Of Economy & Growth,Street Lighting,Private Contractors,Third Party Prov - Private,PH101,09/11/2017,490287,1020.14,REVENUE,J MCCANN & CO LTD,100841
North East Lincolnshire Council,http://statistics.data.gov.uk/id/local-authority/00FC),Chief Executive,Director Of Economy & Growth,Street Lighting,Private Contractors,Third Party Prov - Private,PH101,09/11/2017,490282,844.37,REVENUE,J MCCANN & CO LTD,100841
North East Lincolnshire Council,http://statistics.data.gov.uk/id/local-authority/00FC),Chief Executive,Director Of Economy & Growth,Street Lighting,Rep Alterations Maint Building,Street Lighting-General Maint,GA111,09/11/2017,490287,8692.5,REVENUE,J MCCANN & CO LTD,100841
North East Lincolnshire Council,http://statistics.data.gov.uk/id/local-authority/00FC),Chief Executive,Director Of Economy & Growth,Street Lighting,Rep Alterations Maint Building,Street Lighting-General Maint,GA111,09/11/2017,490282,9458.23,REVENUE,J MCCANN & CO LTD,100841
North East Lincolnshire Council,http://statistics.data.gov.uk/id/local-authority/00FC),Chief Executive,Director Of Economy & Growth,Street Lighting,Rep Alterations Maint Building,Street Light-Irrecoverable Dam,GA112,09/11/2017,490282,4937.91,REVENUE,J MCCANN & CO LTD,100841
North East Lincolnshire Council,http://statistics.data.gov.uk/id/local-authority/00FC),Chief Executive,Director Of Economy & Growth,Street Lighting,Rep Alterations Maint Building,Traffic Signs / Signals,GA113,09/11/2017,490282,2234.4,REVENUE,J MCCANN & CO LTD,100841
North East Lincolnshire Council,http://statistics.data.gov.uk/id/local-authority/00FC),Chief Executive,Director Of Economy & Growth,Street Lighting,Rep Alterations Maint Building,Traffic Signs / Signals,GA113,09/11/2017,490282,533.21,REVENUE,J MCCANN & CO LTD,100841
North East Lincolnshire Council,http://statistics.data.gov.uk/id/local-authority/00FC),Chief Executive,Director Of Economy & Growth,Street Lighting,Private Contractors,Third Party Prov - Private,PH101,09/11/2017,490282,2604.56,REVENUE,J MCCANN & CO LTD,100841
North East Lincolnshire Council,http://statistics.data.gov.uk/id/local-authority/00FC),Chief Executive,Director Of Economy & Growth,Street Lighting,Private Contractors,Third Party Prov - Private,PH101,09/11/2017,490287,457.5,REVENUE,J MCCANN & CO LTD,100841
North East Lincolnshire Council,http://statistics.data.gov.uk/id/local-authority/00FC),Chief Executive,Director Of Economy & Growth,Street Lighting,Rep Alterations Maint Building,Electrical Testing,GA107,09/11/2017,490282,403.91,REVENUE,J MCCANN & CO LTD,100841
North East Lincolnshire Council,http://statistics.data.gov.uk/id/local-authority/00FC),Chief Executive,Director Of Economy & Growth,Street Lighting,Rep Alterations Maint Building,Street Lighting-General Maint,GA111,09/11/2017,490287,5703.86,REVENUE,J MCCANN & CO LTD,100841
North East Lincolnshire Council,http://statistics.data.gov.uk/id/local-authority/00FC),Chief Executive,Director Of Economy & Growth,Street Lighting,Rep Alterations Maint Building,Street Lighting-General Maint,GA111,09/11/2017,490282,15380.07,REVENUE,J MCCANN & CO LTD,100841
North East Lincolnshire Council,http://statistics.data.gov.uk/id/local-authority/00FC),Chief Executive,Director Of Economy & Growth,Street Lighting,Rep Alterations Maint Building,Street Lighting-General Maint,GA111,09/11/2017,490282,1027.68,REVENUE,J MCCANN & CO LTD,100841
North East Lincolnshire Council,http://statistics.data.gov.uk/id/local-authority/00FC),Chief Executive,Director Of Economy & Growth,Street Lighting,Rep Alterations Maint Building,Street Lighting-General Maint,GA111,30/11/2017,493364,430.1,REVENUE,NEWBURN POWER RENTAL LTD,134135
North East Lincolnshire Council,http://statistics.data.gov.uk/id/local-authority/00FC),Chief Executive,Director Of Economy & Growth,Street Lighting,Rep Alterations Maint Building,Street Lighting-General Maint,GA111,30/11/2017,493362,334.05,REVENUE,NEWBURN POWER RENTAL LTD,134135
North East Lincolnshire Council,http://statistics.data.gov.uk/id/local-authority/00FC),Chief Executive,Director Of Economy & Growth,Street Lighting,Rep Alterations Maint Building,Street Lighting-General Maint,GA111,30/11/2017,493361,664.4,REVENUE,NEWBURN POWER RENTAL LTD,134135
North East Lincolnshire Council,http://statistics.data.gov.uk/id/local-authority/00FC),Chief Executive,Director Of Economy & Growth,Street Lighting,Rep Alterations Maint Building,Street Lighting-General Maint,GA111,30/11/2017,493363,634.2,REVENUE,NEWBURN POWER RENTAL LTD,134135
North East Lincolnshire Council,http://statistics.data.gov.uk/id/local-authority/00FC),Chief Executive,Director Of Economy & Growth,Street Lighting,Rep Alterations Maint Building,Street Lighting-General Maint,GA111,30/11/2017,493365,333.2,REVENUE,NEWBURN POWER RENTAL LTD,134135
North East Lincolnshire Council,http://statistics.data.gov.uk/id/local-authority/00FC),Chief Executive,Director Of Economy & Growth,Street Lighting,Rep Alterations Maint Building,Street Light-Irrecoverable Dam,GA112,09/11/2017,490287,893,REVENUE,J MCCANN & CO LTD,100841
North East Lincolnshire Council,http://statistics.data.gov.uk/id/local-authority/00FC),Chief Executive,Director Of Economy & Growth,Street Lighting,Rep Alterations Maint Building,Street Light-Irrecoverable Dam,GA112,09/11/2017,490282,385.45,REVENUE,J MCCANN & CO LTD,100841
North East Lincolnshire Council,http://statistics.data.gov.uk/id/local-authority/00FC),Chief Executive,Director Of Economy & Growth,Street Lighting,Rep Alterations Maint Building,Traffic Mgmt-Irrecoverable Dam,GA115,09/11/2017,490287,435.5,REVENUE,J MCCANN & CO LTD,100841
North East Lincolnshire Council,http://statistics.data.gov.uk/id/local-authority/00FC),Chief Executive,Director Of Economy & Growth,Street Lighting,Rep Alterations Maint Building,Traffic Mgmt-Irrecoverable Dam,GA115,09/11/2017,490282,1628.93,REVENUE,J MCCANN & CO LTD,100841
North East Lincolnshire Council,http://statistics.data.gov.uk/id/local-authority/00FC),Chief Executive,Director Of Economy & Growth,Street Lighting,Rep Alterations Maint Building,Traffic Signs / Signals,GA113,09/11/2017,490287,1020.14,REVENUE,J MCCANN & CO LTD,100841
North East Lincolnshire Council,http://statistics.data.gov.uk/id/local-authority/00FC),Chief Executive,Director Of Economy & Growth,Street Lighting,Rep Alterations Maint Building,Traffic Signs / Signals,GA113,09/11/2017,490282,6293.62,REVENUE,J MCCANN & CO LTD,100841
North East Lincolnshire Council,http://statistics.data.gov.uk/id/local-authority/00FC),Chief Executive,Director Of Economy & Growth,Street Lighting,Rep Alterations Maint Building,Traffic Signs / Signals,GA113,09/11/2017,490282,717.28,REVENUE,J MCCANN & CO LTD,100841
North East Lincolnshire Council,http://statistics.data.gov.uk/id/local-authority/00FC),Chief Executive,Director Of Economy & Growth,Street Lighting,Private Contractors,Third Party Prov - Private,PH101,09/11/2017,490287,457.5,REVENUE,J MCCANN & CO LTD,100841
North East Lincolnshire Council,http://statistics.data.gov.uk/id/local-authority/00FC),Chief Executive,Director Of Economy & Growth,Street Lighting,Private Contractors,Third Party Prov - Private,PH101,09/11/2017,490282,1805.27,REVENUE,J MCCANN & CO LTD,100841
North East Lincolnshire Council,http://statistics.data.gov.uk/id/local-authority/00FC),Chief Executive,Director Of Economy & Growth,Street Lighting,Private Contractors,Third Party Prov - Private,PH101,23/11/2017,492333,518.78,REVENUE,NORTHERN POWERGRID (YORKSHIRE) PLC,108328
North East Lincolnshire Council,http://statistics.data.gov.uk/id/local-authority/00FC),Chief Executive,Director Of Economy & Growth,Street Lighting,Private Contractors,Third Party Prov - Private,PH101,23/11/2017,492334,565.96,REVENUE,NORTHERN POWERGRID (YORKSHIRE) PLC,108328
North East Lincolnshire Council,http://statistics.data.gov.uk/id/local-authority/00FC),Chief Executive,Director Of Economy & Growth,Street Lighting,Rep Alterations Maint Building,Buildings - Repairs And Maint,GA102,09/11/2017,490282,9749.36,REVENUE,J MCCANN & CO LTD,100841
North East Lincolnshire Council,http://statistics.data.gov.uk/id/local-authority/00FC),Chief Executive,Director Of Economy & Growth,Street Lighting,Energy Costs,Electricity,GB102,21/11/2017,491647,-1070.37,REVENUE,NPOWER LIMITED,101414
North East Lincolnshire Council,http://statistics.data.gov.uk/id/local-authority/00FC),Chief Executive,Director Of Economy & Growth,Street Lighting,Energy Costs,Electricity,GB102,27/11/2017,492816,1772.14,REVENUE,NPOWER LIMITED,101414
North East Lincolnshire Council,http://statistics.data.gov.uk/id/local-authority/00FC),Chief Executive,Director Of Economy & Growth,Street Lighting,Energy Costs,Electricity,GB102,27/11/2017,492817,1772.14,REVENUE,NPOWER LIMITED,101414
North East Lincolnshire Council,http://statistics.data.gov.uk/id/local-authority/00FC),Chief Executive,Director Of Economy & Growth,Street Lighting,Energy Costs,Electricity,GB102,27/11/2017,492819,347.72,REVENUE,NPOWER LIMITED,101414
North East Lincolnshire Council,http://statistics.data.gov.uk/id/local-authority/00FC),Chief Executive,Director Of Economy & Growth,Street Lighting,Energy Costs,Electricity,GB102,27/11/2017,492818,311.53,REVENUE,NPOWER LIMITED,101414
North East Lincolnshire Council,http://statistics.data.gov.uk/id/local-authority/00FC),Chief Executive,Director Of Economy & Growth,Street Lighting,Energy Costs,Electricity,GB102,23/11/2017,492350,1070.37,REVENUE,VIRGIN MEDIA,107612
North East Lincolnshire Council,http://statistics.data.gov.uk/id/local-authority/00FC),Chief Executive,Director Of Economy & Growth,Traffic Management,Private Contractors,Contract Payments,PH105,20/11/2017,491306,21201,REVENUE,3M UNITED KINGDOM PLC,112724
North East Lincolnshire Council,http://statistics.data.gov.uk/id/local-authority/00FC),Chief Executive,Director Of Economy & Growth,Traffic Management,Private Contractors,Contract Payments,PH105,09/11/2017,490282,21464.89,REVENUE,J MCCANN & CO LTD,100841
North East Lincolnshire Council,http://statistics.data.gov.uk/id/local-authority/00FC),Chief Executive,Director Of Economy & Growth,Transport Policy,Private Contractors,Concessionary Fares,PH104,02/11/2017,488819,REDACTED COMMERCIALLY SENSITIVE,REVENUE,YORCARD LTD,110755
North East Lincolnshire Council,http://statistics.data.gov.uk/id/local-authority/00FC),Chief Executive,Director Of Economy & Growth,Transport Policy,Private Contractors,Concessionary Fares,PH104,23/11/2017,492288,REDACTED COMMERCIALLY SENSITIVE,REVENUE,F HUNT ( COACH HIRE) LTD,104034
North East Lincolnshire Council,http://statistics.data.gov.uk/id/local-authority/00FC),Chief Executive,Director Of Economy & Growth,Transport Policy,Private Contractors,Concessionary Fares,PH104,23/11/2017,492289,REDACTED COMMERCIALLY SENSITIVE,REVENUE,F HUNT ( COACH HIRE) LTD,104034
North East Lincolnshire Council,http://statistics.data.gov.uk/id/local-authority/00FC),Chief Executive,Director Of Economy & Growth,Transport Policy,Private Contractors,Concessionary Fares,PH104,09/11/2017,489368,REDACTED COMMERCIALLY SENSITIVE,REVENUE,GY CLPS & DISTRICT DIAL A RIDE,100980
North East Lincolnshire Council,http://statistics.data.gov.uk/id/local-authority/00FC),Chief Executive,Director Of Economy & Growth,Transport Policy,Private Contractors,Concessionary Fares,PH104,23/11/2017,491667,REDACTED COMMERCIALLY SENSITIVE,REVENUE,GY CLPS & DISTRICT DIAL A RIDE,100980
North East Lincolnshire Council,http://statistics.data.gov.uk/id/local-authority/00FC),Chief Executive,Director Of Economy & Growth,Transport Policy,Private Contractors,Concessionary Fares,PH104,23/11/2017,491668,REDACTED COMMERCIALLY SENSITIVE,REVENUE,STAGECOACH SERVICES,101404
North East Lincolnshire Council,http://statistics.data.gov.uk/id/local-authority/00FC),Chief Executive,Director Of Economy & Growth,Transport Policy,Private Contractors,Subsidies,PH102,27/11/2017,492306,REDACTED COMMERCIALLY SENSITIVE,REVENUE,STAGECOACH SERVICES,101404
North East Lincolnshire Council,http://statistics.data.gov.uk/id/local-authority/00FC),Chief Executive,Director Of Economy & Growth,Transport Policy,Private Contractors,Contract Payments,PH105,28/11/2017,491971,20250.73,REVENUE,ESSENTIAL FLEET SERVICES LTD,101159
North East Lincolnshire Council,http://statistics.data.gov.uk/id/local-authority/00FC),Chief Executive,Director Of Economy & Growth,Transport Policy,Private Contractors,Contract Payments,PH105,13/11/2017,489636,12083.88,REVENUE,TRAPEZE GROUP UK LTD,101970
North East Lincolnshire Council,http://statistics.data.gov.uk/id/local-authority/00FC),Chief Executive,Director Of Economy & Growth,Transport Policy,Private Contractors,Contract Payments,PH105,06/11/2017,489170,300,REVENUE,ESSENTIAL FLEET SERVICES LTD,101159
North East Lincolnshire Council,http://statistics.data.gov.uk/id/local-authority/00FC),Chief Executive,Director Of Economy & Growth,Transport Policy,Voluntary Associations,Third Pp - Third Sector,PF101,16/11/2017,490166,5000,REVENUE,GRIMSBY CYCLE HUB,119476
North East Lincolnshire Council,http://statistics.data.gov.uk/id/local-authority/00FC),Chief Executive,Director Of Economy & Growth,Transport Policy,Voluntary Associations,Third Pp - Third Sector,PF101,09/11/2017,489367,17233,REVENUE,HUMBER AND WOLDS RURAL COMMUNITY COUNCIL,134026
North East Lincolnshire Council,http://statistics.data.gov.uk/id/local-authority/00FC),Chief Executive,Director Of Economy & Growth,Transport Policy,Voluntary Associations,Third Pp - Third Sector,PF101,09/11/2017,490192,2504,REVENUE,GRIMSBY CYCLE HUB,119476
North East Lincolnshire Council,http://statistics.data.gov.uk/id/local-authority/00FC),Chief Executive,Director Of Economy & Growth,Transport Policy,Voluntary Associations,Third Pp - Third Sector,PF101,09/11/2017,490193,1732.5,REVENUE,GRIMSBY CYCLE HUB,119476
North East Lincolnshire Council,http://statistics.data.gov.uk/id/local-authority/00FC),Chief Executive,Director Of Economy & Growth,Transport Policy,Private Contractors,Contract Payments,PH105,23/11/2017,492168,4000,REVENUE,BIKEWELL CIC,136596
North East Lincolnshire Council,http://statistics.data.gov.uk/id/local-authority/00FC),Chief Executive,Director Of Economy & Growth,Transport Policy,Private Contractors,Contract Payments,PH105,20/11/2017,491267,18219.67,REVENUE,LOVE TO RIDE LTD,119407
North East Lincolnshire Council,http://statistics.data.gov.uk/id/local-authority/00FC),Chief Executive,Director Of Economy & Growth,Transport Policy,Consultancy,Consultancy,PL101,07/11/2017,488431,399,REVENUE,MODESHIFT,119471
North East Lincolnshire Council,http://statistics.data.gov.uk/id/local-authority/00FC),Chief Executive,Shared Services,Accountancy,Print Stationery / Gen Off Exp,Printing And Stationery,LD103,13/11/2017,490308,862.75,REVENUE,PULSTAR DATAPRINT LTD,108027
North East Lincolnshire Council,http://statistics.data.gov.uk/id/local-authority/00FC),Chief Executive,Shared Services,Local Taxation & Benefits,Communications And Computing,Computer S/Ware - Maintenance,LF102,13/11/2017,490521,930,REVENUE,NCC SERVICES LIMITED,101410
North East Lincolnshire Council,http://statistics.data.gov.uk/id/local-authority/00FC),Chief Executive,Shared Services,Local Taxation & Benefits,Communications And Computing,Computer S/Ware - Maintenance,LF102,28/11/2017,492996,27927,REVENUE,NORTHGATE PUBLIC SERVICES (UK) LTD,101841
North East Lincolnshire Council,http://statistics.data.gov.uk/id/local-authority/00FC),Chief Executive,Shared Services,Local Taxation & Benefits,Communications And Computing,Computer S/Ware - Purchases,LF101,09/11/2017,490189,6899.03,REVENUE,NORTHGATE PUBLIC SERVICES (UK) LTD,101841
North East Lincolnshire Council,http://statistics.data.gov.uk/id/local-authority/00FC),Chief Executive,Shared Services,Local Taxation & Benefits,Communications And Computing,Computer S/Ware - Purchases,LF101,23/11/2017,491656,260,REVENUE,VICTORIA SOLUTIONS (T/A VICTORIA FORMS),129023
North East Lincolnshire Council,http://statistics.data.gov.uk/id/local-authority/00FC),Chief Executive,Shared Services,Local Taxation & Benefits,Communications And Computing,Postage,LF111,09/11/2017,490041,3608.57,REVENUE,CAPITA BUSINESS SERVICES LTD,102314
North East Lincolnshire Council,http://statistics.data.gov.uk/id/local-authority/00FC),Chief Executive,Shared Services,Local Taxation & Benefits,Private Contractors,External Security Services,PH103,09/11/2017,490228,4066.95,REVENUE,ALLPAY LIMITED,112919
North East Lincolnshire Council,http://statistics.data.gov.uk/id/local-authority/00FC),Chief Executive,Shared Services,Local Taxation & Benefits,Miscellaneous Expenses,Debt Recovery Costs,LL111,09/11/2017,490241,981,REVENUE,WILKIN CHAPMAN LLP,110675
North East Lincolnshire Council,http://statistics.data.gov.uk/id/local-authority/00FC),Chief Executive,Shared Services,Local Taxation & Benefits,Miscellaneous Expenses,Debt Recovery Costs,LL111,27/11/2017,492680,250.5,REVENUE,WILKIN CHAPMAN LLP,110675
North East Lincolnshire Council,http://statistics.data.gov.uk/id/local-authority/00FC),Chief Executive,Shared Services,Local Taxation & Benefits,Miscellaneous Expenses,Debt Recovery Costs,LL111,28/11/2017,492995,250.5,REVENUE,WILKIN CHAPMAN LLP,110675
North East Lincolnshire Council,http://statistics.data.gov.uk/id/local-authority/00FC),Chief Executive,Shared Services,Local Taxation & Benefits,Miscellaneous Expenses,Debt Recovery Costs,LL111,23/11/2017,491572,290.63,REVENUE,NEWLYN,123422
North East Lincolnshire Council,http://statistics.data.gov.uk/id/local-authority/00FC),Chief Executive,Shared Services,Local Taxation & Benefits,Miscellaneous Expenses,Debt Recovery Costs,LL111,02/11/2017,487921,359.74,REVENUE,NEWLYN,123422
North East Lincolnshire Council,http://statistics.data.gov.uk/id/local-authority/00FC),Chief Executive,Shared Services,I.T Shared Service,Communications And Computing,Telephones,LF112,23/11/2017,492380,8058.23,REVENUE,VIRGIN MEDIA,107612
North East Lincolnshire Council,http://statistics.data.gov.uk/id/local-authority/00FC),Chief Executive,Shared Services,I.T Shared Service,Communications And Computing,Telephones,LF112,30/11/2017,492698,8093.17,REVENUE,VIRGIN MEDIA,107612
North East Lincolnshire Council,http://statistics.data.gov.uk/id/local-authority/00FC),Chief Executive,Shared Services,I.T Shared Service,Communications And Computing,Telephones,LF112,21/11/2017,491527,790,REVENUE,EDEN TELECOM LTD,135601
North East Lincolnshire Council,http://statistics.data.gov.uk/id/local-authority/00FC),Chief Executive,Shared Services,I.T Shared Service,Communications And Computing,Computer H/Ware - Purchases,LF105,09/11/2017,487497,466.11,REVENUE,COMPUTACENTER UK LTD,101303
North East Lincolnshire Council,http://statistics.data.gov.uk/id/local-authority/00FC),Chief Executive,Shared Services,I.T Shared Service,Communications And Computing,Computer H/Ware - Purchases,LF105,13/11/2017,490484,790,REVENUE,EDEN TELECOM LTD,135601
North East Lincolnshire Council,http://statistics.data.gov.uk/id/local-authority/00FC),Chief Executive,Shared Services,I.T Shared Service,Communications And Computing,Computer H/Ware - Purchases,LF105,20/11/2017,490732,275.8,REVENUE,COMPUTACENTER UK LTD,101303
North East Lincolnshire Council,http://statistics.data.gov.uk/id/local-authority/00FC),Chief Executive,Shared Services,I.T Shared Service,Communications And Computing,Computer H/Ware - Purchases,LF105,23/11/2017,491670,464.85,REVENUE,COMPUTACENTER UK LTD,101303
North East Lincolnshire Council,http://statistics.data.gov.uk/id/local-authority/00FC),Chief Executive,Shared Services,I.T Shared Service,Communications And Computing,Computer S/Ware - Licences,LF103,13/11/2017,484800,11582.4,REVENUE,CACI LTD,110598
North East Lincolnshire Council,http://statistics.data.gov.uk/id/local-authority/00FC),Chief Executive,Shared Services,I.T Shared Service,Communications And Computing,Computer S/Ware - Licences,LF103,13/11/2017,488587,23863.88,REVENUE,TRUSTMARQUE SOLUTIONS LTD,101275
North East Lincolnshire Council,http://statistics.data.gov.uk/id/local-authority/00FC),Chief Executive,Shared Services,I.T Shared Service,Communications And Computing,Computer S/Ware - Maintenance,LF102,27/11/2017,492888,15000,REVENUE,NORTH LINCOLNSHIRE COUNCIL,101186
North East Lincolnshire Council,http://statistics.data.gov.uk/id/local-authority/00FC),Chief Executive,Shared Services,I.T Shared Service,Communications And Computing,Computer S/Ware - Maintenance,LF102,13/11/2017,488854,3987,REVENUE,SERVELEC SYNERGY LTD,134371
North East Lincolnshire Council,http://statistics.data.gov.uk/id/local-authority/00FC),Chief Executive,Shared Services,I.T Shared Service,Communications And Computing,Computer S/Ware - Maintenance,LF102,30/11/2017,492726,3225,REVENUE,NORTH LINCOLNSHIRE COUNCIL,101186
North East Lincolnshire Council,http://statistics.data.gov.uk/id/local-authority/00FC),Chief Executive,Shared Services,I.T Shared Service,Communications And Computing,Computer S/Ware - Maintenance,LF102,16/11/2017,490764,3133,REVENUE,FIRST MEDIA SOLUTIONS LTD,101489
North East Lincolnshire Council,http://statistics.data.gov.uk/id/local-authority/00FC),Chief Executive,Shared Services,I.T Shared Service,Communications And Computing,Computer S/Ware - Maintenance,LF102,30/11/2017,493416,15917.34,REVENUE,MIDLAND SOFTWARE LTD,102633
North East Lincolnshire Council,http://statistics.data.gov.uk/id/local-authority/00FC),Chief Executive,Shared Services,I.T Shared Service,Communications And Computing,Computer S/Ware - Purchases,LF101,02/11/2017,488436,3356.25,REVENUE,IMERJA LTD,102238
North East Lincolnshire Council,http://statistics.data.gov.uk/id/local-authority/00FC),Chief Executive,Shared Services,I.T Shared Service,Communications And Computing,Internet Connection,LF110,23/11/2017,491788,45,REVENUE,VIRGIN MEDIA,107612
North East Lincolnshire Council,http://statistics.data.gov.uk/id/local-authority/00FC),Chief Executive,Shared Services,I.T Shared Service,Communications And Computing,Internet Connection,LF110,23/11/2017,491788,-110,REVENUE,VIRGIN MEDIA,107612
North East Lincolnshire Council,http://statistics.data.gov.uk/id/local-authority/00FC),Chief Executive,Shared Services,I.T Shared Service,Communications And Computing,Computer H/Ware - Purchases,LF105,13/11/2017,490523,315,REVENUE,VIRGIN MEDIA,107612
North East Lincolnshire Council,http://statistics.data.gov.uk/id/local-authority/00FC),Chief Executive,Shared Services,I.T Shared Service,Communications And Computing,Computer H/Ware - Purchases,LF105,13/11/2017,490525,315,REVENUE,VIRGIN MEDIA,107612
North East Lincolnshire Council,http://statistics.data.gov.uk/id/local-authority/00FC),Chief Executive,Shared Services,I.T Shared Service,Communications And Computing,Computer H/Ware - Purchases,LF105,13/11/2017,490527,315,REVENUE,VIRGIN MEDIA,107612
North East Lincolnshire Council,http://statistics.data.gov.uk/id/local-authority/00FC),Chief Executive,Shared Services,I.T Shared Service,Communications And Computing,Computer H/Ware - Purchases,LF105,13/11/2017,490529,342,REVENUE,VIRGIN MEDIA,107612
North East Lincolnshire Council,http://statistics.data.gov.uk/id/local-authority/00FC),Chief Executive,Shared Services,Human Resources,Direct Employee Expenses,Agency Staff,EA105,09/11/2017,489634,19149.93,REVENUE,MATRIX SCM LTD,108117
North East Lincolnshire Council,http://statistics.data.gov.uk/id/local-authority/00FC),Chief Executive,Shared Services,Human Resources,Direct Employee Expenses,Agency Staff,EA105,13/11/2017,489628,17199.17,REVENUE,MATRIX SCM LTD,108117
North East Lincolnshire Council,http://statistics.data.gov.uk/id/local-authority/00FC),Chief Executive,Shared Services,Human Resources,Direct Employee Expenses,Agency Staff,EA105,13/11/2017,489629,21460.99,REVENUE,MATRIX SCM LTD,108117
North East Lincolnshire Council,http://statistics.data.gov.uk/id/local-authority/00FC),Chief Executive,Shared Services,Human Resources,Direct Employee Expenses,Agency Staff,EA105,30/11/2017,493369,16311.91,REVENUE,MATRIX SCM LTD,108117
North East Lincolnshire Council,http://statistics.data.gov.uk/id/local-authority/00FC),Chief Executive,Shared Services,Human Resources,Indirect Employee Expenses,Disclosure Checks,EB124,13/11/2017,489959,4400,REVENUE,DISCLOSURE & BARRING SERVICE,119180
North East Lincolnshire Council,http://statistics.data.gov.uk/id/local-authority/00FC),Chief Executive,Shared Services,Human Resources,Indirect Employee Expenses,Staff Training,EB122,20/11/2017,491511,1925,REVENUE,NORTH WEST EMPLOYERS ASSOCIATION,138057
North East Lincolnshire Council,http://statistics.data.gov.uk/id/local-authority/00FC),Chief Executive,Shared Services,Human Resources,Indirect Employee Expenses,Staff Training,EB122,23/11/2017,491652,350,REVENUE,RISEHOLME COLLEGE,111373
North East Lincolnshire Council,http://statistics.data.gov.uk/id/local-authority/00FC),Chief Executive,Shared Services,Human Resources,Indirect Employee Expenses,Staff Training,EB122,07/11/2017,489953,540,REVENUE,MR JULIAN BAILEY,128727
North East Lincolnshire Council,http://statistics.data.gov.uk/id/local-authority/00FC),Chief Executive,Shared Services,Human Resources,Indirect Employee Expenses,Staff Training,EB122,30/11/2017,493545,303,REVENUE,CHARTERED INSTITUTE OF,100641
North East Lincolnshire Council,http://statistics.data.gov.uk/id/local-authority/00FC),Chief Executive,Shared Services,Human Resources,Indirect Employee Expenses,Staff Training,EB122,30/11/2017,493472,550,REVENUE,THE ADOLESCENT & CHILDRENS TRUST,129923
North East Lincolnshire Council,http://statistics.data.gov.uk/id/local-authority/00FC),Chief Executive,Shared Services,Human Resources,Indirect Employee Expenses,Staff Training,EB122,20/11/2017,490763,495,REVENUE,MRS S BARNSLEY,101143
North East Lincolnshire Council,http://statistics.data.gov.uk/id/local-authority/00FC),Chief Executive,Shared Services,Human Resources,Indirect Employee Expenses,Staff Training,EB122,07/11/2017,489336,500,REVENUE,MARTIN DRINKWATER TRAINING ASSOCIATES LTD,137329
North East Lincolnshire Council,http://statistics.data.gov.uk/id/local-authority/00FC),Chief Executive,Shared Services,Human Resources,Indirect Employee Expenses,Staff Training,EB122,23/11/2017,491652,350,REVENUE,RISEHOLME COLLEGE,111373
North East Lincolnshire Council,http://statistics.data.gov.uk/id/local-authority/00FC),Chief Executive,Shared Services,Human Resources,Indirect Employee Expenses,Staff Training,EB122,30/11/2017,493467,350,REVENUE,RISEHOLME COLLEGE,111373
North East Lincolnshire Council,http://statistics.data.gov.uk/id/local-authority/00FC),Chief Executive,Shared Services,Human Resources,Indirect Employee Expenses,Staff Training,EB122,30/11/2017,493447,350,REVENUE,RISEHOLME COLLEGE,111373
North East Lincolnshire Council,http://statistics.data.gov.uk/id/local-authority/00FC),Chief Executive,Shared Services,Human Resources,Indirect Employee Expenses,Staff Training,EB122,30/11/2017,493443,350,REVENUE,RISEHOLME COLLEGE,111373
North East Lincolnshire Council,http://statistics.data.gov.uk/id/local-authority/00FC),Chief Executive,Shared Services,Human Resources,Indirect Employee Expenses,Staff Training,EB122,30/11/2017,493475,350,REVENUE,RISEHOLME COLLEGE,111373
North East Lincolnshire Council,http://statistics.data.gov.uk/id/local-authority/00FC),Chief Executive,Shared Services,Human Resources,Indirect Employee Expenses,Staff Training,EB122,16/11/2017,488077,3000,REVENUE,FOREFRONT TRAINING LTD,105501
North East Lincolnshire Council,http://statistics.data.gov.uk/id/local-authority/00FC),Chief Executive,Shared Services,Human Resources,Indirect Employee Expenses,Staff Training,EB122,16/11/2017,489973,502,REVENUE,INSTITUTE OF CEMETERY & CREMATORIUM,101460
North East Lincolnshire Council,http://statistics.data.gov.uk/id/local-authority/00FC),Chief Executive,Shared Services,Human Resources,Indirect Employee Expenses,Staff Training,EB122,27/11/2017,491965,2280,REVENUE,UNIVERSITY OF LINCOLN,101299
North East Lincolnshire Council,http://statistics.data.gov.uk/id/local-authority/00FC),Chief Executive,Shared Services,Human Resources,Indirect Employee Expenses,Staff Training,EB122,30/11/2017,492713,320,REVENUE,ACS BEHAVIOUR CONSULTANCY & TRAINING LTD,138608
North East Lincolnshire Council,http://statistics.data.gov.uk/id/local-authority/00FC),Chief Executive,Shared Services,Human Resources,Indirect Employee Expenses,Medical Expenses - Employees,EB112,02/11/2017,488884,395,REVENUE,PBC MEDICAL SERVICES LTD,134740
North East Lincolnshire Council,http://statistics.data.gov.uk/id/local-authority/00FC),Chief Executive,Shared Services,Human Resources,Indirect Employee Expenses,Medical Expenses - Employees,EB112,13/11/2017,490514,2000,REVENUE,MANOR OCCUPATIONAL HEALTH LTD,130544
North East Lincolnshire Council,http://statistics.data.gov.uk/id/local-authority/00FC),Chief Executive,Shared Services,Human Resources,Miscellaneous Expenses,Other Expenses General,LL119,20/11/2017,490750,675,REVENUE,ROSPA,100697
North East Lincolnshire Council,http://statistics.data.gov.uk/id/local-authority/00FC),Chief Executive,Shared Services,Human Resources,Miscellaneous Expenses,Other Supplies & Services,LL110,23/11/2017,492291,3200,REVENUE,BOOST YOUR PROSPECTS CIC,138080
North East Lincolnshire Council,http://statistics.data.gov.uk/id/local-authority/00FC),Chief Executive,Shared Services,Central Commissioning & Delive,Miscellaneous Expenses,Other Expenses General,LL119,13/11/2017,488501,1250,REVENUE,LEEDS CITY COUNCIL,100545
North East Lincolnshire Council,http://statistics.data.gov.uk/id/local-authority/00FC),Chief Executive,Shared Services,Shared Print Hub,Equip / Furniture / Materials,Equipment - Purchase,LA101,13/11/2017,490511,678,REVENUE,CCM PRINT & MEDIA SOLUTIONS,134586
North East Lincolnshire Council,http://statistics.data.gov.uk/id/local-authority/00FC),Chief Executive,Shared Services,Shared Print Hub,Equip / Furniture / Materials,Equipment - Purchase,LA101,02/11/2017,487434,1281.45,REVENUE,DIGITAL ID,112896
North East Lincolnshire Council,http://statistics.data.gov.uk/id/local-authority/00FC),Chief Executive,Shared Services,Shared Print Hub,Equip / Furniture / Materials,Equipment - Purchase,LA101,30/11/2017,493232,515.61,REVENUE,ELLIOTT BAXTER & COMPANY LIMITED,101996
North East Lincolnshire Council,http://statistics.data.gov.uk/id/local-authority/00FC),Chief Executive,Shared Services,Shared Print Hub,Print Stationery / Gen Off Exp,Photocopier - Running Costs,LD102,21/11/2017,491907,-2500.79,REVENUE,XEROX FINANCE,100572
North East Lincolnshire Council,http://statistics.data.gov.uk/id/local-authority/00FC),Chief Executive,Shared Services,Shared Print Hub,Print Stationery / Gen Off Exp,Photocopier - Running Costs,LD102,21/11/2017,491908,-2500.79,REVENUE,XEROX FINANCE,100572
North East Lincolnshire Council,http://statistics.data.gov.uk/id/local-authority/00FC),Chief Executive,Shared Services,Shared Print Hub,Private Contractors,Third Party Prov - Private,PH101,09/11/2017,487530,570,REVENUE,CCM PRINT & MEDIA SOLUTIONS,134586
North East Lincolnshire Council,http://statistics.data.gov.uk/id/local-authority/00FC),Chief Executive,Shared Services,Shared Print Hub,Private Contractors,Third Party Prov - Private,PH101,23/11/2017,490590,757.95,REVENUE,HOUND ENVELOPES LTD,110120
North East Lincolnshire Council,http://statistics.data.gov.uk/id/local-authority/00FC),Chief Executive,Shared Services,Shared Print Hub,Private Contractors,Third Party Prov - Private,PH101,30/11/2017,492705,475,REVENUE,CCM PRINT & MEDIA SOLUTIONS,134586
North East Lincolnshire Council,http://statistics.data.gov.uk/id/local-authority/00FC),Chief Executive,Shared Services,Shared Print Hub,Equip / Furniture / Materials,Equipment - Purchase,LA101,28/11/2017,492308,350,REVENUE,ANTALIS LTD,124930
North East Lincolnshire Council,http://statistics.data.gov.uk/id/local-authority/00FC),Chief Executive,Shared Services,Shared Print Hub,Print Stationery / Gen Off Exp,Photocopier - Running Costs,LD102,21/11/2017,491906,-2500.79,REVENUE,XEROX FINANCE,100572
North East Lincolnshire Council,http://statistics.data.gov.uk/id/local-authority/00FC),Chief Executive,Shared Services,Shared Print Hub,Print Stationery / Gen Off Exp,Photocopier - Running Costs,LD102,23/11/2017,492263,1250.4,REVENUE,XEROX FINANCE,100572
North East Lincolnshire Council,http://statistics.data.gov.uk/id/local-authority/00FC),Chief Executive,Shared Services,Shared Print Hub,Print Stationery / Gen Off Exp,Photocopier - Running Costs,LD102,23/11/2017,492262,1250.4,REVENUE,XEROX FINANCE,100572
North East Lincolnshire Council,http://statistics.data.gov.uk/id/local-authority/00FC),Chief Executive,Shared Services,Shared Print Hub,Print Stationery / Gen Off Exp,Photocopier - Running Costs,LD102,23/11/2017,492261,1250.4,REVENUE,XEROX FINANCE,100572
North East Lincolnshire Council,http://statistics.data.gov.uk/id/local-authority/00FC),Chief Executive,Shared Services,Shared Print Hub,Print Stationery / Gen Off Exp,Photocopier - Running Costs,LD102,23/11/2017,492260,1250.4,REVENUE,XEROX FINANCE,100572
North East Lincolnshire Council,http://statistics.data.gov.uk/id/local-authority/00FC),Chief Executive,Shared Services,Shared Print Hub,Print Stationery / Gen Off Exp,Photocopier - Running Costs,LD102,23/11/2017,492259,1250.4,REVENUE,XEROX FINANCE,100572
North East Lincolnshire Council,http://statistics.data.gov.uk/id/local-authority/00FC),Chief Executive,Shared Services,Shared Print Hub,Print Stationery / Gen Off Exp,Photocopier - Running Costs,LD102,23/11/2017,492258,1084.9,REVENUE,UNITED CARLTON OFFICE SYSTEMS LTD,101652
North East Lincolnshire Council,http://statistics.data.gov.uk/id/local-authority/00FC),Chief Executive,Shared Services,Shared Print Hub,Print Stationery / Gen Off Exp,Photocopier - Running Costs,LD102,27/11/2017,492740,711.87,REVENUE,UNITED CARLTON OFFICE SYSTEMS LTD,101652
North East Lincolnshire Council,http://statistics.data.gov.uk/id/local-authority/00FC),Chief Executive,Shared Services,Shared Print Hub,Print Stationery / Gen Off Exp,Photocopier - Running Costs,LD102,27/11/2017,492741,402.14,REVENUE,UNITED CARLTON OFFICE SYSTEMS LTD,101652
North East Lincolnshire Council,http://statistics.data.gov.uk/id/local-authority/00FC),Chief Executive,Shared Services,Shared Print Hub,Print Stationery / Gen Off Exp,Photocopier - Running Costs,LD102,27/11/2017,492743,304.31,REVENUE,UNITED CARLTON OFFICE SYSTEMS LTD,101652
North East Lincolnshire Council,http://statistics.data.gov.uk/id/local-authority/00FC),Chief Executive,Shared Services,Shared Print Hub,Print Stationery / Gen Off Exp,Photocopier - Running Costs,LD102,27/11/2017,492799,294.09,REVENUE,UNITED CARLTON OFFICE SYSTEMS LTD,101652
North East Lincolnshire Council,http://statistics.data.gov.uk/id/local-authority/00FC),Chief Executive,Shared Services,Shared Print Hub,Print Stationery / Gen Off Exp,Photocopier - Running Costs,LD102,27/11/2017,492800,257.49,REVENUE,UNITED CARLTON OFFICE SYSTEMS LTD,101652
North East Lincolnshire Council,http://statistics.data.gov.uk/id/local-authority/00FC),Chief Executive,Shared Services,Shared Print Hub,Print Stationery / Gen Off Exp,Photocopier - Running Costs,LD102,27/11/2017,492802,257.48,REVENUE,UNITED CARLTON OFFICE SYSTEMS LTD,101652
North East Lincolnshire Council,http://statistics.data.gov.uk/id/local-authority/00FC),Chief Executive,Shared Services,Shared Print Hub,Print Stationery / Gen Off Exp,Printing And Stationery,LD103,06/11/2017,488606,3363.79,REVENUE,XEROX (UK) LIMITED,100953
North East Lincolnshire Council,http://statistics.data.gov.uk/id/local-authority/00FC),Chief Executive,Shared Services,Shared Print Hub,Print Stationery / Gen Off Exp,Printing And Stationery,LD103,20/11/2017,491646,1610,REVENUE,JIGSAW SYSTEMS LTD,106840
North East Lincolnshire Council,http://statistics.data.gov.uk/id/local-authority/00FC),Chief Executive,Shared Services,Shared Print Hub,Print Stationery / Gen Off Exp,Printing And Stationery,LD103,23/11/2017,492258,711.94,REVENUE,UNITED CARLTON OFFICE SYSTEMS LTD,101652
North East Lincolnshire Council,http://statistics.data.gov.uk/id/local-authority/00FC),Chief Executive,Shared Services,Shared Print Hub,Print Stationery / Gen Off Exp,Printing And Stationery,LD103,27/11/2017,492740,3879.14,REVENUE,UNITED CARLTON OFFICE SYSTEMS LTD,101652
North East Lincolnshire Council,http://statistics.data.gov.uk/id/local-authority/00FC),Chief Executive,Shared Services,Shared Print Hub,Print Stationery / Gen Off Exp,Printing And Stationery,LD103,27/11/2017,492802,441.79,REVENUE,UNITED CARLTON OFFICE SYSTEMS LTD,101652
North East Lincolnshire Council,http://statistics.data.gov.uk/id/local-authority/00FC),Chief Executive,Ad Governance And Democracy,Democratic Services & Scrutiny,Private Contractors,Third Party Prov - Private,PH101,13/11/2017,490236,2505,REVENUE,HARVERLEA CONSULTING LTD,105303
North East Lincolnshire Council,http://statistics.data.gov.uk/id/local-authority/00FC),Chief Executive,Ad Governance And Democracy,Registrars & Civic Services,Contract Hire-Operating Leases,Vehicles - Contract Hire,JC101,14/11/2017,490540,290,REVENUE,APEX CARS,102226
North East Lincolnshire Council,http://statistics.data.gov.uk/id/local-authority/00FC),Chief Executive,Ad Governance And Democracy,Registrars & Civic Services,Catering,Provisions,LB101,27/11/2017,492252,305,REVENUE,UK VENDING LTD,138592
North East Lincolnshire Council,http://statistics.data.gov.uk/id/local-authority/00FC),Chief Executive,Ad Governance And Democracy,Registrars & Civic Services,Rents,Rent,GC101,13/11/2017,489627,2750,REVENUE,CLEETHORPES CHARTER TRUSTEES,101604
North East Lincolnshire Council,http://statistics.data.gov.uk/id/local-authority/00FC),Chief Executive,Ad Governance And Democracy,Ad Governance & Democracy,Miscellaneous Expenses,Other Supplies & Services,LL110,06/11/2017,489302,19500,REVENUE,JONES LANG LASALLE LIMITED,138438
North East Lincolnshire Council,http://statistics.data.gov.uk/id/local-authority/00FC),Chief Executive,Ad Governance And Democracy,Ad Governance & Democracy,Equip / Furniture / Materials,Equipment - Hire,LA102,20/11/2017,491227,480,REVENUE,ST JOHN AMBULANCE,100764
North East Lincolnshire Council,http://statistics.data.gov.uk/id/local-authority/00FC),Chief Executive,Ad Governance And Democracy,Elections & Complaints,Print Stationery / Gen Off Exp,Printing And Stationery,LD103,09/11/2017,489950,1286.81,REVENUE,PRINT IMAGE NETWORK LTD,103724
North East Lincolnshire Council,http://statistics.data.gov.uk/id/local-authority/00FC),Chief Executive,Ad Governance And Democracy,Elections & Complaints,Communications And Computing,Postage,LF111,21/11/2017,492062,1646.32,REVENUE,PRINT IMAGE FACILITIES LLP,125574
North East Lincolnshire Council,http://statistics.data.gov.uk/id/local-authority/00FC),Chief Executive,Ad Governance And Democracy,Elections & Complaints,Rents,Rent,GC101,13/11/2017,489971,450,REVENUE,GRIMSBY TOWN FOOTBALL CLUB,100646
North East Lincolnshire Council,http://statistics.data.gov.uk/id/local-authority/00FC),Chief Executive,Ad Law,Coroners,Rents,Room Hire,GC103,20/11/2017,491533,487.5,REVENUE,CLEETHORPES CHARTER TRUSTEES,101604
North East Lincolnshire Council,http://statistics.data.gov.uk/id/local-authority/00FC),Chief Executive,Ad Law,Coroners,Services,Alternative Provision,LE103,02/11/2017,489030,1027.35,REVENUE,REDACTED PERSONAL INFORMATION,REDACTED PERSONAL INFORMATION
North East Lincolnshire Council,http://statistics.data.gov.uk/id/local-authority/00FC),Chief Executive,Ad Law,Coroners,Miscellaneous Expenses,Legal Fees - General,LL103,06/11/2017,489130,1271.7,REVENUE,REDACTED PERSONAL INFORMATION,REDACTED PERSONAL INFORMATION
North East Lincolnshire Council,http://statistics.data.gov.uk/id/local-authority/00FC),Chief Executive,Ad Law,Coroners,Other Agencies,Conveyance Bodies,PJ149,16/11/2017,490790,441.8,REVENUE,J NAYLOR (FUNERAL DIRECTORS) LTD,100731
North East Lincolnshire Council,http://statistics.data.gov.uk/id/local-authority/00FC),Chief Executive,Ad Law,Coroners,Other Agencies,Mortuary Storage Charges,PJ156,20/11/2017,490774,1210,REVENUE,SHEFFIELD CHILDREN'S NHS TRUST,100955
North East Lincolnshire Council,http://statistics.data.gov.uk/id/local-authority/00FC),Chief Executive,Ad Law,Coroners,Other Agencies,Mortuary Storage Charges,PJ156,27/11/2017,492863,7020,REVENUE,N LINCS & GOOLE HOSPITALS NHS,111074
North East Lincolnshire Council,http://statistics.data.gov.uk/id/local-authority/00FC),Chief Executive,Ad Law,Coroners,Other Agencies,Mortuary Storage Charges,PJ156,28/11/2017,492866,5967,REVENUE,N LINCS & GOOLE HOSPITALS NHS,111074
North East Lincolnshire Council,http://statistics.data.gov.uk/id/local-authority/00FC),Chief Executive,Ad Law,Coroners,Other Agencies,Mortuary Storage Charges,PJ156,28/11/2017,492862,2352,REVENUE,N LINCS & GOOLE HOSPITALS NHS,111074
North East Lincolnshire Council,http://statistics.data.gov.uk/id/local-authority/00FC),Chief Executive,Ad Law,Coroners,Other Agencies,Post Mortems,PJ148,27/11/2017,492697,1909,REVENUE,N LINCS & GOOLE HOSPITALS NHS,111074
North East Lincolnshire Council,http://statistics.data.gov.uk/id/local-authority/00FC),Chief Executive,Ad Law,Coroners,Other Agencies,Post Mortems,PJ148,16/11/2017,490789,831.8,REVENUE,REDACTED PERSONAL INFORMATION,REDACTED PERSONAL INFORMATION
North East Lincolnshire Council,http://statistics.data.gov.uk/id/local-authority/00FC),Chief Executive,Ad Law,Coroners,Other Agencies,Post Mortems,PJ148,23/11/2017,491930,276.9,REVENUE,MARTA COHEN LTD,110632
North East Lincolnshire Council,http://statistics.data.gov.uk/id/local-authority/00FC),Chief Executive,Ad Law,Legal Services,Grants And Subscriptions,Subscriptions,LJ101,20/11/2017,491624,1695,REVENUE,NLA MEDIA ACCESS,122807
North East Lincolnshire Council,http://statistics.data.gov.uk/id/local-authority/00FC),Chief Executive,Ad Law,Legal Services,Grants And Subscriptions,Subscriptions,LJ101,09/11/2017,489705,381.1,REVENUE,LEXISNEXIS UK,101447
North East Lincolnshire Council,http://statistics.data.gov.uk/id/local-authority/00FC),Chief Executive,Ad Law,Legal Services,Grants And Subscriptions,Subscriptions,LJ101,09/11/2017,489705,358.9,REVENUE,LEXISNEXIS UK,101447
North East Lincolnshire Council,http://statistics.data.gov.uk/id/local-authority/00FC),Chief Executive,Ad Law,Legal Services,Grants And Subscriptions,Subscriptions,LJ101,23/11/2017,491699,6274.08,REVENUE,THE COPYRIGHT LICENSING AGENCY LIMITED,101041
North East Lincolnshire Council,http://statistics.data.gov.uk/id/local-authority/00FC),Chief Executive,Ad Law,Legal Services,Miscellaneous Expenses,Legal Fees - Courts Costs,LL104,09/11/2017,490273,255,REVENUE,HMCTS,109906
North East Lincolnshire Council,http://statistics.data.gov.uk/id/local-authority/00FC),Chief Executive,Ad Law,Legal Services,Miscellaneous Expenses,Legal Fees - General,LL103,27/11/2017,492786,307.43,REVENUE,LEXISNEXIS UK,101447
North East Lincolnshire Council,http://statistics.data.gov.uk/id/local-authority/00FC),Chief Executive,Ad Law,Legal Services,Miscellaneous Expenses,Legal Fees - General,LL103,30/11/2017,493450,1166,REVENUE,WOMBLE BOND DICKINSON (UK) LLP,121775
North East Lincolnshire Council,http://statistics.data.gov.uk/id/local-authority/00FC),Chief Executive,Ad Law,Legal Services,Miscellaneous Expenses,Legal Fees - General,LL103,06/11/2017,489180,1440,REVENUE,CH&I ASSOCIATES,137159
North East Lincolnshire Council,http://statistics.data.gov.uk/id/local-authority/00FC),Chief Executive,Ad Law,Legal Services,Miscellaneous Expenses,Legal Fees - General,LL103,23/11/2017,491959,377.5,REVENUE,WEIGHTMANS LLP,124689
North East Lincolnshire Council,http://statistics.data.gov.uk/id/local-authority/00FC),Chief Executive,Ad Law,Legal Services,Miscellaneous Expenses,Legal Fees - General,LL103,23/11/2017,492051,450,REVENUE,PETER YATES,134523
North East Lincolnshire Council,http://statistics.data.gov.uk/id/local-authority/00FC),Chief Executive,Ad Law,Legal Services,Consultancy,Consultancy,PL101,23/11/2017,485220,1472,REVENUE,WOMBLE BOND DICKINSON (UK) LLP,121775
North East Lincolnshire Council,http://statistics.data.gov.uk/id/local-authority/00FC),Chief Executive,Ad Law,Legal Services,Consultancy,Consultancy,PL101,09/11/2017,489580,912,REVENUE,WOMBLE BOND DICKINSON (UK) LLP,121775
North East Lincolnshire Council,http://statistics.data.gov.uk/id/local-authority/00FC),Chief Executive,Ad Law,Legal Services,Consultancy,Consultancy,PL101,23/11/2017,491700,2940,REVENUE,WOMBLE BOND DICKINSON (UK) LLP,121775
North East Lincolnshire Council,http://statistics.data.gov.uk/id/local-authority/00FC),Chief Executive,Ad Law,Legal Services,Miscellaneous Expenses,Legal Fees - Courts Costs,LL104,20/11/2017,491289,520,REVENUE,MR MARK WATTERSON,109973
North East Lincolnshire Council,http://statistics.data.gov.uk/id/local-authority/00FC),Chief Executive,Ad Law,Legal Services,Miscellaneous Expenses,Legal Fees - General,LL103,30/11/2017,493490,400,REVENUE,COURT OF PROTECTION,135146
North East Lincolnshire Council,http://statistics.data.gov.uk/id/local-authority/00FC),Chief Executive,Ad Law,Legal Services,Miscellaneous Expenses,Legal Fees - General,LL103,30/11/2017,493491,400,REVENUE,COURT OF PROTECTION,135146
North East Lincolnshire Council,http://statistics.data.gov.uk/id/local-authority/00FC),Chief Executive,Ad Law,Legal Services,Miscellaneous Expenses,Legal Fees - General,LL103,30/11/2017,493535,400,REVENUE,COURT OF PROTECTION,135146
North East Lincolnshire Council,http://statistics.data.gov.uk/id/local-authority/00FC),Chief Executive,Ad Law,Legal Services,Miscellaneous Expenses,Legal Fees - General,LL103,03/11/2017,489301,400,REVENUE,COURT OF PROTECTION,135146
North East Lincolnshire Council,http://statistics.data.gov.uk/id/local-authority/00FC),Chief Executive,Ad Law,Legal Services,Miscellaneous Expenses,Legal Fees - General,LL103,03/11/2017,489299,400,REVENUE,COURT OF PROTECTION,135146
North East Lincolnshire Council,http://statistics.data.gov.uk/id/local-authority/00FC),Chief Executive,Ad Law,Legal Services,Miscellaneous Expenses,Legal Fees - General,LL103,20/11/2017,491622,400,REVENUE,COURT OF PROTECTION,135146
North East Lincolnshire Council,http://statistics.data.gov.uk/id/local-authority/00FC),Chief Executive,Ad Law,Legal Services,Miscellaneous Expenses,Legal Fees - General,LL103,23/11/2017,492373,465,REVENUE,DR R STANHOPE,132907
North East Lincolnshire Council,http://statistics.data.gov.uk/id/local-authority/00FC),Chief Executive,Ad Law,Legal Services,Miscellaneous Expenses,Legal Fees - General,LL103,02/11/2017,487857,580.5,REVENUE,PROFESSOR ANN M MORTIMER,111064
North East Lincolnshire Council,http://statistics.data.gov.uk/id/local-authority/00FC),Chief Executive,Ad Law,Legal Services,Miscellaneous Expenses,Legal Fees - General,LL103,06/11/2017,489184,619.65,REVENUE,HARPHAMS MEDIA TRANSCRIBERS,112780
North East Lincolnshire Council,http://statistics.data.gov.uk/id/local-authority/00FC),Chief Executive,Ad Law,Legal Services,Miscellaneous Expenses,Legal Fees - General,LL103,06/11/2017,489183,250.92,REVENUE,HARPHAMS MEDIA TRANSCRIBERS,112780
North East Lincolnshire Council,http://statistics.data.gov.uk/id/local-authority/00FC),Chief Executive,Ad Law,Legal Services,Miscellaneous Expenses,Legal Fees - General,LL103,09/11/2017,490167,259.2,REVENUE,PROFESSOR ANN M MORTIMER,111064
North East Lincolnshire Council,http://statistics.data.gov.uk/id/local-authority/00FC),Chief Executive,Ad Law,Legal Services,Miscellaneous Expenses,Legal Fees - General,LL103,09/11/2017,490171,595,REVENUE,MR MICHAEL S BURDON,104432
North East Lincolnshire Council,http://statistics.data.gov.uk/id/local-authority/00FC),Chief Executive,Ad Law,Legal Services,Miscellaneous Expenses,Legal Fees - General,LL103,23/11/2017,491617,421.9,REVENUE,DR ALISTAIR FIELDER,129103
North East Lincolnshire Council,http://statistics.data.gov.uk/id/local-authority/00FC),Chief Executive,Ad Law,Legal Services,Miscellaneous Expenses,Legal Fees - General,LL103,13/11/2017,490257,520,REVENUE,MR MARK WATTERSON,109973
North East Lincolnshire Council,http://statistics.data.gov.uk/id/local-authority/00FC),Chief Executive,Ad Law,Legal Services,Miscellaneous Expenses,Legal Fees - General,LL103,13/11/2017,490516,339.63,REVENUE,MR PAUL D HUNT,107261
North East Lincolnshire Council,http://statistics.data.gov.uk/id/local-authority/00FC),Chief Executive,Ad Law,Legal Services,Miscellaneous Expenses,Legal Fees - General,LL103,13/11/2017,490264,420,REVENUE,MORTON LAW LTD,124752
North East Lincolnshire Council,http://statistics.data.gov.uk/id/local-authority/00FC),Chief Executive,Ad Law,Legal Services,Miscellaneous Expenses,Legal Fees - General,LL103,13/11/2017,490263,360,REVENUE,MORTON LAW LTD,124752
North East Lincolnshire Council,http://statistics.data.gov.uk/id/local-authority/00FC),Chief Executive,Ad Law,Legal Services,Miscellaneous Expenses,Legal Fees - General,LL103,30/11/2017,493357,540,REVENUE,MORTON LAW LTD,124752
North East Lincolnshire Council,http://statistics.data.gov.uk/id/local-authority/00FC),Chief Executive,Ad Law,Legal Services,Miscellaneous Expenses,Legal Fees - General,LL103,30/11/2017,493356,480,REVENUE,MORTON LAW LTD,124752
North East Lincolnshire Council,http://statistics.data.gov.uk/id/local-authority/00FC),Chief Executive,Ad Law,Legal Services,Miscellaneous Expenses,Legal Fees - General,LL103,20/11/2017,490568,734.96,REVENUE,CARTER BROWN THE EXPERT SERVICE,106320
North East Lincolnshire Council,http://statistics.data.gov.uk/id/local-authority/00FC),Chief Executive,Ad Law,Legal Services,Miscellaneous Expenses,Legal Fees - General,LL103,27/11/2017,492702,1775,REVENUE,JOHN BARKERS SOLICITORS,100928
North East Lincolnshire Council,http://statistics.data.gov.uk/id/local-authority/00FC),Chief Executive,Ad Law,Legal Services,Miscellaneous Expenses,Legal Fees - General,LL103,23/11/2017,492049,1382.5,REVENUE,MR MICHAEL S BURDON,104432
North East Lincolnshire Council,http://statistics.data.gov.uk/id/local-authority/00FC),Chief Executive,Ad Law,Legal Services,Miscellaneous Expenses,Legal Fees - General,LL103,23/11/2017,492167,1147.58,REVENUE,REFLECTIVE MINDS LTD,136501
North East Lincolnshire Council,http://statistics.data.gov.uk/id/local-authority/00FC),Chief Executive,Ad Law,Legal Services,Miscellaneous Expenses,Legal Fees - General,LL103,27/11/2017,492718,490,REVENUE,BATES & MOUNTAIN SOLICITORS,104183
North East Lincolnshire Council,http://statistics.data.gov.uk/id/local-authority/00FC),Chief Executive,Ad Law,Legal Services,Miscellaneous Expenses,Legal Fees - General,LL103,27/11/2017,492673,775,REVENUE,BATES & MOUNTAIN SOLICITORS,104183
North East Lincolnshire Council,http://statistics.data.gov.uk/id/local-authority/00FC),Chief Executive,Ad Law,Legal Services,Miscellaneous Expenses,Legal Fees - General,LL103,30/11/2017,492171,631.15,REVENUE,JOHN BARKERS SOLICITORS,100928
North East Lincolnshire Council,http://statistics.data.gov.uk/id/local-authority/00FC),Chief Executive,Ad Law,Legal Services,Miscellaneous Expenses,Legal Fees - General,LL103,23/11/2017,492165,721.42,REVENUE,AZTEC TRANSLATIONS,106512
North East Lincolnshire Council,http://statistics.data.gov.uk/id/local-authority/00FC),Chief Executive,Ad Law,Legal Services,Miscellaneous Expenses,Legal Fees - General,LL103,23/11/2017,492174,595,REVENUE,MR MICHAEL S BURDON,104432
North East Lincolnshire Council,http://statistics.data.gov.uk/id/local-authority/00FC),Chief Executive,Ad Law,Legal Services,Miscellaneous Expenses,Legal Fees - General,LL103,23/11/2017,492173,1280,REVENUE,MISS JACQUI THOMAS,129005
North East Lincolnshire Council,http://statistics.data.gov.uk/id/local-authority/00FC),Chief Executive,Ad Law,Legal Services,Miscellaneous Expenses,Legal Fees - General,LL103,23/11/2017,492172,563.33,REVENUE,DR ELLIS MOSLEY,104893
North East Lincolnshire Council,http://statistics.data.gov.uk/id/local-authority/00FC),Chief Executive,Ad Law,Legal Services,Miscellaneous Expenses,Other Supplies & Services,LL110,09/11/2017,490211,7511.28,REVENUE,NORTH LINCOLNSHIRE COUNCIL,101186
North East Lincolnshire Council,http://statistics.data.gov.uk/id/local-authority/00FC),Deputy Chief Executive,Director Of Early Help,Prevention And Early Help,Equip / Furniture / Materials,Equipment - Purchase,LA101,27/11/2017,492720,787.5,REVENUE,JC COOK LTD,106127
North East Lincolnshire Council,http://statistics.data.gov.uk/id/local-authority/00FC),Deputy Chief Executive,Director Of Early Help,Prevention And Early Help,Contributions To Provisions,Contributions - Other,LK103,16/11/2017,490999,615,REVENUE,BUTTERFLIES DAY NURSERY,101694
North East Lincolnshire Council,http://statistics.data.gov.uk/id/local-authority/00FC),Deputy Chief Executive,Director Of Early Help,Prevention And Early Help,Contributions To Provisions,Contributions - Other,LK103,16/11/2017,490992,1783.5,REVENUE,CLEETHORPES CHILDCARE,101591
North East Lincolnshire Council,http://statistics.data.gov.uk/id/local-authority/00FC),Deputy Chief Executive,Director Of Early Help,Prevention And Early Help,Contributions To Provisions,Contributions - Other,LK103,16/11/2017,491096,615,REVENUE,IMMINGHAM DAY CARE,122312
North East Lincolnshire Council,http://statistics.data.gov.uk/id/local-authority/00FC),Deputy Chief Executive,Director Of Early Help,Prevention And Early Help,Contributions To Provisions,Contributions - Other,LK103,16/11/2017,491036,615,REVENUE,LISLE MARSDEN CHILDCARE LIMITED,110493
North East Lincolnshire Council,http://statistics.data.gov.uk/id/local-authority/00FC),Deputy Chief Executive,Director Of Early Help,Prevention And Early Help,Contributions To Provisions,Contributions - Other,LK103,16/11/2017,491051,615,REVENUE,ORMISTON SOUTH PARADE ACADEMY,111750
North East Lincolnshire Council,http://statistics.data.gov.uk/id/local-authority/00FC),Deputy Chief Executive,Director Of Early Help,Prevention And Early Help,Contributions To Provisions,Contributions - Other,LK103,16/11/2017,491072,615,REVENUE,THRUNSCOE PRIMARY AND NURSERY ACADEMY,118749
North East Lincolnshire Council,http://statistics.data.gov.uk/id/local-authority/00FC),Deputy Chief Executive,Director Of Early Help,Prevention And Early Help,Private Contractors,Third Party Prov - Private,PH101,16/11/2017,490921,333.9,REVENUE,FOR UNDER FIVES LTD,100647
North East Lincolnshire Council,http://statistics.data.gov.uk/id/local-authority/00FC),Deputy Chief Executive,Director Of Early Help,Prevention And Early Help,Private Contractors,Third Party Prov - Private,PH101,16/11/2017,491046,333.9,REVENUE,BURSAR PLAYGROUP,111550
North East Lincolnshire Council,http://statistics.data.gov.uk/id/local-authority/00FC),Deputy Chief Executive,Director Of Early Help,Prevention And Early Help,Private Contractors,Third Party Prov - Private,PH101,16/11/2017,491169,445.2,REVENUE,CAMPDEN KIDS LTD,132975
North East Lincolnshire Council,http://statistics.data.gov.uk/id/local-authority/00FC),Deputy Chief Executive,Director Of Early Help,Prevention And Early Help,Private Contractors,Third Party Prov - Private,PH101,16/11/2017,490922,1647.24,REVENUE,FOR UNDER FIVES LTD,100647
North East Lincolnshire Council,http://statistics.data.gov.uk/id/local-authority/00FC),Deputy Chief Executive,Director Of Early Help,Prevention And Early Help,Private Contractors,Third Party Prov - Private,PH101,16/11/2017,491145,799.1,REVENUE,FREESTON TOTS PRESCHOOL,128592
North East Lincolnshire Council,http://statistics.data.gov.uk/id/local-authority/00FC),Deputy Chief Executive,Director Of Early Help,Prevention And Early Help,Private Contractors,Third Party Prov - Private,PH101,16/11/2017,490973,1613.85,REVENUE,FIRST STEPS GRIMSBY LIMITED,101411
North East Lincolnshire Council,http://statistics.data.gov.uk/id/local-authority/00FC),Deputy Chief Executive,Director Of Early Help,Prevention And Early Help,Private Contractors,Third Party Prov - Private,PH101,16/11/2017,490910,333.9,REVENUE,FOR UNDER FIVES LTD,100647
North East Lincolnshire Council,http://statistics.data.gov.uk/id/local-authority/00FC),Deputy Chief Executive,Director Of Early Help,Prevention And Early Help,Private Contractors,Third Party Prov - Private,PH101,16/11/2017,490993,333.9,REVENUE,CLEETHORPES CHILDCARE,101591
North East Lincolnshire Council,http://statistics.data.gov.uk/id/local-authority/00FC),Deputy Chief Executive,Director Of Early Help,Prevention And Early Help,Private Contractors,Third Party Prov - Private,PH101,16/11/2017,491069,445.2,REVENUE,HUMBERSTON PRE SCHOOL,114491
North East Lincolnshire Council,http://statistics.data.gov.uk/id/local-authority/00FC),Deputy Chief Executive,Director Of Early Help,Prevention And Early Help,Private Contractors,Third Party Prov - Private,PH101,16/11/2017,491097,890.4,REVENUE,IMMINGHAM DAY CARE,122312
North East Lincolnshire Council,http://statistics.data.gov.uk/id/local-authority/00FC),Deputy Chief Executive,Director Of Early Help,Prevention And Early Help,Private Contractors,Third Party Prov - Private,PH101,16/11/2017,491118,667.8,REVENUE,LEAP AHEAD NURSERY,128017
North East Lincolnshire Council,http://statistics.data.gov.uk/id/local-authority/00FC),Deputy Chief Executive,Director Of Early Help,Prevention And Early Help,Private Contractors,Third Party Prov - Private,PH101,16/11/2017,491062,1001.7,REVENUE,GRIMSBY INSTITUTE - LITTLE STARS DAY NURSERY,114230
North East Lincolnshire Council,http://statistics.data.gov.uk/id/local-authority/00FC),Deputy Chief Executive,Director Of Early Help,Prevention And Early Help,Private Contractors,Third Party Prov - Private,PH101,16/11/2017,491037,333.9,REVENUE,LISLE MARSDEN CHILDCARE LIMITED,110493
North East Lincolnshire Council,http://statistics.data.gov.uk/id/local-authority/00FC),Deputy Chief Executive,Director Of Early Help,Prevention And Early Help,Private Contractors,Third Party Prov - Private,PH101,16/11/2017,490977,333.9,REVENUE,PRECIOUS TIMES CHILDCARE SERVICES,101420
North East Lincolnshire Council,http://statistics.data.gov.uk/id/local-authority/00FC),Deputy Chief Executive,Director Of Early Help,Prevention And Early Help,Private Contractors,Third Party Prov - Private,PH101,16/11/2017,490979,667.8,REVENUE,PRECIOUS TIMES CHILDCARE SERVICES,101420
North East Lincolnshire Council,http://statistics.data.gov.uk/id/local-authority/00FC),Deputy Chief Executive,Director Of Early Help,Prevention And Early Help,Private Contractors,Third Party Prov - Private,PH101,16/11/2017,490909,890.4,REVENUE,FOR UNDER FIVES LTD,100647
North East Lincolnshire Council,http://statistics.data.gov.uk/id/local-authority/00FC),Deputy Chief Executive,Director Of Early Help,Prevention And Early Help,Private Contractors,Third Party Prov - Private,PH101,16/11/2017,490917,333.9,REVENUE,FOR UNDER FIVES LTD,100647
North East Lincolnshire Council,http://statistics.data.gov.uk/id/local-authority/00FC),Deputy Chief Executive,Director Of Early Help,Prevention And Early Help,Private Contractors,Third Party Prov - Private,PH101,16/11/2017,491086,415.52,REVENUE,ST CHRISTOPHERS PRE SCHOOL,121589
North East Lincolnshire Council,http://statistics.data.gov.uk/id/local-authority/00FC),Deputy Chief Executive,Director Of Early Help,Prevention And Early Help,Private Contractors,Third Party Prov - Private,PH101,16/11/2017,491005,445.2,REVENUE,ST MARGARETS PRE-SCHOOL,101724
North East Lincolnshire Council,http://statistics.data.gov.uk/id/local-authority/00FC),Deputy Chief Executive,Director Of Early Help,Prevention And Early Help,Private Contractors,Third Party Prov - Private,PH101,16/11/2017,490962,333.9,REVENUE,ST PETERS CHILDREN CENTRE,101322
North East Lincolnshire Council,http://statistics.data.gov.uk/id/local-authority/00FC),Deputy Chief Executive,Director Of Early Help,Prevention And Early Help,Private Contractors,Third Party Prov - Private,PH101,16/11/2017,491025,667.8,REVENUE,THE AVENUE PLAYGROUP,103168
North East Lincolnshire Council,http://statistics.data.gov.uk/id/local-authority/00FC),Deputy Chief Executive,Director Of Early Help,Prevention And Early Help,Private Contractors,Third Party Prov - Private,PH101,16/11/2017,490960,2408.85,REVENUE,WELHOLME PRE SCHOOL,101258
North East Lincolnshire Council,http://statistics.data.gov.uk/id/local-authority/00FC),Deputy Chief Executive,Director Of Early Help,Prevention And Early Help,Private Contractors,Third Party Prov - Private,PH101,16/11/2017,491021,1113,REVENUE,WIZ KIDZ,102424
North East Lincolnshire Council,http://statistics.data.gov.uk/id/local-authority/00FC),Deputy Chief Executive,Director Of Early Help,Prevention And Early Help,Private Contractors,Third Party Prov - Private,PH101,16/11/2017,490995,430.36,REVENUE,CLEETHORPES CHILDCARE,101591
North East Lincolnshire Council,http://statistics.data.gov.uk/id/local-authority/00FC),Deputy Chief Executive,Director Of Early Help,Prevention And Early Help,Other Agencies,Nursery Educ Fund - Standard,PJ139,16/11/2017,491163,1680,REVENUE,MRS A PARKER,132521
North East Lincolnshire Council,http://statistics.data.gov.uk/id/local-authority/00FC),Deputy Chief Executive,Director Of Early Help,Prevention And Early Help,Other Agencies,Nursery Educ Fund - Standard,PJ139,16/11/2017,491104,839.47,REVENUE,ANGELA MAYER,125119
North East Lincolnshire Council,http://statistics.data.gov.uk/id/local-authority/00FC),Deputy Chief Executive,Director Of Early Help,Prevention And Early Help,Other Agencies,Nursery Educ Fund - Standard,PJ139,16/11/2017,490919,4957.2,REVENUE,FOR UNDER FIVES LTD,100647
North East Lincolnshire Council,http://statistics.data.gov.uk/id/local-authority/00FC),Deputy Chief Executive,Director Of Early Help,Prevention And Early Help,Other Agencies,Nursery Educ Fund - Standard,PJ139,16/11/2017,491049,2460,REVENUE,BURSAR PLAYGROUP,111550
North East Lincolnshire Council,http://statistics.data.gov.uk/id/local-authority/00FC),Deputy Chief Executive,Director Of Early Help,Prevention And Early Help,Other Agencies,Nursery Educ Fund - Standard,PJ139,16/11/2017,491167,5287.27,REVENUE,CAMPDEN KIDS LTD,132975
North East Lincolnshire Council,http://statistics.data.gov.uk/id/local-authority/00FC),Deputy Chief Executive,Director Of Early Help,Prevention And Early Help,Other Agencies,Nursery Educ Fund - Standard,PJ139,16/11/2017,490924,4132.8,REVENUE,FOR UNDER FIVES LTD,100647
North East Lincolnshire Council,http://statistics.data.gov.uk/id/local-authority/00FC),Deputy Chief Executive,Director Of Early Help,Prevention And Early Help,Other Agencies,Nursery Educ Fund - Standard,PJ139,16/11/2017,490951,17262,REVENUE,THE CHILDRENS HOUSE,101141
North East Lincolnshire Council,http://statistics.data.gov.uk/id/local-authority/00FC),Deputy Chief Executive,Director Of Early Help,Prevention And Early Help,Other Agencies,Nursery Educ Fund - Standard,PJ139,16/11/2017,491173,1736,REVENUE,EMMA BRYAN,133307
North East Lincolnshire Council,http://statistics.data.gov.uk/id/local-authority/00FC),Deputy Chief Executive,Director Of Early Help,Prevention And Early Help,Other Agencies,Nursery Educ Fund - Standard,PJ139,16/11/2017,491155,672,REVENUE,EMMA WINFARRAH,131930
North East Lincolnshire Council,http://statistics.data.gov.uk/id/local-authority/00FC),Deputy Chief Executive,Director Of Early Help,Prevention And Early Help,Other Agencies,Nursery Educ Fund - Standard,PJ139,16/11/2017,491143,4950.75,REVENUE,FREESTON TOTS PRESCHOOL,128592
North East Lincolnshire Council,http://statistics.data.gov.uk/id/local-authority/00FC),Deputy Chief Executive,Director Of Early Help,Prevention And Early Help,Other Agencies,Nursery Educ Fund - Standard,PJ139,16/11/2017,491107,1722,REVENUE,FIRST STEPS WITH SURE START,126658
North East Lincolnshire Council,http://statistics.data.gov.uk/id/local-authority/00FC),Deputy Chief Executive,Director Of Early Help,Prevention And Early Help,Other Agencies,Nursery Educ Fund - Standard,PJ139,16/11/2017,490971,15397.55,REVENUE,FIRST STEPS GRIMSBY LIMITED,101411
North East Lincolnshire Council,http://statistics.data.gov.uk/id/local-authority/00FC),Deputy Chief Executive,Director Of Early Help,Prevention And Early Help,Other Agencies,Nursery Educ Fund - Standard,PJ139,16/11/2017,490912,4050,REVENUE,FOR UNDER FIVES LTD,100647
North East Lincolnshire Council,http://statistics.data.gov.uk/id/local-authority/00FC),Deputy Chief Executive,Director Of Early Help,Prevention And Early Help,Other Agencies,Nursery Educ Fund - Standard,PJ139,16/11/2017,491187,1050,REVENUE,CURIOUS MINDS CHILDMINDING,135012
North East Lincolnshire Council,http://statistics.data.gov.uk/id/local-authority/00FC),Deputy Chief Executive,Director Of Early Help,Prevention And Early Help,Other Agencies,Nursery Educ Fund - Standard,PJ139,16/11/2017,490949,8929,REVENUE,HEALING VILLAGE NURSERY,101096
North East Lincolnshire Council,http://statistics.data.gov.uk/id/local-authority/00FC),Deputy Chief Executive,Director Of Early Help,Prevention And Early Help,Other Agencies,Nursery Educ Fund - Standard,PJ139,16/11/2017,491147,336,REVENUE,MRS HELEN HESELTINE,128765
North East Lincolnshire Council,http://statistics.data.gov.uk/id/local-authority/00FC),Deputy Chief Executive,Director Of Early Help,Prevention And Early Help,Other Agencies,Nursery Educ Fund - Standard,PJ139,16/11/2017,491135,861,REVENUE,ELLIE TOTS CHILDMINDING SERVICES,128251
North East Lincolnshire Council,http://statistics.data.gov.uk/id/local-authority/00FC),Deputy Chief Executive,Director Of Early Help,Prevention And Early Help,Other Agencies,Nursery Educ Fund - Standard,PJ139,16/11/2017,490991,7037.65,REVENUE,CLEETHORPES CHILDCARE,101591
North East Lincolnshire Council,http://statistics.data.gov.uk/id/local-authority/00FC),Deputy Chief Executive,Director Of Early Help,Prevention And Early Help,Other Agencies,Nursery Educ Fund - Standard,PJ139,16/11/2017,491067,7194,REVENUE,HUMBERSTON PRE SCHOOL,114491
North East Lincolnshire Council,http://statistics.data.gov.uk/id/local-authority/00FC),Deputy Chief Executive,Director Of Early Help,Prevention And Early Help,Other Agencies,Nursery Educ Fund - Standard,PJ139,16/11/2017,491095,6958,REVENUE,IMMINGHAM DAY CARE,122312
North East Lincolnshire Council,http://statistics.data.gov.uk/id/local-authority/00FC),Deputy Chief Executive,Director Of Early Help,Prevention And Early Help,Other Agencies,Nursery Educ Fund - Standard,PJ139,16/11/2017,490942,5082,REVENUE,IMMINGHAM DAY NURSERY,100998
North East Lincolnshire Council,http://statistics.data.gov.uk/id/local-authority/00FC),Deputy Chief Executive,Director Of Early Help,Prevention And Early Help,Other Agencies,Nursery Educ Fund - Standard,PJ139,16/11/2017,490955,552.82,REVENUE,JACQUELINE BRACEY,101200
North East Lincolnshire Council,http://statistics.data.gov.uk/id/local-authority/00FC),Deputy Chief Executive,Director Of Early Help,Prevention And Early Help,Other Agencies,Nursery Educ Fund - Standard,PJ139,16/11/2017,490932,3314.85,REVENUE,JUDY CLARK PLAYGROUP,100939
North East Lincolnshire Council,http://statistics.data.gov.uk/id/local-authority/00FC),Deputy Chief Executive,Director Of Early Help,Prevention And Early Help,Other Agencies,Nursery Educ Fund - Standard,PJ139,16/11/2017,491015,700,REVENUE,KAREN HUDSON,102103
North East Lincolnshire Council,http://statistics.data.gov.uk/id/local-authority/00FC),Deputy Chief Executive,Director Of Early Help,Prevention And Early Help,Other Agencies,Nursery Educ Fund - Standard,PJ139,16/11/2017,491197,665,REVENUE,KAREN RICH,136994
North East Lincolnshire Council,http://statistics.data.gov.uk/id/local-authority/00FC),Deputy Chief Executive,Director Of Early Help,Prevention And Early Help,Other Agencies,Nursery Educ Fund - Standard,PJ139,16/11/2017,491126,1050,REVENUE,LEAP AHEAD NURSERY,128017
North East Lincolnshire Council,http://statistics.data.gov.uk/id/local-authority/00FC),Deputy Chief Executive,Director Of Early Help,Prevention And Early Help,Other Agencies,Nursery Educ Fund - Standard,PJ139,16/11/2017,491044,8827,REVENUE,LITTLE BLOSSOMS DAY NURSERY,111058
North East Lincolnshire Council,http://statistics.data.gov.uk/id/local-authority/00FC),Deputy Chief Executive,Director Of Early Help,Prevention And Early Help,Other Agencies,Nursery Educ Fund - Standard,PJ139,16/11/2017,491065,6422,REVENUE,GRIMSBY INSTITUTE - LITTLE STARS DAY NURSERY,114230
North East Lincolnshire Council,http://statistics.data.gov.uk/id/local-authority/00FC),Deputy Chief Executive,Director Of Early Help,Prevention And Early Help,Other Agencies,Nursery Educ Fund - Standard,PJ139,16/11/2017,491092,2282.17,REVENUE,LITTLE TWINKLES CHILDCARE LTD,122217
North East Lincolnshire Council,http://statistics.data.gov.uk/id/local-authority/00FC),Deputy Chief Executive,Director Of Early Help,Prevention And Early Help,Other Agencies,Nursery Educ Fund - Standard,PJ139,16/11/2017,491035,14672,REVENUE,LISLE MARSDEN CHILDCARE LIMITED,110493
North East Lincolnshire Council,http://statistics.data.gov.uk/id/local-authority/00FC),Deputy Chief Executive,Director Of Early Help,Prevention And Early Help,Other Agencies,Nursery Educ Fund - Standard,PJ139,16/11/2017,491079,1119.83,REVENUE,NICKY'S CHILDMINDING,119901
North East Lincolnshire Council,http://statistics.data.gov.uk/id/local-authority/00FC),Deputy Chief Executive,Director Of Early Help,Prevention And Early Help,Other Agencies,Nursery Educ Fund - Standard,PJ139,16/11/2017,491132,9284,REVENUE,ONLY ABOUT KIDS,128121
North East Lincolnshire Council,http://statistics.data.gov.uk/id/local-authority/00FC),Deputy Chief Executive,Director Of Early Help,Prevention And Early Help,Other Agencies,Nursery Educ Fund - Standard,PJ139,16/11/2017,490974,7595,REVENUE,PRECIOUS TIMES CHILDCARE SERVICES,101420
North East Lincolnshire Council,http://statistics.data.gov.uk/id/local-authority/00FC),Deputy Chief Executive,Director Of Early Help,Prevention And Early Help,Other Agencies,Nursery Educ Fund - Standard,PJ139,16/11/2017,490980,12740,REVENUE,PRECIOUS TIMES CHILDCARE SERVICES,101420
North East Lincolnshire Council,http://statistics.data.gov.uk/id/local-authority/00FC),Deputy Chief Executive,Director Of Early Help,Prevention And Early Help,Other Agencies,Nursery Educ Fund - Standard,PJ139,16/11/2017,490918,3972.9,REVENUE,FOR UNDER FIVES LTD,100647
North East Lincolnshire Council,http://statistics.data.gov.uk/id/local-authority/00FC),Deputy Chief Executive,Director Of Early Help,Prevention And Early Help,Other Agencies,Nursery Educ Fund - Standard,PJ139,16/11/2017,490941,2197.12,REVENUE,READY TEDDY GO,100973
North East Lincolnshire Council,http://statistics.data.gov.uk/id/local-authority/00FC),Deputy Chief Executive,Director Of Early Help,Prevention And Early Help,Other Agencies,Nursery Educ Fund - Standard,PJ139,16/11/2017,491116,680.4,REVENUE,SARAH FARROW-BROWNE,127842
North East Lincolnshire Council,http://statistics.data.gov.uk/id/local-authority/00FC),Deputy Chief Executive,Director Of Early Help,Prevention And Early Help,Other Agencies,Nursery Educ Fund - Standard,PJ139,16/11/2017,491061,963.9,REVENUE,SARA HARRISON,112491
North East Lincolnshire Council,http://statistics.data.gov.uk/id/local-authority/00FC),Deputy Chief Executive,Director Of Early Help,Prevention And Early Help,Other Agencies,Nursery Educ Fund - Standard,PJ139,16/11/2017,491039,425.25,REVENUE,SHARON SPRINGALL,111029
North East Lincolnshire Council,http://statistics.data.gov.uk/id/local-authority/00FC),Deputy Chief Executive,Director Of Early Help,Prevention And Early Help,Other Agencies,Nursery Educ Fund - Standard,PJ139,16/11/2017,491139,2828,REVENUE,SARAH'S CHILDMINDING,128578
North East Lincolnshire Council,http://statistics.data.gov.uk/id/local-authority/00FC),Deputy Chief Executive,Director Of Early Help,Prevention And Early Help,Other Agencies,Nursery Educ Fund - Standard,PJ139,16/11/2017,490915,12530,REVENUE,FOR UNDER FIVES LTD,100647
North East Lincolnshire Council,http://statistics.data.gov.uk/id/local-authority/00FC),Deputy Chief Executive,Director Of Early Help,Prevention And Early Help,Other Agencies,Nursery Educ Fund - Standard,PJ139,16/11/2017,491008,1076.25,REVENUE,SARAH SHOTBOLT,101742
North East Lincolnshire Council,http://statistics.data.gov.uk/id/local-authority/00FC),Deputy Chief Executive,Director Of Early Help,Prevention And Early Help,Other Agencies,Nursery Educ Fund - Standard,PJ139,16/11/2017,491088,846.65,REVENUE,ST CHRISTOPHERS PRE SCHOOL,121589
North East Lincolnshire Council,http://statistics.data.gov.uk/id/local-authority/00FC),Deputy Chief Executive,Director Of Early Help,Prevention And Early Help,Other Agencies,Nursery Educ Fund - Standard,PJ139,16/11/2017,490936,13350,REVENUE,ST JAMES SCHOOL,100940
North East Lincolnshire Council,http://statistics.data.gov.uk/id/local-authority/00FC),Deputy Chief Executive,Director Of Early Help,Prevention And Early Help,Other Agencies,Nursery Educ Fund - Standard,PJ139,16/11/2017,491003,5964,REVENUE,ST MARGARETS PRE-SCHOOL,101724
North East Lincolnshire Council,http://statistics.data.gov.uk/id/local-authority/00FC),Deputy Chief Executive,Director Of Early Help,Prevention And Early Help,Other Agencies,Nursery Educ Fund - Standard,PJ139,16/11/2017,490928,24404,REVENUE,ST MARTINS PREPARATORY SCHOOL,100889
North East Lincolnshire Council,http://statistics.data.gov.uk/id/local-authority/00FC),Deputy Chief Executive,Director Of Early Help,Prevention And Early Help,Other Agencies,Nursery Educ Fund - Standard,PJ139,16/11/2017,490964,4104.1,REVENUE,ST PETERS CHILDREN CENTRE,101322
North East Lincolnshire Council,http://statistics.data.gov.uk/id/local-authority/00FC),Deputy Chief Executive,Director Of Early Help,Prevention And Early Help,Other Agencies,Nursery Educ Fund - Standard,PJ139,16/11/2017,491023,2982.75,REVENUE,THE AVENUE PLAYGROUP,103168
North East Lincolnshire Council,http://statistics.data.gov.uk/id/local-authority/00FC),Deputy Chief Executive,Director Of Early Help,Prevention And Early Help,Other Agencies,Nursery Educ Fund - Standard,PJ139,16/11/2017,491033,29684,REVENUE,WALTHAM LEAS PRE-SCHOOL,108236
North East Lincolnshire Council,http://statistics.data.gov.uk/id/local-authority/00FC),Deputy Chief Executive,Director Of Early Help,Prevention And Early Help,Other Agencies,Nursery Educ Fund - Standard,PJ139,16/11/2017,490958,17170.8,REVENUE,WELHOLME PRE SCHOOL,101258
North East Lincolnshire Council,http://statistics.data.gov.uk/id/local-authority/00FC),Deputy Chief Executive,Director Of Early Help,Prevention And Early Help,Other Agencies,Nursery Educ Fund - Standard,PJ139,16/11/2017,490966,4506,REVENUE,WENDOVER PRE-SCHOOL,101350
North East Lincolnshire Council,http://statistics.data.gov.uk/id/local-authority/00FC),Deputy Chief Executive,Director Of Early Help,Prevention And Early Help,Other Agencies,Nursery Educ Fund - Standard,PJ139,16/11/2017,491020,1937.25,REVENUE,WIZ KIDZ,102424
North East Lincolnshire Council,http://statistics.data.gov.uk/id/local-authority/00FC),Deputy Chief Executive,Director Of Early Help,Prevention And Early Help,Other Agencies,Nursery Educ Fund - Standard,PJ139,16/11/2017,490997,15232,REVENUE,CLEETHORPES CHILDCARE,101591
North East Lincolnshire Council,http://statistics.data.gov.uk/id/local-authority/00FC),Deputy Chief Executive,Director Of Early Help,Prevention And Early Help,Other Agencies,Nursery Educ Fund - Standard,PJ139,28/11/2017,493176,380.52,REVENUE,THE CHILDRENS HOUSE,101141
North East Lincolnshire Council,http://statistics.data.gov.uk/id/local-authority/00FC),Deputy Chief Executive,Director Of Early Help,Prevention And Early Help,Other Agencies,Nursery Educ Fund - Standard,PJ139,28/11/2017,493184,1725,REVENUE,GRIMSBY INSTITUTE - LITTLE STARS DAY NURSERY,114230
North East Lincolnshire Council,http://statistics.data.gov.uk/id/local-authority/00FC),Deputy Chief Executive,Director Of Early Help,Prevention And Early Help,Other Agencies,Nursery Educ Fund - Standard,PJ139,28/11/2017,493182,480,REVENUE,LISLE MARSDEN CHILDCARE LIMITED,110493
North East Lincolnshire Council,http://statistics.data.gov.uk/id/local-authority/00FC),Deputy Chief Executive,Director Of Early Help,Prevention And Early Help,Other Agencies,Nursery Educ Fund - Standard,PJ139,28/11/2017,493188,280,REVENUE,ONLY ABOUT KIDS,128121
North East Lincolnshire Council,http://statistics.data.gov.uk/id/local-authority/00FC),Deputy Chief Executive,Director Of Early Help,Prevention And Early Help,Other Agencies,Nursery Educ Fund - Standard,PJ139,28/11/2017,493180,1247.88,REVENUE,CLEETHORPES CHILDCARE,101591
North East Lincolnshire Council,http://statistics.data.gov.uk/id/local-authority/00FC),Deputy Chief Executive,Director Of Early Help,Prevention And Early Help,Other Agencies,Nursery Educ Fund - Standard,PJ139,27/11/2017,492746,637.87,REVENUE,AMANDA'S CHILDMINDING,119739
North East Lincolnshire Council,http://statistics.data.gov.uk/id/local-authority/00FC),Deputy Chief Executive,Director Of Early Help,Prevention And Early Help,Other Agencies,Nursery Educ Fund - Standard,PJ139,23/11/2017,492200,430.5,REVENUE,FOR UNDER FIVES LTD,100647
North East Lincolnshire Council,http://statistics.data.gov.uk/id/local-authority/00FC),Deputy Chief Executive,Director Of Early Help,Prevention And Early Help,Other Agencies,Nursery Educ Fund - Standard,PJ139,23/11/2017,492200,287,REVENUE,FOR UNDER FIVES LTD,100647
North East Lincolnshire Council,http://statistics.data.gov.uk/id/local-authority/00FC),Deputy Chief Executive,Director Of Early Help,Prevention And Early Help,Other Agencies,Other,PJ121,16/11/2017,491110,525,REVENUE,ANDREA CULLUM - LITTLE GEMS,127347
North East Lincolnshire Council,http://statistics.data.gov.uk/id/local-authority/00FC),Deputy Chief Executive,Director Of Early Help,Prevention And Early Help,Other Agencies,Other,PJ121,16/11/2017,491074,262.5,REVENUE,ALISON'S CHILDMINDING SERVICES,119740
North East Lincolnshire Council,http://statistics.data.gov.uk/id/local-authority/00FC),Deputy Chief Executive,Director Of Early Help,Prevention And Early Help,Other Agencies,Other,PJ121,16/11/2017,491198,600,REVENUE,AMYS LITTLE ADVENTURERS,137406
North East Lincolnshire Council,http://statistics.data.gov.uk/id/local-authority/00FC),Deputy Chief Executive,Director Of Early Help,Prevention And Early Help,Other Agencies,Other,PJ121,16/11/2017,491192,262.5,REVENUE,AMY MERRIKIN,136695
North East Lincolnshire Council,http://statistics.data.gov.uk/id/local-authority/00FC),Deputy Chief Executive,Director Of Early Help,Prevention And Early Help,Other Agencies,Other,PJ121,16/11/2017,490907,6155,REVENUE,FOR UNDER FIVES LTD,100647
North East Lincolnshire Council,http://statistics.data.gov.uk/id/local-authority/00FC),Deputy Chief Executive,Director Of Early Help,Prevention And Early Help,Other Agencies,Other,PJ121,16/11/2017,491000,6562.5,REVENUE,BUTTERFLIES DAY NURSERY,101694
North East Lincolnshire Council,http://statistics.data.gov.uk/id/local-authority/00FC),Deputy Chief Executive,Director Of Early Help,Prevention And Early Help,Other Agencies,Other,PJ121,16/11/2017,491166,1890,REVENUE,CAMPDEN KIDS LTD,132975
North East Lincolnshire Council,http://statistics.data.gov.uk/id/local-authority/00FC),Deputy Chief Executive,Director Of Early Help,Prevention And Early Help,Other Agencies,Other,PJ121,16/11/2017,490925,15722.5,REVENUE,FOR UNDER FIVES LTD,100647
North East Lincolnshire Council,http://statistics.data.gov.uk/id/local-authority/00FC),Deputy Chief Executive,Director Of Early Help,Prevention And Early Help,Other Agencies,Other,PJ121,16/11/2017,490950,2030,REVENUE,THE CHILDRENS HOUSE,101141
North East Lincolnshire Council,http://statistics.data.gov.uk/id/local-authority/00FC),Deputy Chief Executive,Director Of Early Help,Prevention And Early Help,Other Agencies,Other,PJ121,16/11/2017,491026,262.5,REVENUE,CATHERINE WALLACE,103189
North East Lincolnshire Council,http://statistics.data.gov.uk/id/local-authority/00FC),Deputy Chief Executive,Director Of Early Help,Prevention And Early Help,Other Agencies,Other,PJ121,16/11/2017,491152,1875,REVENUE,ELLISTON PRIMARY ACADEMY,129629
North East Lincolnshire Council,http://statistics.data.gov.uk/id/local-authority/00FC),Deputy Chief Executive,Director Of Early Help,Prevention And Early Help,Other Agencies,Other,PJ121,16/11/2017,491144,4725,REVENUE,FREESTON TOTS PRESCHOOL,128592
North East Lincolnshire Council,http://statistics.data.gov.uk/id/local-authority/00FC),Deputy Chief Executive,Director Of Early Help,Prevention And Early Help,Other Agencies,Other,PJ121,16/11/2017,491108,7350,REVENUE,FIRST STEPS WITH SURE START,126658
North East Lincolnshire Council,http://statistics.data.gov.uk/id/local-authority/00FC),Deputy Chief Executive,Director Of Early Help,Prevention And Early Help,Other Agencies,Other,PJ121,16/11/2017,490970,22675,REVENUE,FIRST STEPS GRIMSBY LIMITED,101411
North East Lincolnshire Council,http://statistics.data.gov.uk/id/local-authority/00FC),Deputy Chief Executive,Director Of Early Help,Prevention And Early Help,Other Agencies,Other,PJ121,16/11/2017,490913,3150,REVENUE,FOR UNDER FIVES LTD,100647
North East Lincolnshire Council,http://statistics.data.gov.uk/id/local-authority/00FC),Deputy Chief Executive,Director Of Early Help,Prevention And Early Help,Other Agencies,Other,PJ121,16/11/2017,491159,3150,REVENUE,HUMBERSTON CLOVERFIELDS ACADEMY NURSERY,132178
North East Lincolnshire Council,http://statistics.data.gov.uk/id/local-authority/00FC),Deputy Chief Executive,Director Of Early Help,Prevention And Early Help,Other Agencies,Other,PJ121,16/11/2017,490948,2030,REVENUE,HEALING VILLAGE NURSERY,101096
North East Lincolnshire Council,http://statistics.data.gov.uk/id/local-authority/00FC),Deputy Chief Executive,Director Of Early Help,Prevention And Early Help,Other Agencies,Other,PJ121,16/11/2017,490990,10272.5,REVENUE,CLEETHORPES CHILDCARE,101591
North East Lincolnshire Council,http://statistics.data.gov.uk/id/local-authority/00FC),Deputy Chief Executive,Director Of Early Help,Prevention And Early Help,Other Agencies,Other,PJ121,16/11/2017,491012,2767.5,REVENUE,HUMBERSTON DAY NURSERY,102006
North East Lincolnshire Council,http://statistics.data.gov.uk/id/local-authority/00FC),Deputy Chief Executive,Director Of Early Help,Prevention And Early Help,Other Agencies,Other,PJ121,16/11/2017,491066,1575,REVENUE,HUMBERSTON PRE SCHOOL,114491
North East Lincolnshire Council,http://statistics.data.gov.uk/id/local-authority/00FC),Deputy Chief Executive,Director Of Early Help,Prevention And Early Help,Other Agencies,Other,PJ121,16/11/2017,491094,6405,REVENUE,IMMINGHAM DAY CARE,122312
North East Lincolnshire Council,http://statistics.data.gov.uk/id/local-authority/00FC),Deputy Chief Executive,Director Of Early Help,Prevention And Early Help,Other Agencies,Other,PJ121,16/11/2017,490945,7262.5,REVENUE,IMMINGHAM DAY NURSERY,100998
North East Lincolnshire Council,http://statistics.data.gov.uk/id/local-authority/00FC),Deputy Chief Executive,Director Of Early Help,Prevention And Early Help,Other Agencies,Other,PJ121,16/11/2017,490954,1070,REVENUE,JACQUELINE BRACEY,101200
North East Lincolnshire Council,http://statistics.data.gov.uk/id/local-authority/00FC),Deputy Chief Executive,Director Of Early Help,Prevention And Early Help,Other Agencies,Other,PJ121,16/11/2017,490933,2100,REVENUE,JUDY CLARK PLAYGROUP,100939
North East Lincolnshire Council,http://statistics.data.gov.uk/id/local-authority/00FC),Deputy Chief Executive,Director Of Early Help,Prevention And Early Help,Other Agencies,Other,PJ121,16/11/2017,491185,262.5,REVENUE,JULIE MOORE CHILDMINDING,134452
North East Lincolnshire Council,http://statistics.data.gov.uk/id/local-authority/00FC),Deputy Chief Executive,Director Of Early Help,Prevention And Early Help,Other Agencies,Other,PJ121,16/11/2017,491121,8610,REVENUE,LEAP AHEAD NURSERY,128017
North East Lincolnshire Council,http://statistics.data.gov.uk/id/local-authority/00FC),Deputy Chief Executive,Director Of Early Help,Prevention And Early Help,Other Agencies,Other,PJ121,16/11/2017,491124,5160,REVENUE,LEAP AHEAD NURSERY,128017
North East Lincolnshire Council,http://statistics.data.gov.uk/id/local-authority/00FC),Deputy Chief Executive,Director Of Early Help,Prevention And Early Help,Other Agencies,Other,PJ121,16/11/2017,491043,4725,REVENUE,LITTLE BLOSSOMS DAY NURSERY,111058
North East Lincolnshire Council,http://statistics.data.gov.uk/id/local-authority/00FC),Deputy Chief Executive,Director Of Early Help,Prevention And Early Help,Other Agencies,Other,PJ121,16/11/2017,491064,13390,REVENUE,GRIMSBY INSTITUTE - LITTLE STARS DAY NURSERY,114230
North East Lincolnshire Council,http://statistics.data.gov.uk/id/local-authority/00FC),Deputy Chief Executive,Director Of Early Help,Prevention And Early Help,Other Agencies,Other,PJ121,16/11/2017,491091,1050,REVENUE,LITTLE TWINKLES CHILDCARE LTD,122217
North East Lincolnshire Council,http://statistics.data.gov.uk/id/local-authority/00FC),Deputy Chief Executive,Director Of Early Help,Prevention And Early Help,Other Agencies,Other,PJ121,16/11/2017,491034,7650,REVENUE,LISLE MARSDEN CHILDCARE LIMITED,110493
North East Lincolnshire Council,http://statistics.data.gov.uk/id/local-authority/00FC),Deputy Chief Executive,Director Of Early Help,Prevention And Early Help,Other Agencies,Other,PJ121,16/11/2017,491178,7560,REVENUE,LITTLECOATES PRIMARY ACADEMY,134261
North East Lincolnshire Council,http://statistics.data.gov.uk/id/local-authority/00FC),Deputy Chief Executive,Director Of Early Help,Prevention And Early Help,Other Agencies,Other,PJ121,16/11/2017,491078,787.5,REVENUE,NICKY'S CHILDMINDING,119901
North East Lincolnshire Council,http://statistics.data.gov.uk/id/local-authority/00FC),Deputy Chief Executive,Director Of Early Help,Prevention And Early Help,Other Agencies,Other,PJ121,16/11/2017,491133,1942.5,REVENUE,ONLY ABOUT KIDS,128121
North East Lincolnshire Council,http://statistics.data.gov.uk/id/local-authority/00FC),Deputy Chief Executive,Director Of Early Help,Prevention And Early Help,Other Agencies,Other,PJ121,16/11/2017,491053,4537.5,REVENUE,ORMISTON SOUTH PARADE ACADEMY,111750
North East Lincolnshire Council,http://statistics.data.gov.uk/id/local-authority/00FC),Deputy Chief Executive,Director Of Early Help,Prevention And Early Help,Other Agencies,Other,PJ121,16/11/2017,490981,1312.5,REVENUE,PRECIOUS TIMES CHILDCARE SERVICES,101420
North East Lincolnshire Council,http://statistics.data.gov.uk/id/local-authority/00FC),Deputy Chief Executive,Director Of Early Help,Prevention And Early Help,Other Agencies,Other,PJ121,16/11/2017,490976,8505,REVENUE,PRECIOUS TIMES CHILDCARE SERVICES,101420
North East Lincolnshire Council,http://statistics.data.gov.uk/id/local-authority/00FC),Deputy Chief Executive,Director Of Early Help,Prevention And Early Help,Other Agencies,Other,PJ121,16/11/2017,490906,12655,REVENUE,FOR UNDER FIVES LTD,100647
North East Lincolnshire Council,http://statistics.data.gov.uk/id/local-authority/00FC),Deputy Chief Executive,Director Of Early Help,Prevention And Early Help,Other Agencies,Other,PJ121,16/11/2017,490940,787.5,REVENUE,READY TEDDY GO,100973
North East Lincolnshire Council,http://statistics.data.gov.uk/id/local-authority/00FC),Deputy Chief Executive,Director Of Early Help,Prevention And Early Help,Other Agencies,Other,PJ121,16/11/2017,491115,262.5,REVENUE,SARAH FARROW-BROWNE,127842
North East Lincolnshire Council,http://statistics.data.gov.uk/id/local-authority/00FC),Deputy Chief Executive,Director Of Early Help,Prevention And Early Help,Other Agencies,Other,PJ121,16/11/2017,491058,262.5,REVENUE,SARA HARRISON,112491
North East Lincolnshire Council,http://statistics.data.gov.uk/id/local-authority/00FC),Deputy Chief Executive,Director Of Early Help,Prevention And Early Help,Other Agencies,Other,PJ121,16/11/2017,491138,1050,REVENUE,SARAH'S CHILDMINDING,128578
North East Lincolnshire Council,http://statistics.data.gov.uk/id/local-authority/00FC),Deputy Chief Executive,Director Of Early Help,Prevention And Early Help,Other Agencies,Other,PJ121,16/11/2017,490914,7610,REVENUE,FOR UNDER FIVES LTD,100647
North East Lincolnshire Council,http://statistics.data.gov.uk/id/local-authority/00FC),Deputy Chief Executive,Director Of Early Help,Prevention And Early Help,Other Agencies,Other,PJ121,16/11/2017,491009,2362.5,REVENUE,SARAH SHOTBOLT,101742
North East Lincolnshire Council,http://statistics.data.gov.uk/id/local-authority/00FC),Deputy Chief Executive,Director Of Early Help,Prevention And Early Help,Other Agencies,Other,PJ121,16/11/2017,491089,5527.5,REVENUE,ST CHRISTOPHERS PRE SCHOOL,121589
North East Lincolnshire Council,http://statistics.data.gov.uk/id/local-authority/00FC),Deputy Chief Executive,Director Of Early Help,Prevention And Early Help,Other Agencies,Other,PJ121,16/11/2017,491085,1050,REVENUE,STEPHANIE DURRANT,120541
North East Lincolnshire Council,http://statistics.data.gov.uk/id/local-authority/00FC),Deputy Chief Executive,Director Of Early Help,Prevention And Early Help,Other Agencies,Other,PJ121,16/11/2017,490937,1612.5,REVENUE,ST JAMES SCHOOL,100940
North East Lincolnshire Council,http://statistics.data.gov.uk/id/local-authority/00FC),Deputy Chief Executive,Director Of Early Help,Prevention And Early Help,Other Agencies,Other,PJ121,16/11/2017,491004,367.5,REVENUE,ST MARGARETS PRE-SCHOOL,101724
North East Lincolnshire Council,http://statistics.data.gov.uk/id/local-authority/00FC),Deputy Chief Executive,Director Of Early Help,Prevention And Early Help,Other Agencies,Other,PJ121,16/11/2017,490963,10762.5,REVENUE,ST PETERS CHILDREN CENTRE,101322
North East Lincolnshire Council,http://statistics.data.gov.uk/id/local-authority/00FC),Deputy Chief Executive,Director Of Early Help,Prevention And Early Help,Other Agencies,Other,PJ121,16/11/2017,491056,900,REVENUE,STRAND PRIMARY ACADEMY,111862
North East Lincolnshire Council,http://statistics.data.gov.uk/id/local-authority/00FC),Deputy Chief Executive,Director Of Early Help,Prevention And Early Help,Other Agencies,Other,PJ121,16/11/2017,491022,7747.5,REVENUE,THE AVENUE PLAYGROUP,103168
North East Lincolnshire Council,http://statistics.data.gov.uk/id/local-authority/00FC),Deputy Chief Executive,Director Of Early Help,Prevention And Early Help,Other Agencies,Other,PJ121,16/11/2017,490983,262.5,REVENUE,PATRICIA KERSEY,101514
North East Lincolnshire Council,http://statistics.data.gov.uk/id/local-authority/00FC),Deputy Chief Executive,Director Of Early Help,Prevention And Early Help,Other Agencies,Other,PJ121,16/11/2017,491030,7455,REVENUE,WALTHAM LEAS PRE-SCHOOL,108236
North East Lincolnshire Council,http://statistics.data.gov.uk/id/local-authority/00FC),Deputy Chief Executive,Director Of Early Help,Prevention And Early Help,Other Agencies,Other,PJ121,16/11/2017,490967,945,REVENUE,WENDOVER PRE-SCHOOL,101350
North East Lincolnshire Council,http://statistics.data.gov.uk/id/local-authority/00FC),Deputy Chief Executive,Director Of Early Help,Prevention And Early Help,Other Agencies,Other,PJ121,16/11/2017,491019,10400,REVENUE,WIZ KIDZ,102424
North East Lincolnshire Council,http://statistics.data.gov.uk/id/local-authority/00FC),Deputy Chief Executive,Director Of Early Help,Prevention And Early Help,Other Agencies,Other,PJ121,16/11/2017,490994,1662.5,REVENUE,CLEETHORPES CHILDCARE,101591
North East Lincolnshire Council,http://statistics.data.gov.uk/id/local-authority/00FC),Deputy Chief Executive,Director Of Early Help,Prevention And Early Help,Other Agencies,Other,PJ121,28/11/2017,493189,540,REVENUE,MRS A PARKER,132521
North East Lincolnshire Council,http://statistics.data.gov.uk/id/local-authority/00FC),Deputy Chief Executive,Director Of Early Help,Prevention And Early Help,Other Agencies,Other,PJ121,28/11/2017,493181,1575,REVENUE,BUTTERFLIES DAY NURSERY,101694
North East Lincolnshire Council,http://statistics.data.gov.uk/id/local-authority/00FC),Deputy Chief Executive,Director Of Early Help,Prevention And Early Help,Other Agencies,Other,PJ121,28/11/2017,493177,420,REVENUE,THE CHILDRENS HOUSE,101141
North East Lincolnshire Council,http://statistics.data.gov.uk/id/local-authority/00FC),Deputy Chief Executive,Director Of Early Help,Prevention And Early Help,Other Agencies,Other,PJ121,28/11/2017,493171,525,REVENUE,FOR UNDER FIVES LTD,100647
North East Lincolnshire Council,http://statistics.data.gov.uk/id/local-authority/00FC),Deputy Chief Executive,Director Of Early Help,Prevention And Early Help,Other Agencies,Other,PJ121,28/11/2017,493175,490,REVENUE,HEALING VILLAGE NURSERY,101096
North East Lincolnshire Council,http://statistics.data.gov.uk/id/local-authority/00FC),Deputy Chief Executive,Director Of Early Help,Prevention And Early Help,Other Agencies,Other,PJ121,28/11/2017,493183,336,REVENUE,GRIMSBY INSTITUTE - LITTLE STARS DAY NURSERY,114230
North East Lincolnshire Council,http://statistics.data.gov.uk/id/local-authority/00FC),Deputy Chief Executive,Director Of Early Help,Prevention And Early Help,Other Agencies,Other,PJ121,28/11/2017,493190,525,REVENUE,LITTLECOATES PRIMARY ACADEMY,134261
North East Lincolnshire Council,http://statistics.data.gov.uk/id/local-authority/00FC),Deputy Chief Executive,Director Of Early Help,Prevention And Early Help,Other Agencies,Other,PJ121,28/11/2017,493187,336,REVENUE,ONLY ABOUT KIDS,128121
North East Lincolnshire Council,http://statistics.data.gov.uk/id/local-authority/00FC),Deputy Chief Executive,Director Of Early Help,Prevention And Early Help,Other Agencies,Other,PJ121,28/11/2017,493186,525,REVENUE,ST CHRISTOPHERS PRE SCHOOL,121589
North East Lincolnshire Council,http://statistics.data.gov.uk/id/local-authority/00FC),Deputy Chief Executive,Director Of Early Help,Prevention And Early Help,Other Agencies,Other,PJ121,28/11/2017,493174,350,REVENUE,ST JAMES SCHOOL,100940
North East Lincolnshire Council,http://statistics.data.gov.uk/id/local-authority/00FC),Deputy Chief Executive,Director Of Early Help,Prevention And Early Help,Other Agencies,Other,PJ121,28/11/2017,493173,420,REVENUE,ST JAMES SCHOOL,100940
North East Lincolnshire Council,http://statistics.data.gov.uk/id/local-authority/00FC),Deputy Chief Executive,Director Of Early Help,Prevention And Early Help,Other Agencies,Other,PJ121,28/11/2017,493178,650,REVENUE,ST PETERS CHILDREN CENTRE,101322
North East Lincolnshire Council,http://statistics.data.gov.uk/id/local-authority/00FC),Deputy Chief Executive,Director Of Early Help,Prevention And Early Help,Other Agencies,Other,PJ121,28/11/2017,493179,543.6,REVENUE,WENDOVER PRE-SCHOOL,101350
North East Lincolnshire Council,http://statistics.data.gov.uk/id/local-authority/00FC),Deputy Chief Executive,Director Of Early Help,Prevention And Early Help,Indirect Employee Expenses,Redundancy,EB109,28/11/2017,492849,REDACTED PERSONAL INFORMATION,REVENUE,EAST RIDING OF YORKSHIRE,100377
North East Lincolnshire Council,http://statistics.data.gov.uk/id/local-authority/00FC),Deputy Chief Executive,Director Of Early Help,Prevention And Early Help,Indirect Employee Expenses,Staff Training,EB122,13/11/2017,490496,450,REVENUE,PREFERRED FUTURES FS (YORKSHIRE) CIC,138530
North East Lincolnshire Council,http://statistics.data.gov.uk/id/local-authority/00FC),Deputy Chief Executive,Director Of Early Help,Prevention And Early Help,Equip / Furniture / Materials,Furniture - Purchase,LA105,07/11/2017,489127,581.14,REVENUE,LYRECO UK LIMITED,101120
North East Lincolnshire Council,http://statistics.data.gov.uk/id/local-authority/00FC),Deputy Chief Executive,Director Of Early Help,Prevention And Early Help,Communications And Computing,Computer H/Ware - Purchases,LF105,20/11/2017,491564,280.6,REVENUE,PROBRAND LTD,138421
North East Lincolnshire Council,http://statistics.data.gov.uk/id/local-authority/00FC),Deputy Chief Executive,Director Of Early Help,Prevention And Early Help,Public Transport,Public Transport - Serv User,JD102,06/11/2017,489549,-7.95,REVENUE,CLICK TRAVEL,127476
North East Lincolnshire Council,http://statistics.data.gov.uk/id/local-authority/00FC),Deputy Chief Executive,Director Of Early Help,Prevention And Early Help,Public Transport,Public Transport - Serv User,JD102,06/11/2017,489550,-7.95,REVENUE,CLICK TRAVEL,127476
North East Lincolnshire Council,http://statistics.data.gov.uk/id/local-authority/00FC),Deputy Chief Executive,Director Of Early Help,Prevention And Early Help,Miscellaneous Expenses,Activities - Service Users,LL114,02/11/2017,488813,1000,REVENUE,YOUTH VOICE NEL,138414
North East Lincolnshire Council,http://statistics.data.gov.uk/id/local-authority/00FC),Deputy Chief Executive,Director Of Early Help,Prevention And Early Help,Miscellaneous Expenses,Activities - Service Users,LL114,06/11/2017,489167,2164.2,REVENUE,ESTUARY TV (OWNED BY GRIMSBY INSTITUTE),137899
North East Lincolnshire Council,http://statistics.data.gov.uk/id/local-authority/00FC),Deputy Chief Executive,Director Of Early Help,Prevention And Early Help,Miscellaneous Expenses,Activities - Service Users,LL114,30/11/2017,493549,506,REVENUE,PARK RETAIL LTD - LOVE2REWARD,111869
North East Lincolnshire Council,http://statistics.data.gov.uk/id/local-authority/00FC),Deputy Chief Executive,Director Of Early Help,Prevention And Early Help,Indirect Employee Expenses,Staff Training,EB122,27/11/2017,492243,2400,REVENUE,SAFELIVES,136251
North East Lincolnshire Council,http://statistics.data.gov.uk/id/local-authority/00FC),Deputy Chief Executive,Director Of Early Help,Prevention And Early Help,Miscellaneous Expenses,Legal Fees - General,LL103,27/11/2017,492227,350,REVENUE,THOMPSONS SOLICITORS,101854
North East Lincolnshire Council,http://statistics.data.gov.uk/id/local-authority/00FC),Deputy Chief Executive,Director Of Early Help,Prevention And Early Help,Miscellaneous Expenses,Other Supplies & Services,LL110,22/11/2017,492183,-15095.77,REVENUE,GRIMSBY CLEETHORPES & HUMBER REGION YMCA,100305
North East Lincolnshire Council,http://statistics.data.gov.uk/id/local-authority/00FC),Deputy Chief Executive,Director Of Early Help,Prevention And Early Help,Miscellaneous Expenses,Other Supplies & Services,LL110,20/11/2017,491542,15095.77,REVENUE,GRIMSBY CLEETHORPES & HUMBER REGION YMCA,100305
North East Lincolnshire Council,http://statistics.data.gov.uk/id/local-authority/00FC),Deputy Chief Executive,Director Of Early Help,Prevention And Early Help,Miscellaneous Expenses,Other Supplies & Services,LL110,30/11/2017,492737,10700,REVENUE,GRIMSBY TOWN FOOTBALL IN THE COMMUNITY,100978
North East Lincolnshire Council,http://statistics.data.gov.uk/id/local-authority/00FC),Deputy Chief Executive,Director Of Early Help,Prevention And Early Help,Miscellaneous Expenses,Other Supplies & Services,LL110,28/11/2017,492707,1231.03,REVENUE,GREENHEART,103114
North East Lincolnshire Council,http://statistics.data.gov.uk/id/local-authority/00FC),Deputy Chief Executive,Director Of Early Help,Prevention And Early Help,Rents,Rent,GC101,13/11/2017,490499,619.3,REVENUE,CENTRE4 LIMITED,126893
North East Lincolnshire Council,http://statistics.data.gov.uk/id/local-authority/00FC),Deputy Chief Executive,Director Of Early Help,Childrens Health,Car Allowances,Travel - Employees,JF101,06/11/2017,489384,429.6,REVENUE,CLICK TRAVEL,127476
North East Lincolnshire Council,http://statistics.data.gov.uk/id/local-authority/00FC),Deputy Chief Executive,Director Of Early Help,Childrens Health,Miscellaneous Expenses,Medical Supplies And Services,LL109,16/11/2017,488504,7715,REVENUE,HARLOW PRINTING LTD,104753
North East Lincolnshire Council,http://statistics.data.gov.uk/id/local-authority/00FC),Deputy Chief Executive,Director Of Early Help,Childrens Health,Private Contractors,Contract Payments,PH105,13/11/2017,490480,1057,REVENUE,N LINCS & GOOLE HOSPITALS NHS,111074
North East Lincolnshire Council,http://statistics.data.gov.uk/id/local-authority/00FC),Deputy Chief Executive,Director Of Early Help,Family Hubs,Miscellaneous Expenses,Legal Fees - General,LL103,27/11/2017,492225,250,REVENUE,BG SOLICITORS LLP,100514
North East Lincolnshire Council,http://statistics.data.gov.uk/id/local-authority/00FC),Deputy Chief Executive,Director Of Early Help,Family Hubs,Miscellaneous Expenses,Legal Fees - General,LL103,27/11/2017,492230,350,REVENUE,THOMPSONS SOLICITORS,101854
North East Lincolnshire Council,http://statistics.data.gov.uk/id/local-authority/00FC),Deputy Chief Executive,Director Of Early Help,Family Hubs,Other Agencies,Other,PJ121,06/11/2017,489159,8047,REVENUE,N LINCS & GOOLE HOSPITALS NHS,111074
North East Lincolnshire Council,http://statistics.data.gov.uk/id/local-authority/00FC),Deputy Chief Executive,Director Of Early Help,Family Hubs,Rep Alterations Maint Building,Buildings - Repairs And Maint,GA102,30/11/2017,493385,1009.05,REVENUE,ENGIE SERVICES LTD,133267
North East Lincolnshire Council,http://statistics.data.gov.uk/id/local-authority/00FC),Deputy Chief Executive,Director Of Early Help,Family Hubs,Rep Alterations Maint Building,Buildings - Repairs And Maint,GA102,30/11/2017,493385,260,REVENUE,ENGIE SERVICES LTD,133267
North East Lincolnshire Council,http://statistics.data.gov.uk/id/local-authority/00FC),Deputy Chief Executive,Director Of Early Help,Family Hubs,Equip / Furniture / Materials,Equipment - Purchase,LA101,30/11/2017,493492,989.35,REVENUE,LINCSPRINT,106034
North East Lincolnshire Council,http://statistics.data.gov.uk/id/local-authority/00FC),Deputy Chief Executive,Director Of Early Help,Family Hubs,Catering,Provisions,LB101,27/11/2017,492304,1000,REVENUE,TESCO STORES LIMITED,102576
North East Lincolnshire Council,http://statistics.data.gov.uk/id/local-authority/00FC),Deputy Chief Executive,Director Of Early Help,Family Hubs,Other Agencies,Child Care Payments,PJ104,20/11/2017,490770,266.9,REVENUE,FOR UNDER FIVES,101931
North East Lincolnshire Council,http://statistics.data.gov.uk/id/local-authority/00FC),Deputy Chief Executive,Director Of Early Help,Family Hubs,Other Agencies,Child Care Payments,PJ104,27/11/2017,492716,266.9,REVENUE,FOR UNDER FIVES,101931
North East Lincolnshire Council,http://statistics.data.gov.uk/id/local-authority/00FC),Deputy Chief Executive,Director Of Early Help,Family Hubs,Equip / Furniture / Materials,Non-Teaching Resources,LA118,07/11/2017,488477,305,REVENUE,MILLMAN COACHES,100700
North East Lincolnshire Council,http://statistics.data.gov.uk/id/local-authority/00FC),Deputy Chief Executive,Director Of Early Help,Family Hubs,Other Agencies,Child Care Payments,PJ104,13/11/2017,490305,433.75,REVENUE,CENTRE4 LIMITED,126893
North East Lincolnshire Council,http://statistics.data.gov.uk/id/local-authority/00FC),Deputy Chief Executive,Director Of Early Help,Family Hubs,Other Agencies,Child Care Payments,PJ104,20/11/2017,491214,830,REVENUE,CLEETHORPES CHILDCARE,101591
North East Lincolnshire Council,http://statistics.data.gov.uk/id/local-authority/00FC),Deputy Chief Executive,Director Of Early Help,Family Hubs,Other Agencies,Child Care Payments,PJ104,20/11/2017,491281,1762,REVENUE,CLEETHORPES CHILDCARE,101591
North East Lincolnshire Council,http://statistics.data.gov.uk/id/local-authority/00FC),Deputy Chief Executive,Director Of Early Help,Community Learning Services,Miscellaneous Expenses,Activities - Service Users,LL114,27/11/2017,492313,284,REVENUE,THE EDUCATIONAL GUIDANCE SERVICE LTD,123054
